Body name,Directorate,Service Area Categorisation,Supplier Name,Payment Date,Card Transaction,Net Amount,Purpose of Spend,Procurement Classification: ProClass Label
Solihull MBC,Children's Services & Skills,Children & Education Services,3PB Barristers,04/07/2017,,4680.00,Other Fees,Not Yet Classified
Solihull MBC,Managed Growth and Communities,Environmental and Regulatory Services,608 Equine And Farm Ve,24/07/2017,Card Transaction,281.49,Purchase Card Statement Summary,199999 - Facilities & Management Services - Not Elsewhere Classified
Solihull MBC,Resources,Central Services to the Public,8 Solutions Ltd,01/07/2017,,-535.00,IT Equipment & Software,130000 - Cleaning & Janitorial
Solihull MBC,Adult Social Care,Adult Social Care,A Rooke,25/07/2017,,1639.40,ASC - Residential Care Permanent,321000 - Social Community Care Supplies & Services - Adult
Solihull MBC,Adult Social Care,Adult Social Care,A Rooke,25/07/2017,,1587.60,ASC - Residential Care Permanent,321000 - Social Community Care Supplies & Services - Adult
Solihull MBC,Adult Social Care,Adult Social Care,A Rooke,25/07/2017,,2773.96,ASC - Residential Care Permanent,321000 - Social Community Care Supplies & Services - Adult
Solihull MBC,Adult Social Care,Adult Social Care,A S C Birch,06/07/2017,,504.00,Clients Transport Costs,360000 - Public Transport
Solihull MBC,Adult Social Care,Adult Social Care,A S C Birch,06/07/2017,,136.00,Clients Transport Costs,360000 - Public Transport
Solihull MBC,Children's Services & Skills,Children & Education Services,A1 Support Limited,17/07/2017,,231.60,Clients Expenses,Not Yet Classified
Solihull MBC,Children's Services & Skills,Children & Education Services,A1 Support Limited,17/07/2017,,2957.14,External Fostering,Not Yet Classified
Solihull MBC,Children's Services & Skills,Children & Education Services,AA Global Language Services Ltd,28/07/2017,,3708.69,Professional Fees,321100 - Social Community Care Supplies & Services - Children
Solihull MBC,Children's Services & Skills,Children & Education Services,Abable Ltd,11/07/2017,,1845.00,Other Contracted Services,Not Yet Classified
Solihull MBC,Children's Services & Skills,Children & Education Services,Abacus Fostering Ltd,05/07/2017,,3212.14,External Fostering,Not Yet Classified
Solihull MBC,Children's Services & Skills,Children & Education Services,Abacus Fostering Ltd,03/07/2017,,3138.13,External Fostering,Not Yet Classified
Solihull MBC,Children's Services & Skills,Children & Education Services,Abacus Fostering Ltd,03/07/2017,,3138.13,External Fostering,Not Yet Classified
Solihull MBC,Children's Services & Skills,Children & Education Services,Abacus Fostering Ltd,03/07/2017,,3242.73,External Fostering,Not Yet Classified
Solihull MBC,Adult Social Care,Adult Social Care,Abbey Healthcare Homes Ltd,25/07/2017,,4370.28,ASC - Nursing Care Permanent,321000 - Social Community Care Supplies & Services - Adult
Solihull MBC,Adult Social Care,Adult Social Care,Abbey Healthcare Homes Ltd,25/07/2017,,4054.16,ASC - Nursing Care Permanent,321000 - Social Community Care Supplies & Services - Adult
Solihull MBC,Children's Services & Skills,Children & Education Services,ABC Fostering Services Ltd,20/07/2017,,151.90,Clients Expenses,Not Yet Classified
Solihull MBC,Children's Services & Skills,Children & Education Services,ABC Fostering Services Ltd,20/07/2017,,151.90,Clients Expenses,Not Yet Classified
Solihull MBC,Children's Services & Skills,Children & Education Services,ABC Fostering Services Ltd,20/07/2017,,151.90,Clients Expenses,Not Yet Classified
Solihull MBC,Children's Services & Skills,Children & Education Services,ABC Fostering Services Ltd,20/07/2017,,303.80,Clients Expenses,Not Yet Classified
Solihull MBC,Children's Services & Skills,Children & Education Services,ABC Fostering Services Ltd,05/07/2017,,3292.64,External Fostering,Not Yet Classified
Solihull MBC,Children's Services & Skills,Children & Education Services,ABC Fostering Services Ltd,13/07/2017,,1008.68,External Fostering,Not Yet Classified
Solihull MBC,Children's Services & Skills,Children & Education Services,ABC Fostering Services Ltd,05/07/2017,,1008.68,External Fostering,Not Yet Classified
Solihull MBC,Children's Services & Skills,Children & Education Services,ABC Fostering Services Ltd,05/07/2017,,3126.93,External Fostering,Not Yet Classified
Solihull MBC,Children's Services & Skills,Children & Education Services,ABC Fostering Services Ltd,05/07/2017,,2958.62,External Fostering,Not Yet Classified
Solihull MBC,Children's Services & Skills,Children & Education Services,ABC Fostering Services Ltd,05/07/2017,,2958.62,External Fostering,Not Yet Classified
Solihull MBC,Children's Services & Skills,Children & Education Services,ABC Fostering Services Ltd,05/07/2017,,2958.62,External Fostering,Not Yet Classified
Solihull MBC,Children's Services & Skills,Children & Education Services,ABC Fostering Services Ltd,05/07/2017,,2748.26,External Fostering,Not Yet Classified
Solihull MBC,Children's Services & Skills,Children & Education Services,ABC Fostering Services Ltd,05/07/2017,,3186.43,External Fostering,Not Yet Classified
Solihull MBC,Children's Services & Skills,Children & Education Services,ABC Fostering Services Ltd,13/07/2017,,1487.00,External Fostering,Not Yet Classified
Solihull MBC,Children's Services & Skills,Children & Education Services,ABC Fostering Services Ltd,05/07/2017,,3026.06,External Fostering,Not Yet Classified
Solihull MBC,Children's Services & Skills,Children & Education Services,ABC Fostering Services Ltd,05/07/2017,,2863.18,External Fostering,Not Yet Classified
Solihull MBC,Children's Services & Skills,Children & Education Services,ABC Fostering Services Ltd,05/07/2017,,2863.18,External Fostering,Not Yet Classified
Solihull MBC,Children's Services & Skills,Children & Education Services,ABC Fostering Services Ltd,05/07/2017,,2863.18,External Fostering,Not Yet Classified
Solihull MBC,Children's Services & Skills,Children & Education Services,ABC Fostering Services Ltd,05/07/2017,,2659.61,External Fostering,Not Yet Classified
Solihull MBC,Resources,Central Services to the Public,ABM Critical Solutions Ltd,17/07/2017,,535.00,IT Equipment & Software,Not Yet Classified
Solihull MBC,Children's Services & Skills,Children & Education Services,Absolute Interpreting & Translation Ltd,18/07/2017,,213.75,Professional Fees,261100 - Human Resources - Interpretation & Translation
Solihull MBC,Children's Services & Skills,Children & Education Services,Access With Choice,19/07/2017,,132.30,Supported Lodgings,Not Yet Classified
Solihull MBC,Children's Services & Skills,Children & Education Services,Access With Choice,19/07/2017,,2625.00,Supported Lodgings,Not Yet Classified
Solihull MBC,Adult Social Care,Adult Social Care,Accora,24/07/2017,,1907.00,Furniture & Equipment,Not Yet Classified
Solihull MBC,Adult Social Care,Adult Social Care,Accord Housing Association,13/07/2017,,26823.47,ASC - Extra Care,321000 - Social Community Care Supplies & Services - Adult
Solihull MBC,Adult Social Care,Adult Social Care,Accord Housing Association,20/07/2017,,22625.00,Other Contracted Services,321000 - Social Community Care Supplies & Services - Adult
Solihull MBC,Adult Social Care,Adult Social Care,Accord Housing Asssociation,04/07/2017,,2196.68,ASC - Residential Care Permanent,321000 - Social Community Care Supplies & Services - Adult
Solihull MBC,Adult Social Care,Adult Social Care,Accord Housing Asssociation,04/07/2017,,2196.68,ASC - Residential Care Permanent,321000 - Social Community Care Supplies & Services - Adult
Solihull MBC,Adult Social Care,Adult Social Care,Accord Housing Asssociation,04/07/2017,,2196.68,ASC - Residential Care Permanent,321000 - Social Community Care Supplies & Services - Adult
Solihull MBC,Adult Social Care,Adult Social Care,Accord Housing Asssociation,04/07/2017,,2196.68,ASC - Residential Care Permanent,321000 - Social Community Care Supplies & Services - Adult
Solihull MBC,Adult Social Care,Adult Social Care,Accord Housing Asssociation,04/07/2017,,2196.68,ASC - Residential Care Permanent,321000 - Social Community Care Supplies & Services - Adult
Solihull MBC,Adult Social Care,Adult Social Care,Accord Housing Asssociation,04/07/2017,,2196.68,ASC - Residential Care Permanent,321000 - Social Community Care Supplies & Services - Adult
Solihull MBC,Adult Social Care,Adult Social Care,Accord Housing Asssociation,04/07/2017,,2196.68,ASC - Residential Care Permanent,321000 - Social Community Care Supplies & Services - Adult
Solihull MBC,Adult Social Care,Adult Social Care,Accord Housing Asssociation,04/07/2017,,2135.04,ASC - Residential Care Permanent,321000 - Social Community Care Supplies & Services - Adult
Solihull MBC,Adult Social Care,Adult Social Care,Accord Housing Asssociation,04/07/2017,,2196.68,ASC - Residential Care Permanent,321000 - Social Community Care Supplies & Services - Adult
Solihull MBC,Adult Social Care,Adult Social Care,Accord Housing Asssociation,04/07/2017,,1903.84,ASC - Residential Care Permanent,321000 - Social Community Care Supplies & Services - Adult
Solihull MBC,Adult Social Care,Adult Social Care,Accord Housing Asssociation,04/07/2017,,1903.84,ASC - Residential Care Permanent,321000 - Social Community Care Supplies & Services - Adult
Solihull MBC,Adult Social Care,Adult Social Care,Accord Housing Asssociation,04/07/2017,,2196.68,ASC - Residential Care Permanent,321000 - Social Community Care Supplies & Services - Adult
Solihull MBC,Adult Social Care,Adult Social Care,Accord Housing Asssociation,04/07/2017,,1903.84,ASC - Residential Care Permanent,321000 - Social Community Care Supplies & Services - Adult
Solihull MBC,Adult Social Care,Adult Social Care,Accord Housing Asssociation,04/07/2017,,2196.68,ASC - Residential Care Permanent,321000 - Social Community Care Supplies & Services - Adult
Solihull MBC,Adult Social Care,Adult Social Care,Accord Housing Asssociation,04/07/2017,,1903.84,ASC - Residential Care Permanent,321000 - Social Community Care Supplies & Services - Adult
Solihull MBC,Adult Social Care,Adult Social Care,Accord Housing Asssociation,04/07/2017,,2196.68,ASC - Residential Care Permanent,321000 - Social Community Care Supplies & Services - Adult
Solihull MBC,Adult Social Care,Adult Social Care,Accord Housing Asssociation,04/07/2017,,2196.68,ASC - Residential Care Permanent,321000 - Social Community Care Supplies & Services - Adult
Solihull MBC,Adult Social Care,Adult Social Care,Accord Housing Asssociation,04/07/2017,,2196.68,ASC - Residential Care Permanent,321000 - Social Community Care Supplies & Services - Adult
Solihull MBC,Adult Social Care,Adult Social Care,Accord Housing Asssociation,04/07/2017,,1903.84,ASC - Residential Care Permanent,321000 - Social Community Care Supplies & Services - Adult
Solihull MBC,Adult Social Care,Adult Social Care,Accord Housing Asssociation,04/07/2017,,2196.68,ASC - Residential Care Permanent,321000 - Social Community Care Supplies & Services - Adult
Solihull MBC,Adult Social Care,Adult Social Care,Accord Housing Asssociation,04/07/2017,,2196.68,ASC - Residential Care Permanent,321000 - Social Community Care Supplies & Services - Adult
Solihull MBC,Adult Social Care,Adult Social Care,Accord Housing Asssociation,20/07/2017,,7609.93,ASC - Residential Care Permanent,321000 - Social Community Care Supplies & Services - Adult
Solihull MBC,Adult Social Care,Adult Social Care,Accord Housing Asssociation,04/07/2017,,2196.68,ASC - Residential Care Permanent,321000 - Social Community Care Supplies & Services - Adult
Solihull MBC,Adult Social Care,Adult Social Care,Accord Housing Asssociation,04/07/2017,,2196.68,ASC - Residential Care Permanent,321000 - Social Community Care Supplies & Services - Adult
Solihull MBC,Adult Social Care,Adult Social Care,Accord Housing Asssociation,04/07/2017,,2196.68,ASC - Residential Care Permanent,321000 - Social Community Care Supplies & Services - Adult
Solihull MBC,Adult Social Care,Adult Social Care,Accord Housing Asssociation,04/07/2017,,2196.68,ASC - Residential Care Permanent,321000 - Social Community Care Supplies & Services - Adult
Solihull MBC,Adult Social Care,Adult Social Care,Accord Housing Asssociation,04/07/2017,,2196.68,ASC - Residential Care Permanent,321000 - Social Community Care Supplies & Services - Adult
Solihull MBC,Adult Social Care,Adult Social Care,Accord Housing Asssociation,04/07/2017,,2196.68,ASC - Residential Care Permanent,321000 - Social Community Care Supplies & Services - Adult
Solihull MBC,Adult Social Care,Adult Social Care,Accord Housing Asssociation,04/07/2017,,2196.68,ASC - Residential Care Permanent,321000 - Social Community Care Supplies & Services - Adult
Solihull MBC,Adult Social Care,Adult Social Care,Accord Housing Asssociation,04/07/2017,,2196.68,ASC - Residential Care Permanent,321000 - Social Community Care Supplies & Services - Adult
Solihull MBC,Adult Social Care,Adult Social Care,Accord Housing Asssociation,04/07/2017,,2196.68,ASC - Residential Care Permanent,321000 - Social Community Care Supplies & Services - Adult
Solihull MBC,Adult Social Care,Adult Social Care,Accord Housing Asssociation,04/07/2017,,867.27,ASC - Residential Care Respite,321000 - Social Community Care Supplies & Services - Adult
Solihull MBC,Adult Social Care,Adult Social Care,Accord Housing Asssociation,04/07/2017,,2196.68,ASC - Residential Care Permanent,321000 - Social Community Care Supplies & Services - Adult
Solihull MBC,Adult Social Care,Adult Social Care,Accord Housing Asssociation,04/07/2017,,2196.68,ASC - Residential Care Permanent,321000 - Social Community Care Supplies & Services - Adult
Solihull MBC,Adult Social Care,Adult Social Care,Accord Housing Asssociation,04/07/2017,,2196.68,ASC - Residential Care Permanent,321000 - Social Community Care Supplies & Services - Adult
Solihull MBC,Adult Social Care,Adult Social Care,Accord Housing Asssociation,18/07/2017,,-762.52,ASC - Residential Care Permanent,321000 - Social Community Care Supplies & Services - Adult
Solihull MBC,Adult Social Care,Adult Social Care,Accord Housing Asssociation,18/07/2017,,-1982.54,ASC - Residential Care Permanent,321000 - Social Community Care Supplies & Services - Adult
Solihull MBC,Adult Social Care,Adult Social Care,Accord Housing Asssociation,18/07/2017,,-533.76,ASC - Residential Care Permanent,321000 - Social Community Care Supplies & Services - Adult
Solihull MBC,Adult Social Care,Adult Social Care,Accord Housing Asssociation,04/07/2017,,2196.68,ASC - Residential Care Permanent,321000 - Social Community Care Supplies & Services - Adult
Solihull MBC,Adult Social Care,Adult Social Care,Accord Housing Asssociation,18/07/2017,,762.52,ASC - Residential Care Permanent,321000 - Social Community Care Supplies & Services - Adult
Solihull MBC,Adult Social Care,Adult Social Care,Accord Housing Asssociation,18/07/2017,,1982.54,ASC - Residential Care Permanent,321000 - Social Community Care Supplies & Services - Adult
Solihull MBC,Adult Social Care,Adult Social Care,Accord Housing Asssociation,18/07/2017,,533.76,ASC - Residential Care Permanent,321000 - Social Community Care Supplies & Services - Adult
Solihull MBC,Adult Social Care,Adult Social Care,Accord Housing Asssociation,04/07/2017,,2196.68,ASC - Residential Care Permanent,321000 - Social Community Care Supplies & Services - Adult
Solihull MBC,Adult Social Care,Adult Social Care,Accord Housing Asssociation,04/07/2017,,1903.84,ASC - Residential Care Permanent,321000 - Social Community Care Supplies & Services - Adult
Solihull MBC,Adult Social Care,Adult Social Care,Accord Housing Asssociation,04/07/2017,,1155.90,ASC - Residential Care Permanent,321000 - Social Community Care Supplies & Services - Adult
Solihull MBC,Adult Social Care,Adult Social Care,Accord Housing Asssociation,04/07/2017,,2196.68,ASC - Residential Care Permanent,321000 - Social Community Care Supplies & Services - Adult
Solihull MBC,Managed Growth and Communities,Planning & Development Services,Acivico,12/07/2017,,394.40,Advertising/Publicity/Promotion,Not Yet Classified
Solihull MBC,Children's Services & Skills,Children & Education Services,ACPAS Ltd,18/07/2017,,613.30,Professional Fees,Not Yet Classified
Solihull MBC,Adult Social Care,Adult Social Care,Adelphi Care Services Ltd,25/07/2017,,1935.00,ASC - Supported Living Care Costs,Not Yet Classified
Solihull MBC,Adult Social Care,Adult Social Care,Adelphi Care Services Ltd,25/07/2017,,1075.00,ASC - Supported Living Care Costs,Not Yet Classified
Solihull MBC,Children's Services & Skills,Children & Education Services,Adoption Focus,21/07/2017,,394.10,Professional Fees,Not Yet Classified
Solihull MBC,Children's Services & Skills,Children & Education Services,ADT Fire & Security PLC,27/07/2017,,2835.22,Contractors,192200 - Facilities & Management Services - Security
Solihull MBC,Managed Growth and Communities,Highways & Transport Services,Advanced Maintenance Services,06/07/2017,,677.50,Other Contracted Services,Not Yet Classified
Solihull MBC,Managed Growth and Communities,Highways & Transport Services,Advanced Maintenance Services,12/07/2017,,799.42,Other Contracted Services,Not Yet Classified
Solihull MBC,Managed Growth and Communities,Planning & Development Services,Aecom,24/07/2017,,1824.64,Professional Fees,Not Yet Classified
Solihull MBC,Adult Social Care,Cultural & Related Services,AFD Software Ltd,05/07/2017,,255.00,Other Fees,202100 - Financial Services - Subscriptions
Solihull MBC,Adult Social Care,Adult Social Care,Age UK Solihull,21/07/2017,,3404.00,Block Contracts,321000 - Social Community Care Supplies & Services - Adult
Solihull MBC,Adult Social Care,Adult Social Care,Age UK Solihull,21/07/2017,,2892.00,Block Contracts,321000 - Social Community Care Supplies & Services - Adult
Solihull MBC,Adult Social Care,Adult Social Care,Aidapt Bathrooms Ltd,27/07/2017,,-232.20,Furniture & Equipment,321000 - Social Community Care Supplies & Services - Adult
Solihull MBC,Adult Social Care,Adult Social Care,Aidapt Bathrooms Ltd,01/07/2017,,564.00,Furniture & Equipment,321000 - Social Community Care Supplies & Services - Adult
Solihull MBC,Adult Social Care,Adult Social Care,Aidapt Bathrooms Ltd,06/07/2017,,846.00,Furniture & Equipment,321000 - Social Community Care Supplies & Services - Adult
Solihull MBC,Adult Social Care,Adult Social Care,Aidapt Bathrooms Ltd,11/07/2017,,287.28,Furniture & Equipment,321000 - Social Community Care Supplies & Services - Adult
Solihull MBC,Adult Social Care,Adult Social Care,Aidapt Bathrooms Ltd,11/07/2017,,720.00,Furniture & Equipment,321000 - Social Community Care Supplies & Services - Adult
Solihull MBC,Adult Social Care,Adult Social Care,Aidapt Bathrooms Ltd,11/07/2017,,282.00,Furniture & Equipment,321000 - Social Community Care Supplies & Services - Adult
Solihull MBC,Adult Social Care,Adult Social Care,Aidapt Bathrooms Ltd,11/07/2017,,219.70,Furniture & Equipment,321000 - Social Community Care Supplies & Services - Adult
Solihull MBC,Adult Social Care,Adult Social Care,Aidapt Bathrooms Ltd,11/07/2017,,341.46,Furniture & Equipment,321000 - Social Community Care Supplies & Services - Adult
Solihull MBC,Adult Social Care,Adult Social Care,Aidapt Bathrooms Ltd,17/07/2017,,245.64,Furniture & Equipment,321000 - Social Community Care Supplies & Services - Adult
Solihull MBC,Adult Social Care,Adult Social Care,Aidapt Bathrooms Ltd,17/07/2017,,600.00,Furniture & Equipment,321000 - Social Community Care Supplies & Services - Adult
Solihull MBC,Adult Social Care,Adult Social Care,Aidapt Bathrooms Ltd,20/07/2017,,245.64,Furniture & Equipment,321000 - Social Community Care Supplies & Services - Adult
Solihull MBC,Adult Social Care,Adult Social Care,Aidapt Bathrooms Ltd,24/07/2017,,214.80,Furniture & Equipment,321000 - Social Community Care Supplies & Services - Adult
Solihull MBC,Adult Social Care,Adult Social Care,Aidapt Bathrooms Ltd,24/07/2017,,269.64,Furniture & Equipment,321000 - Social Community Care Supplies & Services - Adult
Solihull MBC,Adult Social Care,Adult Social Care,Aidapt Bathrooms Ltd,26/07/2017,,214.80,Furniture & Equipment,321000 - Social Community Care Supplies & Services - Adult
Solihull MBC,Adult Social Care,Adult Social Care,Aidapt Bathrooms Ltd,26/07/2017,,269.64,Furniture & Equipment,321000 - Social Community Care Supplies & Services - Adult
Solihull MBC,Adult Social Care,Adult Social Care,Aidapt Bathrooms Ltd,27/07/2017,,232.20,Furniture & Equipment,321000 - Social Community Care Supplies & Services - Adult
Solihull MBC,Adult Social Care,Adult Social Care,Aidapt Bathrooms Ltd,26/07/2017,,232.20,Furniture & Equipment,321000 - Social Community Care Supplies & Services - Adult
Solihull MBC,Adult Social Care,Adult Social Care,Aidapt Bathrooms Ltd,27/07/2017,,388.93,Furniture & Equipment,321000 - Social Community Care Supplies & Services - Adult
Solihull MBC,Adult Social Care,Adult Social Care,Aidapt Bathrooms Ltd,27/07/2017,,287.28,Furniture & Equipment,321000 - Social Community Care Supplies & Services - Adult
Solihull MBC,Adult Social Care,Adult Social Care,Aidapt Bathrooms Ltd,28/07/2017,,245.64,Furniture & Equipment,321000 - Social Community Care Supplies & Services - Adult
Solihull MBC,Adult Social Care,Adult Social Care,Aidapt Bathrooms Ltd,31/07/2017,,226.80,Furniture & Equipment,321000 - Social Community Care Supplies & Services - Adult
Solihull MBC,Adult Social Care,Adult Social Care,Aidapt Bathrooms Ltd,31/07/2017,,283.86,Furniture & Equipment,321000 - Social Community Care Supplies & Services - Adult
Solihull MBC,Adult Social Care,Adult Social Care,Aidapt Bathrooms Ltd,31/07/2017,,43.26,Furniture & Equipment,321000 - Social Community Care Supplies & Services - Adult
Solihull MBC,Adult Social Care,Adult Social Care,Aidapt Bathrooms Ltd,31/07/2017,,113.82,Furniture & Equipment,321000 - Social Community Care Supplies & Services - Adult
Solihull MBC,Adult Social Care,Adult Social Care,Aidapt Bathrooms Ltd,31/07/2017,,134.82,Furniture & Equipment,321000 - Social Community Care Supplies & Services - Adult
Solihull MBC,Adult Social Care,Adult Social Care,Aidapt Bathrooms Ltd,31/07/2017,,-0.42,Furniture & Equipment,321000 - Social Community Care Supplies & Services - Adult
Solihull MBC,Adult Social Care,Adult Social Care,Aidapt Bathrooms Ltd,31/07/2017,,600.00,Furniture & Equipment,321000 - Social Community Care Supplies & Services - Adult
Solihull MBC,Children's Services & Skills,Children & Education Services,Aim Project,12/07/2017,,1887.59,Training,321100 - Social Community Care Supplies & Services - Children
Solihull MBC,Resources,Central Services to the Public,AIT Partnership Group Ltd,07/07/2017,,4825.00,IT Equipment & Software,Not Yet Classified
Solihull MBC,Adult Social Care,Adult Social Care,Akari Care Ltd,25/07/2017,,1291.89,ASC - Residential Care Permanent,Not Yet Classified
Solihull MBC,Adult Social Care,Adult Social Care,Akari Care Ltd,25/07/2017,,1903.84,ASC - Residential Care Permanent,Not Yet Classified
Solihull MBC,Adult Social Care,Adult Social Care,Akari Care Ltd,25/07/2017,,2181.28,ASC - Nursing Care Permanent,Not Yet Classified
Solihull MBC,Children's Services & Skills,Children & Education Services,Alere Toxicology,13/07/2017,,527.00,Professional Fees,Not Yet Classified
Solihull MBC,Children's Services & Skills,Children & Education Services,Alere Toxicology,11/07/2017,,122.00,Professional Fees,Not Yet Classified
Solihull MBC,Children's Services & Skills,Children & Education Services,Alere Toxicology,11/07/2017,,122.00,Professional Fees,Not Yet Classified
Solihull MBC,Children's Services & Skills,Children & Education Services,Alere Toxicology,11/07/2017,,121.00,Professional Fees,Not Yet Classified
Solihull MBC,Adult Social Care,Adult Social Care,Alexandra House - SJMT,13/07/2017,,1903.72,ASC - Residential Care Permanent,Not Yet Classified
Solihull MBC,Adult Social Care,Adult Social Care,Alexandra House - SJMT,13/07/2017,,2080.12,ASC - Residential Care Permanent,Not Yet Classified
Solihull MBC,Adult Social Care,Adult Social Care,Alexandra House - SJMT,13/07/2017,,1745.48,ASC - Residential Care Permanent,Not Yet Classified
Solihull MBC,Adult Social Care,Adult Social Care,Alexandra House - SJMT,13/07/2017,,2196.60,ASC - Residential Care Permanent,Not Yet Classified
Solihull MBC,Adult Social Care,Adult Social Care,Alexandra House - SJMT,18/07/2017,,-297.17,ASC - Residential Care Permanent,Not Yet Classified
Solihull MBC,Adult Social Care,Adult Social Care,Alexandra House - SJMT,18/07/2017,,-520.03,ASC - Residential Care Permanent,Not Yet Classified
Solihull MBC,Adult Social Care,Adult Social Care,Alexandra House - SJMT,18/07/2017,,-1560.09,ASC - Residential Care Permanent,Not Yet Classified
Solihull MBC,Adult Social Care,Adult Social Care,Alexandra House - SJMT,18/07/2017,,-2080.12,ASC - Residential Care Permanent,Not Yet Classified
Solihull MBC,Adult Social Care,Adult Social Care,Alexandra House - SJMT,18/07/2017,,297.17,ASC - Residential Care Permanent,Not Yet Classified
Solihull MBC,Adult Social Care,Adult Social Care,Alexandra House - SJMT,18/07/2017,,2080.12,ASC - Residential Care Permanent,Not Yet Classified
Solihull MBC,Adult Social Care,Adult Social Care,Alexandra House - SJMT,18/07/2017,,2080.12,ASC - Residential Care Permanent,Not Yet Classified
Solihull MBC,Adult Social Care,Adult Social Care,Alexandra House - SJMT,13/07/2017,,2080.12,ASC - Residential Care Permanent,Not Yet Classified
Solihull MBC,Adult Social Care,Adult Social Care,Alexandra House - SJMT,13/07/2017,,2196.60,ASC - Residential Care Permanent,Not Yet Classified
Solihull MBC,Adult Social Care,Adult Social Care,Alexandra House - SJMT,21/07/2017,,1147.20,ASC - Residential Care Respite,Not Yet Classified
Solihull MBC,Adult Social Care,Adult Social Care,Alexandra House - SJMT,13/07/2017,,2080.12,ASC - Residential Care Permanent,Not Yet Classified
Solihull MBC,Adult Social Care,Adult Social Care,Alison Thorneywork,25/07/2017,,2375.72,ASC - Residential Care Permanent,321000 - Social Community Care Supplies & Services - Adult
Solihull MBC,Adult Social Care,Adult Social Care,Alison Thorneywork,25/07/2017,,2422.88,ASC - Residential Care Permanent,321000 - Social Community Care Supplies & Services - Adult
Solihull MBC,Adult Social Care,Adult Social Care,Allambie Court Nursing Home,28/07/2017,,2678.57,ASC - Nursing Care Permanent,Not Yet Classified
Solihull MBC,Adult Social Care,Adult Social Care,Allambie Court Nursing Home,25/07/2017,,3000.00,ASC - Nursing Care Permanent,Not Yet Classified
Solihull MBC,Adult Social Care,Adult Social Care,Allied Healthcare (UK) Ltd,07/07/2017,,297.00,ASC - Home Care Support Services,321000 - Social Community Care Supplies & Services - Adult
Solihull MBC,Adult Social Care,Adult Social Care,Allied Healthcare (UK) Ltd,07/07/2017,,330.00,ASC - Home Care Support Services,321000 - Social Community Care Supplies & Services - Adult
Solihull MBC,Adult Social Care,Adult Social Care,Allied Healthcare (UK) Ltd,07/07/2017,,317.65,ASC - Home Care Support Services,321000 - Social Community Care Supplies & Services - Adult
Solihull MBC,Public Health & Commissioning,Central Services to the Public,Allwag Promotions Ltd,03/07/2017,,332.50,General Office Expenses,Not Yet Classified
Solihull MBC,Public Health & Commissioning,Central Services to the Public,Allwag Promotions Ltd,25/07/2017,,15.00,Furniture & Equipment,Not Yet Classified
Solihull MBC,Public Health & Commissioning,Central Services to the Public,Allwag Promotions Ltd,25/07/2017,,740.00,Furniture & Equipment,Not Yet Classified
Solihull MBC,Public Health & Commissioning,Central Services to the Public,Allwag Promotions Ltd,03/07/2017,,321.50,Materials,Not Yet Classified
Solihull MBC,Adult Social Care,Adult Social Care,Alophonsus Services Ltd,25/07/2017,,10804.88,ASC - Residential Care Permanent,321000 - Social Community Care Supplies & Services - Adult
Solihull MBC,Adult Social Care,Adult Social Care,Alpha Health Care Ltd,28/07/2017,,2181.28,ASC - Nursing Care Permanent,321000 - Social Community Care Supplies & Services - Adult
Solihull MBC,Adult Social Care,Adult Social Care,Alpha Health Care Ltd,28/07/2017,,2181.28,ASC - Nursing Care Permanent,321000 - Social Community Care Supplies & Services - Adult
Solihull MBC,Adult Social Care,Adult Social Care,Alpha Health Care Ltd,18/07/2017,,-1402.17,ASC - Residential Care Permanent,321000 - Social Community Care Supplies & Services - Adult
Solihull MBC,Adult Social Care,Adult Social Care,Alpha Health Care Ltd,18/07/2017,,1402.17,ASC - Residential Care Permanent,321000 - Social Community Care Supplies & Services - Adult
Solihull MBC,Adult Social Care,Adult Social Care,Alpha Health Care Ltd,28/07/2017,,1869.56,ASC - Residential Care Permanent,321000 - Social Community Care Supplies & Services - Adult
Solihull MBC,Adult Social Care,Adult Social Care,Alpha Health Care Ltd,28/07/2017,,1869.56,ASC - Residential Care Permanent,321000 - Social Community Care Supplies & Services - Adult
Solihull MBC,Adult Social Care,Adult Social Care,Alphabet GB Ltd,17/07/2017,,2374.42,Transport-Contract Hire,Not Yet Classified
Solihull MBC,Children's Services & Skills,Children & Education Services,Altum Residential Care Ltd,10/07/2017,,17914.28,Other Contracted Services,Not Yet Classified
Solihull MBC,Children's Services & Skills,Children & Education Services,Altum Residential Care Ltd,10/07/2017,,12214.29,Other Contracted Services,Not Yet Classified
Solihull MBC,Children's Services & Skills,Children & Education Services,Altum Residential Care Ltd,10/07/2017,,23785.72,Other Contracted Services,Not Yet Classified
Solihull MBC,Resources,Central Services to the Public,Amazon UK Marketplace,24/07/2017,Card Transaction,475.10,Purchase Card Statement Summary,161000 - Domestic Goods - Commercial
Solihull MBC,Adult Social Care,Adult Social Care,Amberley Court Nursing Home,04/07/2017,,4000.00,ASC - Nursing Care Permanent,321000 - Social Community Care Supplies & Services - Adult
Solihull MBC,Adult Social Care,Adult Social Care,Amberley Court Nursing Home,26/07/2017,,4000.00,ASC - Nursing Care Permanent,321000 - Social Community Care Supplies & Services - Adult
Solihull MBC,Resources,Central Services to the Public,AMF Consultants,06/07/2017,,360.00,Professional Fees,Not Yet Classified
Solihull MBC,Resources,Central Services to the Public,AMF Consultants,06/07/2017,,720.00,Professional Fees,Not Yet Classified
Solihull MBC,Managed Growth and Communities,Planning & Development Services,Amion Consulting,07/07/2017,,4450.00,Professional Fees,Not Yet Classified
Solihull MBC,Managed Growth and Communities,Planning & Development Services,Amion Consulting,07/07/2017,,650.00,Professional Fees,Not Yet Classified
Solihull MBC,Managed Growth and Communities,Planning & Development Services,Amion Consulting,07/07/2017,,725.00,Professional Fees,Not Yet Classified
Solihull MBC,Managed Growth and Communities,Planning & Development Services,Amion Consulting,07/07/2017,,1460.00,Professional Fees,Not Yet Classified
Solihull MBC,Adult Social Care,Adult Social Care,Anchor Homes - Kerria Court,07/07/2017,,2146.00,ASC - Residential Care Permanent,Not Yet Classified
Solihull MBC,Adult Social Care,Adult Social Care,Angel Springs Ltd,27/07/2017,,555.68,Other Premise Costs,171100 - Education - Supplies
Solihull MBC,Adult Social Care,Adult Social Care,Angel Springs Ltd,07/07/2017,,692.21,Repair & Maintn Of Buildings,171100 - Education - Supplies
Solihull MBC,Children's Services & Skills,Children & Education Services,Angel Springs Ltd,31/07/2017,,538.50,Water,171100 - Education - Supplies
Solihull MBC,Adult Social Care,Adult Social Care,Angels Healthcare Ltd,07/07/2017,,1676.68,ASC - Home Care Support Services,321000 - Social Community Care Supplies & Services - Adult
Solihull MBC,Adult Social Care,Adult Social Care,Angels Healthcare Ltd,26/07/2017,,1676.68,ASC - Home Care Support Services,321000 - Social Community Care Supplies & Services - Adult
Solihull MBC,Adult Social Care,Adult Social Care,Angels Healthcare Ltd,07/07/2017,,1496.32,ASC - Home Care Support Services,321000 - Social Community Care Supplies & Services - Adult
Solihull MBC,Adult Social Care,Adult Social Care,Angels Healthcare Ltd,26/07/2017,,1496.32,ASC - Home Care Support Services,321000 - Social Community Care Supplies & Services - Adult
Solihull MBC,Adult Social Care,Adult Social Care,Angels Healthcare Ltd,07/07/2017,,651.30,ASC - Home Care Support Services,321000 - Social Community Care Supplies & Services - Adult
Solihull MBC,Adult Social Care,Adult Social Care,Angels Healthcare Ltd,26/07/2017,,654.64,ASC - Home Care Support Services,321000 - Social Community Care Supplies & Services - Adult
Solihull MBC,Adult Social Care,Adult Social Care,Angels Healthcare Ltd,07/07/2017,,828.32,ASC - Home Care Support Services,321000 - Social Community Care Supplies & Services - Adult
Solihull MBC,Adult Social Care,Adult Social Care,Angels Healthcare Ltd,26/07/2017,,784.90,ASC - Home Care Support Services,321000 - Social Community Care Supplies & Services - Adult
Solihull MBC,Adult Social Care,Adult Social Care,Angels Healthcare Ltd,07/07/2017,,748.16,ASC - Home Care Support Services,321000 - Social Community Care Supplies & Services - Adult
Solihull MBC,Adult Social Care,Adult Social Care,Angels Healthcare Ltd,26/07/2017,,731.46,ASC - Home Care Support Services,321000 - Social Community Care Supplies & Services - Adult
Solihull MBC,Adult Social Care,Adult Social Care,Angels Healthcare Ltd,07/07/2017,,1279.22,ASC - Home Care Support Services,321000 - Social Community Care Supplies & Services - Adult
Solihull MBC,Adult Social Care,Adult Social Care,Angels Healthcare Ltd,26/07/2017,,1342.68,ASC - Home Care Support Services,321000 - Social Community Care Supplies & Services - Adult
Solihull MBC,Adult Social Care,Adult Social Care,Angels Healthcare Ltd,07/07/2017,,417.50,ASC - Home Care Support Services,321000 - Social Community Care Supplies & Services - Adult
Solihull MBC,Adult Social Care,Adult Social Care,Angels Healthcare Ltd,07/07/2017,,320.64,ASC - Home Care Support Services,321000 - Social Community Care Supplies & Services - Adult
Solihull MBC,Adult Social Care,Adult Social Care,Angels Healthcare Ltd,26/07/2017,,711.42,ASC - Home Care Support Services,321000 - Social Community Care Supplies & Services - Adult
Solihull MBC,Adult Social Care,Adult Social Care,Angels Healthcare Ltd,07/07/2017,,374.08,ASC - Home Care Support Services,321000 - Social Community Care Supplies & Services - Adult
Solihull MBC,Adult Social Care,Adult Social Care,Angels Healthcare Ltd,26/07/2017,,374.08,ASC - Home Care Support Services,321000 - Social Community Care Supplies & Services - Adult
Solihull MBC,Adult Social Care,Adult Social Care,Angels Healthcare Ltd,26/07/2017,,277.22,ASC - Home Care Support Services,321000 - Social Community Care Supplies & Services - Adult
Solihull MBC,Adult Social Care,Adult Social Care,Angels Healthcare Ltd,07/07/2017,,386.40,ASC - Home Care Support Services,321000 - Social Community Care Supplies & Services - Adult
Solihull MBC,Adult Social Care,Adult Social Care,Angels Healthcare Ltd,26/07/2017,,276.00,ASC - Home Care Support Services,321000 - Social Community Care Supplies & Services - Adult
Solihull MBC,Adult Social Care,Adult Social Care,Angels Healthcare Ltd,07/07/2017,,1022.04,ASC - Home Care Support Services,321000 - Social Community Care Supplies & Services - Adult
Solihull MBC,Adult Social Care,Adult Social Care,Angels Healthcare Ltd,07/07/2017,,277.56,ASC - Domiciliary Care,321000 - Social Community Care Supplies & Services - Adult
Solihull MBC,Adult Social Care,Adult Social Care,Angels Healthcare Ltd,26/07/2017,,347.36,ASC - Home Care Support Services,321000 - Social Community Care Supplies & Services - Adult
Solihull MBC,Adult Social Care,Adult Social Care,Angels Healthcare Ltd,07/07/2017,,671.34,ASC - Home Care Support Services,321000 - Social Community Care Supplies & Services - Adult
Solihull MBC,Adult Social Care,Adult Social Care,Angels Healthcare Ltd,26/07/2017,,728.12,ASC - Home Care Support Services,321000 - Social Community Care Supplies & Services - Adult
Solihull MBC,Adult Social Care,Adult Social Care,Angels Healthcare Ltd,07/07/2017,,611.22,ASC - Home Care Support Services,321000 - Social Community Care Supplies & Services - Adult
Solihull MBC,Adult Social Care,Adult Social Care,Angels Healthcare Ltd,26/07/2017,,604.54,ASC - Home Care Support Services,321000 - Social Community Care Supplies & Services - Adult
Solihull MBC,Adult Social Care,Adult Social Care,Angels Healthcare Ltd,07/07/2017,,2484.96,ASC - Home Care Support Services,321000 - Social Community Care Supplies & Services - Adult
Solihull MBC,Adult Social Care,Adult Social Care,Angels Healthcare Ltd,26/07/2017,,1242.48,ASC - Home Care Support Services,321000 - Social Community Care Supplies & Services - Adult
Solihull MBC,Adult Social Care,Adult Social Care,Angels Healthcare Ltd,26/07/2017,,601.20,ASC - Home Care Support Services,321000 - Social Community Care Supplies & Services - Adult
Solihull MBC,Adult Social Care,Adult Social Care,Angels Healthcare Ltd,07/07/2017,,1122.24,ASC - Home Care Support Services,321000 - Social Community Care Supplies & Services - Adult
Solihull MBC,Adult Social Care,Adult Social Care,Angels Healthcare Ltd,07/07/2017,,347.36,ASC - Home Care Support Services,321000 - Social Community Care Supplies & Services - Adult
Solihull MBC,Adult Social Care,Adult Social Care,Angels Healthcare Ltd,07/07/2017,,320.64,ASC - Home Care Support Services,321000 - Social Community Care Supplies & Services - Adult
Solihull MBC,Adult Social Care,Adult Social Care,Angels Healthcare Ltd,07/07/2017,,1195.72,ASC - Home Care Support Services,321000 - Social Community Care Supplies & Services - Adult
Solihull MBC,Adult Social Care,Adult Social Care,Angels Healthcare Ltd,26/07/2017,,1673.34,ASC - Home Care Support Services,321000 - Social Community Care Supplies & Services - Adult
Solihull MBC,Adult Social Care,Adult Social Care,Angels Healthcare Ltd,07/07/2017,,1683.36,ASC - Home Care Support Services,321000 - Social Community Care Supplies & Services - Adult
Solihull MBC,Adult Social Care,Adult Social Care,Angels Healthcare Ltd,26/07/2017,,1670.00,ASC - Home Care Support Services,321000 - Social Community Care Supplies & Services - Adult
Solihull MBC,Adult Social Care,Adult Social Care,Angels Healthcare Ltd,18/07/2017,,-711.42,ASC - Home Care Support Services,321000 - Social Community Care Supplies & Services - Adult
Solihull MBC,Adult Social Care,Adult Social Care,Angels Healthcare Ltd,18/07/2017,,-1315.96,ASC - Home Care Support Services,321000 - Social Community Care Supplies & Services - Adult
Solihull MBC,Adult Social Care,Adult Social Care,Angels Healthcare Ltd,18/07/2017,,711.42,ASC - Home Care Support Services,321000 - Social Community Care Supplies & Services - Adult
Solihull MBC,Adult Social Care,Adult Social Care,Angels Healthcare Ltd,18/07/2017,,1068.80,ASC - Home Care Support Services,321000 - Social Community Care Supplies & Services - Adult
Solihull MBC,Adult Social Care,Adult Social Care,Angels Healthcare Ltd,07/07/2017,,253.84,ASC - Home Care Support Services,321000 - Social Community Care Supplies & Services - Adult
Solihull MBC,Adult Social Care,Adult Social Care,Angels Healthcare Ltd,07/07/2017,,374.08,ASC - Home Care Support Services,321000 - Social Community Care Supplies & Services - Adult
Solihull MBC,Adult Social Care,Adult Social Care,Angels Healthcare Ltd,26/07/2017,,374.08,ASC - Home Care Support Services,321000 - Social Community Care Supplies & Services - Adult
Solihull MBC,Adult Social Care,Adult Social Care,Angels Healthcare Ltd,26/07/2017,,714.76,ASC - Home Care Support Services,321000 - Social Community Care Supplies & Services - Adult
Solihull MBC,Adult Social Care,Adult Social Care,Angels Healthcare Ltd,07/07/2017,,1202.40,ASC - Home Care Support Services,321000 - Social Community Care Supplies & Services - Adult
Solihull MBC,Adult Social Care,Adult Social Care,Angels Healthcare Ltd,26/07/2017,,1519.70,ASC - Home Care Support Services,321000 - Social Community Care Supplies & Services - Adult
Solihull MBC,Adult Social Care,Adult Social Care,Angels Healthcare Ltd,07/07/2017,,928.52,ASC - Home Care Support Services,321000 - Social Community Care Supplies & Services - Adult
Solihull MBC,Adult Social Care,Adult Social Care,Angels Healthcare Ltd,26/07/2017,,674.68,ASC - Home Care Support Services,321000 - Social Community Care Supplies & Services - Adult
Solihull MBC,Adult Social Care,Adult Social Care,Angels Healthcare Ltd,07/07/2017,,320.64,ASC - Home Care Support Services,321000 - Social Community Care Supplies & Services - Adult
Solihull MBC,Adult Social Care,Adult Social Care,Anita Stone Court,11/07/2017,,2752.00,ASC - Residential Care Permanent,Not Yet Classified
Solihull MBC,Adult Social Care,Adult Social Care,Anita Stone Court,11/07/2017,,2752.00,ASC - Nursing Care Permanent,Not Yet Classified
Solihull MBC,Adult Social Care,Adult Social Care,Anita Stone Court,11/07/2017,,2892.00,ASC - Nursing Care Permanent,Not Yet Classified
Solihull MBC,Adult Social Care,Adult Social Care,Apetito Ltd,19/07/2017,,260.08,Catering Provisions,321000 - Social Community Care Supplies & Services - Adult
Solihull MBC,Adult Social Care,Adult Social Care,Apna Ghar(1995) Ltd,25/07/2017,,280.00,ASC - Day Care,321000 - Social Community Care Supplies & Services - Adult
Solihull MBC,Adult Social Care,Adult Social Care,Apna Ghar(1995) Ltd,25/07/2017,,280.00,ASC - Day Care,321000 - Social Community Care Supplies & Services - Adult
Solihull MBC,Children's Services & Skills,Children & Education Services,Applied Geology,10/07/2017,,3005.50,Consultants,150000 - Consultancy
Solihull MBC,Managed Growth and Communities,Environmental and Regulatory Services,Apse,19/07/2017,,1699.89,Training,261510 - Human Resources - Training & Conferences - Conferences
Solihull MBC,Children's Services - DSG Central.,Children & Education Services,Arden Academy Trust,13/07/2017,,96476.00,Other Contracted Services,Not Yet Classified
Solihull MBC,Resources,Central Services to the Public,Arden Chambers,04/07/2017,,293.55,Other Fees,Not Yet Classified
Solihull MBC,Resources,Central Services to the Public,Arden Chambers,31/07/2017,,750.00,Other Fees,Not Yet Classified
Solihull MBC,Children's Services & Skills,Children & Education Services,Argos Retail Group,24/07/2017,Card Transaction,239.93,Purchase Card Statement Summary,169999 - Domestic Goods - Not Elsewhere Classified
Solihull MBC,Public Health & Commissioning,Adult Social Care,Arran Medical Centre,21/07/2017,,928.20,Other Contracted Services,Not Yet Classified
Solihull MBC,Public Health & Commissioning,Adult Social Care,Arran Medical Centre,21/07/2017,,375.00,Other Contracted Services,Not Yet Classified
Solihull MBC,Public Health & Commissioning,Adult Social Care,Arran Medical Centre,21/07/2017,,1346.95,Other Contracted Services,Not Yet Classified
Solihull MBC,Children's Services - DSG Central.,Children & Education Services,Arrow County Supplies,05/07/2017,,133.62,Cleaning,130000 - Cleaning & Janitorial
Solihull MBC,Children's Services - DSG Central.,Children & Education Services,Arrow County Supplies,05/07/2017,,36.76,Cleaning,130000 - Cleaning & Janitorial
Solihull MBC,Children's Services - DSG Central.,Children & Education Services,Arrow County Supplies,05/07/2017,,9.20,Cleaning,130000 - Cleaning & Janitorial
Solihull MBC,Children's Services - DSG Central.,Children & Education Services,Arrow County Supplies,05/07/2017,,163.50,Cleaning,130000 - Cleaning & Janitorial
Solihull MBC,Children's Services - DSG Central.,Children & Education Services,Arrow County Supplies,05/07/2017,,135.60,Cleaning,130000 - Cleaning & Janitorial
Solihull MBC,Children's Services - DSG Central.,Children & Education Services,Arrow County Supplies,05/07/2017,,111.92,Cleaning,130000 - Cleaning & Janitorial
Solihull MBC,Children's Services - DSG Central.,Children & Education Services,Arrow County Supplies,05/07/2017,,230.40,Cleaning,130000 - Cleaning & Janitorial
Solihull MBC,Children's Services - DSG Central.,Children & Education Services,Arrow County Supplies,10/07/2017,,166.80,Cleaning,130000 - Cleaning & Janitorial
Solihull MBC,Children's Services - DSG Central.,Children & Education Services,Arrow County Supplies,10/07/2017,,69.95,Cleaning,130000 - Cleaning & Janitorial
Solihull MBC,Children's Services - DSG Central.,Children & Education Services,Arrow County Supplies,10/07/2017,,98.10,Cleaning,130000 - Cleaning & Janitorial
Solihull MBC,Children's Services - DSG Central.,Children & Education Services,Arrow County Supplies,10/07/2017,,259.20,Cleaning,130000 - Cleaning & Janitorial
Solihull MBC,Children's Services - DSG Central.,Children & Education Services,Arrow County Supplies,10/07/2017,,323.50,Cleaning,130000 - Cleaning & Janitorial
Solihull MBC,Children's Services - DSG Central.,Children & Education Services,Arrow County Supplies,10/07/2017,,92.40,Cleaning,130000 - Cleaning & Janitorial
Solihull MBC,Children's Services - DSG Central.,Children & Education Services,Arrow County Supplies,10/07/2017,,410.70,Cleaning,130000 - Cleaning & Janitorial
Solihull MBC,Children's Services - DSG Central.,Children & Education Services,Arrow County Supplies,10/07/2017,,68.40,Cleaning,130000 - Cleaning & Janitorial
Solihull MBC,Children's Services - DSG Central.,Children & Education Services,Arrow County Supplies,10/07/2017,,10.80,Cleaning,130000 - Cleaning & Janitorial
Solihull MBC,Children's Services - DSG Central.,Children & Education Services,Arrow County Supplies,10/07/2017,,58.00,Cleaning,130000 - Cleaning & Janitorial
Solihull MBC,Children's Services - DSG Central.,Children & Education Services,Arrow County Supplies,10/07/2017,,19.44,Cleaning,130000 - Cleaning & Janitorial
Solihull MBC,Children's Services - DSG Central.,Children & Education Services,Arrow County Supplies,10/07/2017,,90.75,Cleaning,130000 - Cleaning & Janitorial
Solihull MBC,Children's Services - DSG Central.,Children & Education Services,Arrow County Supplies,10/07/2017,,46.74,Cleaning,130000 - Cleaning & Janitorial
Solihull MBC,Children's Services - DSG Central.,Children & Education Services,Arrow County Supplies,10/07/2017,,25.68,Cleaning,130000 - Cleaning & Janitorial
Solihull MBC,Children's Services - DSG Central.,Children & Education Services,Arrow County Supplies,10/07/2017,,30.20,Cleaning,130000 - Cleaning & Janitorial
Solihull MBC,Children's Services - DSG Central.,Children & Education Services,Arrow County Supplies,10/07/2017,,148.80,Cleaning,130000 - Cleaning & Janitorial
Solihull MBC,Children's Services - DSG Central.,Children & Education Services,Arrow County Supplies,11/07/2017,,14.80,Cleaning,130000 - Cleaning & Janitorial
Solihull MBC,Children's Services - DSG Central.,Children & Education Services,Arrow County Supplies,11/07/2017,,27.90,Cleaning,130000 - Cleaning & Janitorial
Solihull MBC,Children's Services - DSG Central.,Children & Education Services,Arrow County Supplies,11/07/2017,,58.00,Cleaning,130000 - Cleaning & Janitorial
Solihull MBC,Children's Services - DSG Central.,Children & Education Services,Arrow County Supplies,11/07/2017,,205.35,Cleaning,130000 - Cleaning & Janitorial
Solihull MBC,Children's Services - DSG Central.,Children & Education Services,Arrow County Supplies,14/07/2017,,13.75,Cleaning,130000 - Cleaning & Janitorial
Solihull MBC,Children's Services - DSG Central.,Children & Education Services,Arrow County Supplies,14/07/2017,,7.95,Cleaning,130000 - Cleaning & Janitorial
Solihull MBC,Children's Services - DSG Central.,Children & Education Services,Arrow County Supplies,14/07/2017,,19.35,Cleaning,130000 - Cleaning & Janitorial
Solihull MBC,Children's Services - DSG Central.,Children & Education Services,Arrow County Supplies,14/07/2017,,59.94,Cleaning,130000 - Cleaning & Janitorial
Solihull MBC,Children's Services - DSG Central.,Children & Education Services,Arrow County Supplies,14/07/2017,,172.80,Cleaning,130000 - Cleaning & Janitorial
Solihull MBC,Children's Services - DSG Central.,Children & Education Services,Arrow County Supplies,14/07/2017,,172.80,Cleaning,130000 - Cleaning & Janitorial
Solihull MBC,Children's Services - DSG Central.,Children & Education Services,Arrow County Supplies,14/07/2017,,129.60,Cleaning,130000 - Cleaning & Janitorial
Solihull MBC,Children's Services - DSG Central.,Children & Education Services,Arrow County Supplies,14/07/2017,,31.92,Cleaning,130000 - Cleaning & Janitorial
Solihull MBC,Children's Services - DSG Central.,Children & Education Services,Arrow County Supplies,14/07/2017,,111.92,Cleaning,130000 - Cleaning & Janitorial
Solihull MBC,Children's Services - DSG Central.,Children & Education Services,Arrow County Supplies,14/07/2017,,67.70,Cleaning,130000 - Cleaning & Janitorial
Solihull MBC,Children's Services - DSG Central.,Children & Education Services,Arrow County Supplies,14/07/2017,,42.00,Cleaning,130000 - Cleaning & Janitorial
Solihull MBC,Children's Services - DSG Central.,Children & Education Services,Arrow County Supplies,14/07/2017,,18.90,Cleaning,130000 - Cleaning & Janitorial
Solihull MBC,Children's Services - DSG Central.,Children & Education Services,Arrow County Supplies,14/07/2017,,20.40,Cleaning,130000 - Cleaning & Janitorial
Solihull MBC,Children's Services - DSG Central.,Children & Education Services,Arrow County Supplies,14/07/2017,,273.80,Cleaning,130000 - Cleaning & Janitorial
Solihull MBC,Children's Services - DSG Central.,Children & Education Services,Arrow County Supplies,21/07/2017,,16.22,Cleaning,130000 - Cleaning & Janitorial
Solihull MBC,Children's Services - DSG Central.,Children & Education Services,Arrow County Supplies,21/07/2017,,288.00,Cleaning,130000 - Cleaning & Janitorial
Solihull MBC,Children's Services - DSG Central.,Children & Education Services,Arrow County Supplies,21/07/2017,,111.92,Cleaning,130000 - Cleaning & Janitorial
Solihull MBC,Children's Services - DSG Central.,Children & Education Services,Arrow County Supplies,21/07/2017,,115.20,Cleaning,130000 - Cleaning & Janitorial
Solihull MBC,Children's Services - DSG Central.,Children & Education Services,Arrow County Supplies,21/07/2017,,23.94,Cleaning,130000 - Cleaning & Janitorial
Solihull MBC,Children's Services - DSG Central.,Children & Education Services,Arrow County Supplies,21/07/2017,,81.24,Cleaning,130000 - Cleaning & Janitorial
Solihull MBC,Children's Services - DSG Central.,Children & Education Services,Arrow County Supplies,21/07/2017,,309.60,Cleaning,130000 - Cleaning & Janitorial
Solihull MBC,Children's Services - DSG Central.,Children & Education Services,Arrow County Supplies,21/07/2017,,163.50,Cleaning,130000 - Cleaning & Janitorial
Solihull MBC,Children's Services - DSG Central.,Children & Education Services,Arrow County Supplies,21/07/2017,,250.00,Cleaning,130000 - Cleaning & Janitorial
Solihull MBC,Children's Services - DSG Central.,Children & Education Services,Arrow County Supplies,21/07/2017,,92.40,Cleaning,130000 - Cleaning & Janitorial
Solihull MBC,Children's Services - DSG Central.,Children & Education Services,Arrow County Supplies,21/07/2017,,10.80,Cleaning,130000 - Cleaning & Janitorial
Solihull MBC,Children's Services - DSG Central.,Children & Education Services,Arrow County Supplies,21/07/2017,,44.64,Cleaning,130000 - Cleaning & Janitorial
Solihull MBC,Children's Services - DSG Central.,Children & Education Services,Arrow County Supplies,21/07/2017,,30.20,Cleaning,130000 - Cleaning & Janitorial
Solihull MBC,Children's Services - DSG Central.,Children & Education Services,Arrow County Supplies,21/07/2017,,8.80,Cleaning,130000 - Cleaning & Janitorial
Solihull MBC,Children's Services - DSG Central.,Children & Education Services,Arrow County Supplies,21/07/2017,,-2.40,Cleaning,130000 - Cleaning & Janitorial
Solihull MBC,Children's Services - DSG Central.,Children & Education Services,Arrow County Supplies,25/07/2017,,163.50,Cleaning,130000 - Cleaning & Janitorial
Solihull MBC,Children's Services - DSG Central.,Children & Education Services,Arrow County Supplies,25/07/2017,,194.40,Cleaning,130000 - Cleaning & Janitorial
Solihull MBC,Children's Services - DSG Central.,Children & Education Services,Arrow County Supplies,25/07/2017,,135.60,Cleaning,130000 - Cleaning & Janitorial
Solihull MBC,Children's Services - DSG Central.,Children & Education Services,Arrow County Supplies,25/07/2017,,23.60,Cleaning,130000 - Cleaning & Janitorial
Solihull MBC,Children's Services - DSG Central.,Children & Education Services,Arrow County Supplies,25/07/2017,,46.40,Cleaning,130000 - Cleaning & Janitorial
Solihull MBC,Children's Services - DSG Central.,Children & Education Services,Arrow County Supplies,25/07/2017,,13.75,Cleaning,130000 - Cleaning & Janitorial
Solihull MBC,Children's Services - DSG Central.,Children & Education Services,Arrow County Supplies,25/07/2017,,129.60,Cleaning,130000 - Cleaning & Janitorial
Solihull MBC,Children's Services - DSG Central.,Children & Education Services,Arrow County Supplies,25/07/2017,,4.40,Cleaning,130000 - Cleaning & Janitorial
Solihull MBC,Children's Services - DSG Central.,Children & Education Services,Arrow County Supplies,25/07/2017,,10.50,Cleaning,130000 - Cleaning & Janitorial
Solihull MBC,Resources,Children & Education Services,Arthur Brett Catering Ltd,03/07/2017,,288.80,Catering Provisions,110000 - Catering
Solihull MBC,Resources,Children & Education Services,Arthur Brett Catering Ltd,10/07/2017,,294.74,Catering Provisions,110000 - Catering
Solihull MBC,Resources,Children & Education Services,Arthur Brett Catering Ltd,17/07/2017,,344.91,Catering Provisions,110000 - Catering
Solihull MBC,Resources,Children & Education Services,Arthur Brett Catering Ltd,24/07/2017,,325.88,Catering Provisions,110000 - Catering
Solihull MBC,Resources,Children & Education Services,Arthur Brett Catering Ltd,24/07/2017,,305.84,Catering Provisions,110000 - Catering
Solihull MBC,Children's Services & Skills,Children & Education Services,Asda Stores 5881,24/07/2017,Card Transaction,300.00,Purchase Card Statement Summary,161000 - Domestic Goods - Commercial
Solihull MBC,Adult Social Care,Adult Social Care,Ashdale Care Homes Ltd,13/07/2017,,2880.00,ASC - Residential Care Permanent,321000 - Social Community Care Supplies & Services - Adult
Solihull MBC,Adult Social Care,Cultural & Related Services,Askews Library Services Ltd,03/07/2017,,1000.00,Materials,170000 - Education
Solihull MBC,Adult Social Care,Cultural & Related Services,Askews Library Services Ltd,03/07/2017,,8778.99,Materials,170000 - Education
Solihull MBC,Adult Social Care,Cultural & Related Services,Askews Library Services Ltd,04/07/2017,,3581.09,Materials,170000 - Education
Solihull MBC,Adult Social Care,Cultural & Related Services,Askews Library Services Ltd,19/07/2017,,1509.75,Materials,170000 - Education
Solihull MBC,Adult Social Care,Cultural & Related Services,Askews Library Services Ltd,25/07/2017,,2746.56,Materials,170000 - Education
Solihull MBC,Adult Social Care,Cultural & Related Services,Askews Library Services Ltd,26/07/2017,,1379.41,Materials,170000 - Education
Solihull MBC,Adult Social Care,Adult Social Care,Aspects Care Ltd,19/07/2017,,2582.00,ASC - Direct Payments,Not Yet Classified
Solihull MBC,Adult Social Care,Adult Social Care,Aspects Care Ltd,19/07/2017,,-160.00,Fairer Charging - Client Income,Not Yet Classified
Solihull MBC,Adult Social Care,Adult Social Care,Aspects Care Ltd,13/07/2017,,636.96,ASC - Home Care Support Services,Not Yet Classified
Solihull MBC,Adult Social Care,Adult Social Care,Aspects Care Ltd,04/07/2017,,849.28,ASC - Home Care Support Services,Not Yet Classified
Solihull MBC,Adult Social Care,Adult Social Care,Aspects Care Ltd,28/07/2017,,849.28,ASC - Home Care Support Services,Not Yet Classified
Solihull MBC,Adult Social Care,Adult Social Care,Aspects Care Ltd,18/07/2017,,270.18,ASC - Home Care Support Services,Not Yet Classified
Solihull MBC,Adult Social Care,Adult Social Care,Aspects Care Ltd,18/07/2017,,1308.24,ASC - Home Care Support Services,Not Yet Classified
Solihull MBC,Adult Social Care,Adult Social Care,Aspects Care Ltd,18/07/2017,,341.28,ASC - Home Care Support Services,Not Yet Classified
Solihull MBC,Adult Social Care,Adult Social Care,Aspects Care Ltd,18/07/2017,,1023.84,ASC - Home Care Support Services,Not Yet Classified
Solihull MBC,Adult Social Care,Adult Social Care,Aspects Care Ltd,18/07/2017,,1365.12,ASC - Home Care Support Services,Not Yet Classified
Solihull MBC,Adult Social Care,Adult Social Care,Aspects Care Ltd,18/07/2017,,1365.12,ASC - Home Care Support Services,Not Yet Classified
Solihull MBC,Adult Social Care,Adult Social Care,Aspects Care Ltd,28/07/2017,,1365.12,ASC - Home Care Support Services,Not Yet Classified
Solihull MBC,Adult Social Care,Adult Social Care,Aspects Care Ltd,28/07/2017,,4127.60,ASC - Supported Living Care Costs,Not Yet Classified
Solihull MBC,Adult Social Care,Adult Social Care,Aspects Care Ltd,13/07/2017,,331.75,ASC - Home Care Support Services,Not Yet Classified
Solihull MBC,Adult Social Care,Adult Social Care,Aspects Care Ltd,13/07/2017,,995.25,ASC - Home Care Support Services,Not Yet Classified
Solihull MBC,Adult Social Care,Adult Social Care,Aspects Care Ltd,04/07/2017,,1327.00,ASC - Home Care Support Services,Not Yet Classified
Solihull MBC,Adult Social Care,Adult Social Care,Aspects Care Ltd,28/07/2017,,1327.00,ASC - Home Care Support Services,Not Yet Classified
Solihull MBC,Adult Social Care,Adult Social Care,Aspects Care Ltd,04/07/2017,,5001.24,ASC - Supported Living Care Costs,Not Yet Classified
Solihull MBC,Adult Social Care,Adult Social Care,Aspects Care Ltd,28/07/2017,,5001.24,ASC - Supported Living Care Costs,Not Yet Classified
Solihull MBC,Adult Social Care,Adult Social Care,Aspects Care Ltd,19/07/2017,,2300.80,ASC - Direct Payments,Not Yet Classified
Solihull MBC,Adult Social Care,Adult Social Care,Aspects Care Ltd,19/07/2017,,-60.56,Fairer Charging - Client Income,Not Yet Classified
Solihull MBC,Adult Social Care,Adult Social Care,Aspects Care Ltd,27/07/2017,,1706.40,ASC - Domiciliary Care,Not Yet Classified
Solihull MBC,Adult Social Care,Adult Social Care,Aspects Care Ltd,13/07/2017,,2388.96,ASC - Domiciliary Care,Not Yet Classified
Solihull MBC,Adult Social Care,Adult Social Care,Aspects Care Ltd,13/07/2017,,7166.88,ASC - Domiciliary Care,Not Yet Classified
Solihull MBC,Adult Social Care,Adult Social Care,Aspects Care Ltd,04/07/2017,,9555.84,ASC - Domiciliary Care,Not Yet Classified
Solihull MBC,Adult Social Care,Adult Social Care,Aspects Care Ltd,28/07/2017,,9555.84,ASC - Domiciliary Care,Not Yet Classified
Solihull MBC,Adult Social Care,Adult Social Care,Aspects Care Ltd,13/07/2017,,497.63,ASC - Home Care Support Services,Not Yet Classified
Solihull MBC,Adult Social Care,Adult Social Care,Aspects Care Ltd,04/07/2017,,663.52,ASC - Home Care Support Services,Not Yet Classified
Solihull MBC,Adult Social Care,Adult Social Care,Aspects Care Ltd,28/07/2017,,663.50,ASC - Home Care Support Services,Not Yet Classified
Solihull MBC,Adult Social Care,Adult Social Care,Aspects Care Ltd,19/07/2017,,1562.16,ASC - Direct Payments,Not Yet Classified
Solihull MBC,Adult Social Care,Adult Social Care,Aspects Care Ltd,13/07/2017,,966.96,ASC - Domiciliary Care,Not Yet Classified
Solihull MBC,Adult Social Care,Adult Social Care,Aspects Care Ltd,13/07/2017,,2900.88,ASC - Domiciliary Care,Not Yet Classified
Solihull MBC,Adult Social Care,Adult Social Care,Aspects Care Ltd,04/07/2017,,3867.84,ASC - Domiciliary Care,Not Yet Classified
Solihull MBC,Adult Social Care,Adult Social Care,Aspects Care Ltd,28/07/2017,,3867.84,ASC - Domiciliary Care,Not Yet Classified
Solihull MBC,Adult Social Care,Adult Social Care,Aspects Care Ltd,13/07/2017,,338.39,ASC - Home Care Support Services,Not Yet Classified
Solihull MBC,Adult Social Care,Adult Social Care,Aspects Care Ltd,13/07/2017,,1015.16,ASC - Home Care Support Services,Not Yet Classified
Solihull MBC,Adult Social Care,Adult Social Care,Aspects Care Ltd,04/07/2017,,1353.56,ASC - Home Care Support Services,Not Yet Classified
Solihull MBC,Adult Social Care,Adult Social Care,Aspects Care Ltd,28/07/2017,,1353.54,ASC - Home Care Support Services,Not Yet Classified
Solihull MBC,Adult Social Care,Adult Social Care,Aspects Care Ltd,12/07/2017,,557.34,ASC - Home Care Support Services,Not Yet Classified
Solihull MBC,Adult Social Care,Adult Social Care,Aspects Care Ltd,04/07/2017,,743.12,ASC - Home Care Support Services,Not Yet Classified
Solihull MBC,Adult Social Care,Adult Social Care,Aspects Care Ltd,28/07/2017,,743.12,ASC - Home Care Support Services,Not Yet Classified
Solihull MBC,Adult Social Care,Adult Social Care,Aspects Care Ltd,12/07/2017,,676.77,ASC - Home Care Support Services,Not Yet Classified
Solihull MBC,Adult Social Care,Adult Social Care,Aspects Care Ltd,04/07/2017,,902.36,ASC - Home Care Support Services,Not Yet Classified
Solihull MBC,Adult Social Care,Adult Social Care,Aspects Care Ltd,28/07/2017,,902.36,ASC - Home Care Support Services,Not Yet Classified
Solihull MBC,Adult Social Care,Adult Social Care,Aspects Care Ltd,13/07/2017,,636.96,ASC - Home Care Support Services,Not Yet Classified
Solihull MBC,Adult Social Care,Adult Social Care,Aspects Care Ltd,04/07/2017,,849.28,ASC - Home Care Support Services,Not Yet Classified
Solihull MBC,Adult Social Care,Adult Social Care,Aspects Care Ltd,28/07/2017,,849.28,ASC - Home Care Support Services,Not Yet Classified
Solihull MBC,Adult Social Care,Adult Social Care,Aspects Care Ltd,13/07/2017,,597.15,ASC - Home Care Support Services,Not Yet Classified
Solihull MBC,Adult Social Care,Adult Social Care,Aspects Care Ltd,04/07/2017,,796.20,ASC - Home Care Support Services,Not Yet Classified
Solihull MBC,Adult Social Care,Adult Social Care,Aspects Care Ltd,28/07/2017,,796.20,ASC - Home Care Support Services,Not Yet Classified
Solihull MBC,Adult Social Care,Adult Social Care,Aspects Care Ltd,13/07/2017,,278.06,ASC - Supported Living Care Costs,Not Yet Classified
Solihull MBC,Adult Social Care,Adult Social Care,Aspects Care Ltd,13/07/2017,,834.18,ASC - Supported Living Care Costs,Not Yet Classified
Solihull MBC,Adult Social Care,Adult Social Care,Aspects Care Ltd,04/07/2017,,1112.24,ASC - Supported Living Care Costs,Not Yet Classified
Solihull MBC,Adult Social Care,Adult Social Care,Aspects Care Ltd,28/07/2017,,1112.24,ASC - Supported Living Care Costs,Not Yet Classified
Solihull MBC,Adult Social Care,Adult Social Care,Aspects Care Ltd,13/07/2017,,351.66,ASC - Home Care Support Services,Not Yet Classified
Solihull MBC,Adult Social Care,Adult Social Care,Aspects Care Ltd,13/07/2017,,1054.97,ASC - Home Care Support Services,Not Yet Classified
Solihull MBC,Adult Social Care,Adult Social Care,Aspects Care Ltd,04/07/2017,,1406.64,ASC - Home Care Support Services,Not Yet Classified
Solihull MBC,Adult Social Care,Adult Social Care,Aspects Care Ltd,28/07/2017,,1406.62,ASC - Home Care Support Services,Not Yet Classified
Solihull MBC,Adult Social Care,Adult Social Care,Aspects Care Ltd,19/07/2017,,4433.56,ASC - Direct Payments,Not Yet Classified
Solihull MBC,Adult Social Care,Adult Social Care,Aspects Care Ltd,19/07/2017,,-3.00,Fairer Charging - Client Income,Not Yet Classified
Solihull MBC,Adult Social Care,Adult Social Care,Aspects Care Ltd,27/07/2017,,741.47,ASC - Home Care Support Services,Not Yet Classified
Solihull MBC,Adult Social Care,Adult Social Care,Aspects Care Ltd,19/07/2017,,2634.60,ASC - Direct Payments,Not Yet Classified
Solihull MBC,Adult Social Care,Adult Social Care,Aspects Care Ltd,27/07/2017,,284.36,ASC - Home Care Support Services,Not Yet Classified
Solihull MBC,Adult Social Care,Adult Social Care,Aspects Care Ltd,13/07/2017,,398.10,ASC - Home Care Support Services,Not Yet Classified
Solihull MBC,Adult Social Care,Adult Social Care,Aspects Care Ltd,13/07/2017,,1194.30,ASC - Home Care Support Services,Not Yet Classified
Solihull MBC,Adult Social Care,Adult Social Care,Aspects Care Ltd,04/07/2017,,1592.40,ASC - Home Care Support Services,Not Yet Classified
Solihull MBC,Adult Social Care,Adult Social Care,Aspects Care Ltd,28/07/2017,,1592.40,ASC - Home Care Support Services,Not Yet Classified
Solihull MBC,Adult Social Care,Adult Social Care,Aspects Care Ltd,13/07/2017,,278.67,ASC - Home Care Support Services,Not Yet Classified
Solihull MBC,Adult Social Care,Adult Social Care,Aspects Care Ltd,13/07/2017,,836.01,ASC - Home Care Support Services,Not Yet Classified
Solihull MBC,Adult Social Care,Adult Social Care,Aspects Care Ltd,04/07/2017,,1114.68,ASC - Home Care Support Services,Not Yet Classified
Solihull MBC,Adult Social Care,Adult Social Care,Aspects Care Ltd,28/07/2017,,1114.68,ASC - Home Care Support Services,Not Yet Classified
Solihull MBC,Adult Social Care,Adult Social Care,Aspects Care Ltd,28/07/2017,,3478.80,ASC - Supported Living Care Costs,Not Yet Classified
Solihull MBC,Adult Social Care,Adult Social Care,Aspects Care Ltd,28/07/2017,,695.08,ASC - Home Care Support Services,Not Yet Classified
Solihull MBC,Adult Social Care,Adult Social Care,Aspects Care Ltd,28/07/2017,,627.00,ASC - Home Care Support Services,Not Yet Classified
Solihull MBC,Adult Social Care,Adult Social Care,Aspects Care Ltd,28/07/2017,,836.00,ASC - Home Care Support Services,Not Yet Classified
Solihull MBC,Adult Social Care,Adult Social Care,Aspects Care Ltd,28/07/2017,,836.00,ASC - Home Care Support Services,Not Yet Classified
Solihull MBC,Adult Social Care,Adult Social Care,Aspects Care Ltd,28/07/2017,,836.00,ASC - Home Care Support Services,Not Yet Classified
Solihull MBC,Adult Social Care,Adult Social Care,Aspects Care Ltd,28/07/2017,,6581.64,ASC - Supported Living Care Costs,Not Yet Classified
Solihull MBC,Adult Social Care,Adult Social Care,Aspects Care Ltd,28/07/2017,,4268.72,ASC - Supported Living Care Costs,Not Yet Classified
Solihull MBC,Children's Services - DSG Central.,Children & Education Services,Asquith Court Nursery,10/07/2017,,702.00,Grant & Subscription (SCITT),321100 - Social Community Care Supplies & Services - Children
Solihull MBC,Public Health & Commissioning,Adult Social Care,Association Of Directors Of Public Health (UK),12/07/2017,,2200.00,Other Contracted Services,Not Yet Classified
Solihull MBC,Managed Growth and Communities,Highways & Transport Services,Atkins,14/07/2017,,10102.20,Agency Staff,150000 - Consultancy
Solihull MBC,Managed Growth and Communities,Highways & Transport Services,Atkins,03/07/2017,,5411.52,Agency Staff,150000 - Consultancy
Solihull MBC,Managed Growth and Communities,Highways & Transport Services,Atkins,07/07/2017,,2179.64,Agency Staff,150000 - Consultancy
Solihull MBC,Managed Growth and Communities,Highways & Transport Services,Atkins,05/07/2017,,2389.00,Contractors,150000 - Consultancy
Solihull MBC,Managed Growth and Communities,Highways & Transport Services,Atkins,05/07/2017,,26644.89,Consultants,150000 - Consultancy
Solihull MBC,Managed Growth and Communities,Highways & Transport Services,Atkins Ltd,25/07/2017,,6745.00,Consultants,150000 - Consultancy
Solihull MBC,Resources,Other Housing Services,Auriga Services Ltd,07/07/2017,,2136.20,Clients Expenses,Not Yet Classified
Solihull MBC,Resources,Other Housing Services,Auriga Services Ltd,07/07/2017,,-1068.10,Clients Expenses,Not Yet Classified
Solihull MBC,Adult Social Care,Adult Social Care,Autism West Midlands,14/07/2017,,5874.24,ASC - Residential Care Permanent,321000 - Social Community Care Supplies & Services - Adult
Solihull MBC,Resources,Central Services to the Public,Autism West Midlands,19/07/2017,,525.00,Training,321000 - Social Community Care Supplies & Services - Adult
Solihull MBC,Adult Social Care,Adult Social Care,Autism West Midlands,14/07/2017,,528.84,ASC - Home Care Support Services,321000 - Social Community Care Supplies & Services - Adult
Solihull MBC,Adult Social Care,Adult Social Care,Autism West Midlands,14/07/2017,,293.80,ASC - Home Care Support Services,321000 - Social Community Care Supplies & Services - Adult
Solihull MBC,Adult Social Care,Adult Social Care,Autism West Midlands,14/07/2017,,6266.04,ASC - Residential Care Permanent,321000 - Social Community Care Supplies & Services - Adult
Solihull MBC,Adult Social Care,Adult Social Care,Autism West Midlands,14/07/2017,,9816.80,ASC - Residential Care Permanent,321000 - Social Community Care Supplies & Services - Adult
Solihull MBC,Adult Social Care,Adult Social Care,Autism West Midlands,14/07/2017,,6337.36,ASC - Residential Care Permanent,321000 - Social Community Care Supplies & Services - Adult
Solihull MBC,Adult Social Care,Adult Social Care,Autism West Midlands,14/07/2017,,2875.32,ASC - Domiciliary Care,321000 - Social Community Care Supplies & Services - Adult
Solihull MBC,Adult Social Care,Adult Social Care,Autism West Midlands,14/07/2017,,4409.04,ASC - Residential Care Permanent,321000 - Social Community Care Supplies & Services - Adult
Solihull MBC,Managed Growth and Communities,Highways & Transport Services,Automotive Leasing (Orders),07/07/2017,,236.78,Transport-Contract Hire,360000 - Public Transport
Solihull MBC,Managed Growth and Communities,Highways & Transport Services,Automotive Leasing (Orders),07/07/2017,,236.78,Transport-Contract Hire,360000 - Public Transport
Solihull MBC,Managed Growth and Communities,Highways & Transport Services,Automotive Leasing (Orders),06/07/2017,,236.78,Transport-Contract Hire,360000 - Public Transport
Solihull MBC,Managed Growth and Communities,Highways & Transport Services,Automotive Leasing (Orders),06/07/2017,,236.78,Transport-Contract Hire,360000 - Public Transport
Solihull MBC,Managed Growth and Communities,Highways & Transport Services,Automotive Leasing (Orders),11/07/2017,,210.80,Transport-Contract Hire,360000 - Public Transport
Solihull MBC,Managed Growth and Communities,Environmental and Regulatory Services,Automotive Leasing (Orders),07/07/2017,,386.68,Transport-Contract Hire,360000 - Public Transport
Solihull MBC,Adult Social Care,Cultural & Related Services,Automotive Leasing (Orders),25/07/2017,,210.70,Transport-Contract Hire,360000 - Public Transport
Solihull MBC,Adult Social Care,Cultural & Related Services,Automotive Leasing (Orders),25/07/2017,,318.57,Transport-Contract Hire,360000 - Public Transport
Solihull MBC,Resources,Central Services to the Public,Automotive Leasing (Orders),25/07/2017,,211.54,Transport-Contract Hire,360000 - Public Transport
Solihull MBC,Adult Social Care,Adult Social Care,Auxilio Care Ltd,11/07/2017,,7475.68,ASC - Supported Living Care Costs,Not Yet Classified
Solihull MBC,Adult Social Care,Adult Social Care,Auxilio Care Ltd,11/07/2017,,4464.00,ASC - Supported Living Care Costs,Not Yet Classified
Solihull MBC,Adult Social Care,Adult Social Care,Auxilio Care Ltd,11/07/2017,,5194.00,ASC - Supported Living Care Costs,Not Yet Classified
Solihull MBC,Adult Social Care,Adult Social Care,Auxilio Care Ltd,11/07/2017,,4764.48,ASC - Supported Living Care Costs,Not Yet Classified
Solihull MBC,Adult Social Care,Adult Social Care,Auxilio Care Ltd,11/07/2017,,3738.00,ASC - Supported Living Care Costs,Not Yet Classified
Solihull MBC,Adult Social Care,Adult Social Care,Auxilio Care Ltd,11/07/2017,,9506.00,ASC - Supported Living Care Costs,Not Yet Classified
Solihull MBC,Adult Social Care,Adult Social Care,Auxilio Care Ltd,11/07/2017,,7154.00,ASC - Supported Living Care Costs,Not Yet Classified
Solihull MBC,Adult Social Care,Adult Social Care,Avery Homes Scholars Nelson,12/07/2017,,392.26,ASC - Residential Care Permanent,Not Yet Classified
Solihull MBC,Adult Social Care,Adult Social Care,Avery Homes Scholars Nelson,18/07/2017,,-392.26,ASC - Residential Care Permanent,Not Yet Classified
Solihull MBC,Adult Social Care,Adult Social Care,Avery Homes Scholars Nelson,18/07/2017,,392.26,ASC - Residential Care Permanent,Not Yet Classified
Solihull MBC,Resources - Non Monitored,Central Services to the Public,Avignon Management Ltd,06/07/2017,,-11666.67,Professional Fees,Not Yet Classified
Solihull MBC,Adult Social Care,Adult Social Care,Badenoch & Clark,26/07/2017,,3550.00,Interim Management,171011 - Education - School Services
Solihull MBC,Adult Social Care,Adult Social Care,Badenoch & Clark,19/07/2017,,3550.00,Interim Management,171011 - Education - School Services
Solihull MBC,Adult Social Care,Adult Social Care,Badenoch & Clark,19/07/2017,,1775.00,Interim Management,171011 - Education - School Services
Solihull MBC,Adult Social Care,Adult Social Care,Badenoch & Clark,26/07/2017,,3195.00,Interim Management,171011 - Education - School Services
Solihull MBC,Adult Social Care,Adult Social Care,Badenoch & Clark,26/07/2017,,3195.00,Interim Management,171011 - Education - School Services
Solihull MBC,Managed Growth and Communities,Highways & Transport Services,Balfour Beatty Living Places Ltd,21/07/2017,,426.71,Other Contracted Services,"391400 - Works - Construction, Repair & Maintenance"
Solihull MBC,Managed Growth and Communities,Highways & Transport Services,Balfour Beatty Living Places Ltd,21/07/2017,,223.20,Other Contracted Services,"391400 - Works - Construction, Repair & Maintenance"
Solihull MBC,Managed Growth and Communities,Highways & Transport Services,Balfour Beatty Living Places Ltd,21/07/2017,,6.07,Other Contracted Services,"391400 - Works - Construction, Repair & Maintenance"
Solihull MBC,Managed Growth and Communities,Cultural & Related Services,Balfour Beatty Living Places Ltd,21/07/2017,,100.00,Other Contracted Services,"391400 - Works - Construction, Repair & Maintenance"
Solihull MBC,Managed Growth and Communities,Highways & Transport Services,Balfour Beatty Living Places Ltd,21/07/2017,,7.07,Other Contracted Services,"391400 - Works - Construction, Repair & Maintenance"
Solihull MBC,Managed Growth and Communities,Highways & Transport Services,Balfour Beatty Living Places Ltd,21/07/2017,,194.29,Other Contracted Services,"391400 - Works - Construction, Repair & Maintenance"
Solihull MBC,Managed Growth and Communities,Highways & Transport Services,Balfour Beatty Living Places Ltd,21/07/2017,,152.84,Other Contracted Services,"391400 - Works - Construction, Repair & Maintenance"
Solihull MBC,Managed Growth and Communities,Highways & Transport Services,Balfour Beatty Living Places Ltd,21/07/2017,,97.96,Other Contracted Services,"391400 - Works - Construction, Repair & Maintenance"
Solihull MBC,Managed Growth and Communities,Highways & Transport Services,Balfour Beatty Living Places Ltd,21/07/2017,,22.50,Other Contracted Services,"391400 - Works - Construction, Repair & Maintenance"
Solihull MBC,Managed Growth and Communities,Highways & Transport Services,Balfour Beatty Living Places Ltd,21/07/2017,,6797.18,Contractors,"391400 - Works - Construction, Repair & Maintenance"
Solihull MBC,Managed Growth and Communities,Highways & Transport Services,Balfour Beatty Living Places Ltd,21/07/2017,,54180.08,Contractors,"391400 - Works - Construction, Repair & Maintenance"
Solihull MBC,Managed Growth and Communities,Highways & Transport Services,Balfour Beatty Living Places Ltd,21/07/2017,,10.96,Other Contracted Services,"391400 - Works - Construction, Repair & Maintenance"
Solihull MBC,Managed Growth and Communities,Highways & Transport Services,Balfour Beatty Living Places Ltd,21/07/2017,,401.44,Other Contracted Services,"391400 - Works - Construction, Repair & Maintenance"
Solihull MBC,Managed Growth and Communities,Highways & Transport Services,Balfour Beatty Living Places Ltd,21/07/2017,,451.63,Other Contracted Services,"391400 - Works - Construction, Repair & Maintenance"
Solihull MBC,Managed Growth and Communities,Highways & Transport Services,Balfour Beatty Living Places Ltd,21/07/2017,,431.15,Other Contracted Services,"391400 - Works - Construction, Repair & Maintenance"
Solihull MBC,Managed Growth and Communities,Highways & Transport Services,Balfour Beatty Living Places Ltd,21/07/2017,,1339.93,Other Contracted Services,"391400 - Works - Construction, Repair & Maintenance"
Solihull MBC,Managed Growth and Communities,Highways & Transport Services,Balfour Beatty Living Places Ltd,21/07/2017,,10.96,Other Contracted Services,"391400 - Works - Construction, Repair & Maintenance"
Solihull MBC,Managed Growth and Communities,Highways & Transport Services,Balfour Beatty Living Places Ltd,21/07/2017,,223.20,Other Contracted Services,"391400 - Works - Construction, Repair & Maintenance"
Solihull MBC,Managed Growth and Communities,Highways & Transport Services,Balfour Beatty Living Places Ltd,21/07/2017,,26.00,Other Contracted Services,"391400 - Works - Construction, Repair & Maintenance"
Solihull MBC,Managed Growth and Communities,Highways & Transport Services,Balfour Beatty Living Places Ltd,21/07/2017,,72.77,Other Contracted Services,"391400 - Works - Construction, Repair & Maintenance"
Solihull MBC,Managed Growth and Communities,Highways & Transport Services,Balfour Beatty Living Places Ltd,21/07/2017,,111.60,Other Contracted Services,"391400 - Works - Construction, Repair & Maintenance"
Solihull MBC,Managed Growth and Communities,Highways & Transport Services,Balfour Beatty Living Places Ltd,21/07/2017,,68961.44,Contractors,"391400 - Works - Construction, Repair & Maintenance"
Solihull MBC,Managed Growth and Communities,Highways & Transport Services,Balfour Beatty Living Places Ltd,21/07/2017,,6157.15,Contractors,"391400 - Works - Construction, Repair & Maintenance"
Solihull MBC,Managed Growth and Communities,Highways & Transport Services,Balfour Beatty Living Places Ltd,21/07/2017,,242.42,Other Contracted Services,"391400 - Works - Construction, Repair & Maintenance"
Solihull MBC,Managed Growth and Communities,Highways & Transport Services,Balfour Beatty Living Places Ltd,21/07/2017,,223.20,Other Contracted Services,"391400 - Works - Construction, Repair & Maintenance"
Solihull MBC,Managed Growth and Communities,Highways & Transport Services,Balfour Beatty Living Places Ltd,21/07/2017,,146.94,Other Contracted Services,"391400 - Works - Construction, Repair & Maintenance"
Solihull MBC,Managed Growth and Communities,Highways & Transport Services,Balfour Beatty Living Places Ltd,21/07/2017,,94.30,Other Contracted Services,"391400 - Works - Construction, Repair & Maintenance"
Solihull MBC,Managed Growth and Communities,Highways & Transport Services,Balfour Beatty Living Places Ltd,21/07/2017,,356.54,Other Contracted Services,"391400 - Works - Construction, Repair & Maintenance"
Solihull MBC,Managed Growth and Communities,Highways & Transport Services,Balfour Beatty Living Places Ltd,21/07/2017,,135120.48,Contractors,"391400 - Works - Construction, Repair & Maintenance"
Solihull MBC,Managed Growth and Communities,Highways & Transport Services,Balfour Beatty Living Places Ltd,21/07/2017,,105.68,Other Contracted Services,"391400 - Works - Construction, Repair & Maintenance"
Solihull MBC,Managed Growth and Communities,Cultural & Related Services,Balfour Beatty Living Places Ltd,21/07/2017,,882.49,Other Contracted Services,"391400 - Works - Construction, Repair & Maintenance"
Solihull MBC,Managed Growth and Communities,Highways & Transport Services,Balfour Beatty Living Places Ltd,21/07/2017,,71.89,Other Contracted Services,"391400 - Works - Construction, Repair & Maintenance"
Solihull MBC,Managed Growth and Communities,Highways & Transport Services,Balfour Beatty Living Places Ltd,21/07/2017,,143.78,Other Contracted Services,"391400 - Works - Construction, Repair & Maintenance"
Solihull MBC,Managed Growth and Communities,Highways & Transport Services,Balfour Beatty Living Places Ltd,21/07/2017,,71.89,Other Contracted Services,"391400 - Works - Construction, Repair & Maintenance"
Solihull MBC,Managed Growth and Communities,Highways & Transport Services,Balfour Beatty Living Places Ltd,21/07/2017,,46.60,Other Contracted Services,"391400 - Works - Construction, Repair & Maintenance"
Solihull MBC,Managed Growth and Communities,Highways & Transport Services,Balfour Beatty Living Places Ltd,21/07/2017,,51.66,Other Contracted Services,"391400 - Works - Construction, Repair & Maintenance"
Solihull MBC,Managed Growth and Communities,Highways & Transport Services,Balfour Beatty Living Places Ltd,21/07/2017,,287.56,Other Contracted Services,"391400 - Works - Construction, Repair & Maintenance"
Solihull MBC,Managed Growth and Communities,Highways & Transport Services,Balfour Beatty Living Places Ltd,21/07/2017,,93.20,Other Contracted Services,"391400 - Works - Construction, Repair & Maintenance"
Solihull MBC,Managed Growth and Communities,Highways & Transport Services,Balfour Beatty Living Places Ltd,21/07/2017,,71.89,Other Contracted Services,"391400 - Works - Construction, Repair & Maintenance"
Solihull MBC,Managed Growth and Communities,Highways & Transport Services,Balfour Beatty Living Places Ltd,21/07/2017,,71.89,Other Contracted Services,"391400 - Works - Construction, Repair & Maintenance"
Solihull MBC,Managed Growth and Communities,Highways & Transport Services,Balfour Beatty Living Places Ltd,21/07/2017,,221.67,Other Contracted Services,"391400 - Works - Construction, Repair & Maintenance"
Solihull MBC,Managed Growth and Communities,Highways & Transport Services,Balfour Beatty Living Places Ltd,21/07/2017,,147.57,Other Contracted Services,"391400 - Works - Construction, Repair & Maintenance"
Solihull MBC,Managed Growth and Communities,Highways & Transport Services,Balfour Beatty Living Places Ltd,21/07/2017,,116.06,Other Contracted Services,"391400 - Works - Construction, Repair & Maintenance"
Solihull MBC,Managed Growth and Communities,Highways & Transport Services,Balfour Beatty Living Places Ltd,21/07/2017,,56.29,Other Contracted Services,"391400 - Works - Construction, Repair & Maintenance"
Solihull MBC,Managed Growth and Communities,Highways & Transport Services,Balfour Beatty Living Places Ltd,21/07/2017,,116.06,Other Contracted Services,"391400 - Works - Construction, Repair & Maintenance"
Solihull MBC,Managed Growth and Communities,Highways & Transport Services,Balfour Beatty Living Places Ltd,21/07/2017,,143.78,Other Contracted Services,"391400 - Works - Construction, Repair & Maintenance"
Solihull MBC,Managed Growth and Communities,Highways & Transport Services,Balfour Beatty Living Places Ltd,21/07/2017,,170.37,Other Contracted Services,"391400 - Works - Construction, Repair & Maintenance"
Solihull MBC,Managed Growth and Communities,Highways & Transport Services,Balfour Beatty Living Places Ltd,21/07/2017,,66.04,Other Contracted Services,"391400 - Works - Construction, Repair & Maintenance"
Solihull MBC,Managed Growth and Communities,Highways & Transport Services,Balfour Beatty Living Places Ltd,21/07/2017,,56.29,Other Contracted Services,"391400 - Works - Construction, Repair & Maintenance"
Solihull MBC,Managed Growth and Communities,Highways & Transport Services,Balfour Beatty Living Places Ltd,21/07/2017,,151.69,Other Contracted Services,"391400 - Works - Construction, Repair & Maintenance"
Solihull MBC,Managed Growth and Communities,Highways & Transport Services,Balfour Beatty Living Places Ltd,21/07/2017,,35.00,Other Contracted Services,"391400 - Works - Construction, Repair & Maintenance"
Solihull MBC,Managed Growth and Communities,Highways & Transport Services,Balfour Beatty Living Places Ltd,21/07/2017,,95.68,Other Contracted Services,"391400 - Works - Construction, Repair & Maintenance"
Solihull MBC,Managed Growth and Communities,Highways & Transport Services,Balfour Beatty Living Places Ltd,21/07/2017,,46.60,Other Contracted Services,"391400 - Works - Construction, Repair & Maintenance"
Solihull MBC,Managed Growth and Communities,Highways & Transport Services,Balfour Beatty Living Places Ltd,21/07/2017,,23.30,Other Contracted Services,"391400 - Works - Construction, Repair & Maintenance"
Solihull MBC,Managed Growth and Communities,Highways & Transport Services,Balfour Beatty Living Places Ltd,21/07/2017,,145.23,Other Contracted Services,"391400 - Works - Construction, Repair & Maintenance"
Solihull MBC,Managed Growth and Communities,Highways & Transport Services,Balfour Beatty Living Places Ltd,21/07/2017,,9.96,Other Contracted Services,"391400 - Works - Construction, Repair & Maintenance"
Solihull MBC,Managed Growth and Communities,Highways & Transport Services,Balfour Beatty Living Places Ltd,21/07/2017,,69.90,Other Contracted Services,"391400 - Works - Construction, Repair & Maintenance"
Solihull MBC,Managed Growth and Communities,Highways & Transport Services,Balfour Beatty Living Places Ltd,21/07/2017,,1.00,Other Contracted Services,"391400 - Works - Construction, Repair & Maintenance"
Solihull MBC,Managed Growth and Communities,Highways & Transport Services,Balfour Beatty Living Places Ltd,21/07/2017,,206.40,Other Contracted Services,"391400 - Works - Construction, Repair & Maintenance"
Solihull MBC,Managed Growth and Communities,Highways & Transport Services,Balfour Beatty Living Places Ltd,21/07/2017,,107.02,Other Contracted Services,"391400 - Works - Construction, Repair & Maintenance"
Solihull MBC,Managed Growth and Communities,Highways & Transport Services,Balfour Beatty Living Places Ltd,21/07/2017,,29.89,Other Contracted Services,"391400 - Works - Construction, Repair & Maintenance"
Solihull MBC,Managed Growth and Communities,Highways & Transport Services,Balfour Beatty Living Places Ltd,21/07/2017,,19.93,Other Contracted Services,"391400 - Works - Construction, Repair & Maintenance"
Solihull MBC,Managed Growth and Communities,Highways & Transport Services,Balfour Beatty Living Places Ltd,21/07/2017,,46.60,Other Contracted Services,"391400 - Works - Construction, Repair & Maintenance"
Solihull MBC,Managed Growth and Communities,Highways & Transport Services,Balfour Beatty Living Places Ltd,21/07/2017,,95.19,Other Contracted Services,"391400 - Works - Construction, Repair & Maintenance"
Solihull MBC,Managed Growth and Communities,Highways & Transport Services,Balfour Beatty Living Places Ltd,21/07/2017,,116.06,Other Contracted Services,"391400 - Works - Construction, Repair & Maintenance"
Solihull MBC,Managed Growth and Communities,Highways & Transport Services,Balfour Beatty Living Places Ltd,21/07/2017,,9.96,Other Contracted Services,"391400 - Works - Construction, Repair & Maintenance"
Solihull MBC,Managed Growth and Communities,Highways & Transport Services,Balfour Beatty Living Places Ltd,21/07/2017,,62.52,Other Contracted Services,"391400 - Works - Construction, Repair & Maintenance"
Solihull MBC,Managed Growth and Communities,Highways & Transport Services,Balfour Beatty Living Places Ltd,21/07/2017,,55.02,Other Contracted Services,"391400 - Works - Construction, Repair & Maintenance"
Solihull MBC,Managed Growth and Communities,Highways & Transport Services,Balfour Beatty Living Places Ltd,21/07/2017,,147.57,Other Contracted Services,"391400 - Works - Construction, Repair & Maintenance"
Solihull MBC,Managed Growth and Communities,Highways & Transport Services,Balfour Beatty Living Places Ltd,21/07/2017,,9.96,Other Contracted Services,"391400 - Works - Construction, Repair & Maintenance"
Solihull MBC,Managed Growth and Communities,Highways & Transport Services,Balfour Beatty Living Places Ltd,21/07/2017,,56.29,Other Contracted Services,"391400 - Works - Construction, Repair & Maintenance"
Solihull MBC,Managed Growth and Communities,Highways & Transport Services,Balfour Beatty Living Places Ltd,21/07/2017,,206.40,Other Contracted Services,"391400 - Works - Construction, Repair & Maintenance"
Solihull MBC,Managed Growth and Communities,Highways & Transport Services,Balfour Beatty Living Places Ltd,21/07/2017,,146.61,Other Contracted Services,"391400 - Works - Construction, Repair & Maintenance"
Solihull MBC,Managed Growth and Communities,Highways & Transport Services,Balfour Beatty Living Places Ltd,21/07/2017,,56.29,Other Contracted Services,"391400 - Works - Construction, Repair & Maintenance"
Solihull MBC,Managed Growth and Communities,Highways & Transport Services,Balfour Beatty Living Places Ltd,21/07/2017,,168.87,Other Contracted Services,"391400 - Works - Construction, Repair & Maintenance"
Solihull MBC,Managed Growth and Communities,Highways & Transport Services,Balfour Beatty Living Places Ltd,21/07/2017,,145.23,Other Contracted Services,"391400 - Works - Construction, Repair & Maintenance"
Solihull MBC,Managed Growth and Communities,Highways & Transport Services,Balfour Beatty Living Places Ltd,21/07/2017,,121.24,Other Contracted Services,"391400 - Works - Construction, Repair & Maintenance"
Solihull MBC,Managed Growth and Communities,Highways & Transport Services,Balfour Beatty Living Places Ltd,21/07/2017,,112.58,Other Contracted Services,"391400 - Works - Construction, Repair & Maintenance"
Solihull MBC,Managed Growth and Communities,Highways & Transport Services,Balfour Beatty Living Places Ltd,21/07/2017,,143.78,Other Contracted Services,"391400 - Works - Construction, Repair & Maintenance"
Solihull MBC,Managed Growth and Communities,Highways & Transport Services,Balfour Beatty Living Places Ltd,21/07/2017,,143.78,Other Contracted Services,"391400 - Works - Construction, Repair & Maintenance"
Solihull MBC,Managed Growth and Communities,Highways & Transport Services,Balfour Beatty Living Places Ltd,21/07/2017,,49.34,Other Contracted Services,"391400 - Works - Construction, Repair & Maintenance"
Solihull MBC,Managed Growth and Communities,Highways & Transport Services,Balfour Beatty Living Places Ltd,21/07/2017,,71.89,Other Contracted Services,"391400 - Works - Construction, Repair & Maintenance"
Solihull MBC,Managed Growth and Communities,Highways & Transport Services,Balfour Beatty Living Places Ltd,21/07/2017,,40.56,Other Contracted Services,"391400 - Works - Construction, Repair & Maintenance"
Solihull MBC,Managed Growth and Communities,Highways & Transport Services,Balfour Beatty Living Places Ltd,21/07/2017,,102.25,Other Contracted Services,"391400 - Works - Construction, Repair & Maintenance"
Solihull MBC,Managed Growth and Communities,Highways & Transport Services,Balfour Beatty Living Places Ltd,21/07/2017,,71.89,Other Contracted Services,"391400 - Works - Construction, Repair & Maintenance"
Solihull MBC,Managed Growth and Communities,Highways & Transport Services,Balfour Beatty Living Places Ltd,21/07/2017,,71.89,Other Contracted Services,"391400 - Works - Construction, Repair & Maintenance"
Solihull MBC,Managed Growth and Communities,Highways & Transport Services,Balfour Beatty Living Places Ltd,21/07/2017,,71.89,Other Contracted Services,"391400 - Works - Construction, Repair & Maintenance"
Solihull MBC,Managed Growth and Communities,Highways & Transport Services,Balfour Beatty Living Places Ltd,21/07/2017,,23.30,Other Contracted Services,"391400 - Works - Construction, Repair & Maintenance"
Solihull MBC,Managed Growth and Communities,Highways & Transport Services,Balfour Beatty Living Places Ltd,21/07/2017,,136.74,Other Contracted Services,"391400 - Works - Construction, Repair & Maintenance"
Solihull MBC,Managed Growth and Communities,Highways & Transport Services,Balfour Beatty Living Places Ltd,21/07/2017,,143.15,Other Contracted Services,"391400 - Works - Construction, Repair & Maintenance"
Solihull MBC,Managed Growth and Communities,Highways & Transport Services,Balfour Beatty Living Places Ltd,21/07/2017,,163.60,Other Contracted Services,"391400 - Works - Construction, Repair & Maintenance"
Solihull MBC,Managed Growth and Communities,Highways & Transport Services,Balfour Beatty Living Places Ltd,21/07/2017,,69.97,Contractors,"391400 - Works - Construction, Repair & Maintenance"
Solihull MBC,Managed Growth and Communities,Highways & Transport Services,Balfour Beatty Living Places Ltd,21/07/2017,,34.99,Contractors,"391400 - Works - Construction, Repair & Maintenance"
Solihull MBC,Managed Growth and Communities,Highways & Transport Services,Balfour Beatty Living Places Ltd,21/07/2017,,34.99,Contractors,"391400 - Works - Construction, Repair & Maintenance"
Solihull MBC,Managed Growth and Communities,Highways & Transport Services,Balfour Beatty Living Places Ltd,21/07/2017,,34.99,Contractors,"391400 - Works - Construction, Repair & Maintenance"
Solihull MBC,Managed Growth and Communities,Highways & Transport Services,Balfour Beatty Living Places Ltd,21/07/2017,,34.99,Contractors,"391400 - Works - Construction, Repair & Maintenance"
Solihull MBC,Managed Growth and Communities,Highways & Transport Services,Balfour Beatty Living Places Ltd,21/07/2017,,28.20,Contractors,"391400 - Works - Construction, Repair & Maintenance"
Solihull MBC,Managed Growth and Communities,Highways & Transport Services,Balfour Beatty Living Places Ltd,21/07/2017,,411.90,Other Contracted Services,"391400 - Works - Construction, Repair & Maintenance"
Solihull MBC,Managed Growth and Communities,Highways & Transport Services,Balfour Beatty Living Places Ltd,21/07/2017,,93.20,Other Contracted Services,"391400 - Works - Construction, Repair & Maintenance"
Solihull MBC,Managed Growth and Communities,Highways & Transport Services,Balfour Beatty Living Places Ltd,21/07/2017,,143.78,Other Contracted Services,"391400 - Works - Construction, Repair & Maintenance"
Solihull MBC,Managed Growth and Communities,Highways & Transport Services,Balfour Beatty Living Places Ltd,21/07/2017,,72.26,Other Contracted Services,"391400 - Works - Construction, Repair & Maintenance"
Solihull MBC,Managed Growth and Communities,Highways & Transport Services,Balfour Beatty Living Places Ltd,21/07/2017,,413.66,Other Contracted Services,"391400 - Works - Construction, Repair & Maintenance"
Solihull MBC,Managed Growth and Communities,Highways & Transport Services,Balfour Beatty Living Places Ltd,21/07/2017,,155.67,Other Contracted Services,"391400 - Works - Construction, Repair & Maintenance"
Solihull MBC,Managed Growth and Communities,Highways & Transport Services,Balfour Beatty Living Places Ltd,21/07/2017,,253.58,Other Contracted Services,"391400 - Works - Construction, Repair & Maintenance"
Solihull MBC,Managed Growth and Communities,Highways & Transport Services,Balfour Beatty Living Places Ltd,21/07/2017,,143.78,Other Contracted Services,"391400 - Works - Construction, Repair & Maintenance"
Solihull MBC,Managed Growth and Communities,Highways & Transport Services,Balfour Beatty Living Places Ltd,21/07/2017,,329.89,Other Contracted Services,"391400 - Works - Construction, Repair & Maintenance"
Solihull MBC,Managed Growth and Communities,Highways & Transport Services,Balfour Beatty Living Places Ltd,21/07/2017,,313.00,Other Contracted Services,"391400 - Works - Construction, Repair & Maintenance"
Solihull MBC,Managed Growth and Communities,Highways & Transport Services,Balfour Beatty Living Places Ltd,21/07/2017,,23.30,Other Contracted Services,"391400 - Works - Construction, Repair & Maintenance"
Solihull MBC,Managed Growth and Communities,Highways & Transport Services,Balfour Beatty Living Places Ltd,21/07/2017,,9.96,Other Contracted Services,"391400 - Works - Construction, Repair & Maintenance"
Solihull MBC,Managed Growth and Communities,Highways & Transport Services,Balfour Beatty Living Places Ltd,21/07/2017,,47.84,Other Contracted Services,"391400 - Works - Construction, Repair & Maintenance"
Solihull MBC,Managed Growth and Communities,Highways & Transport Services,Balfour Beatty Living Places Ltd,21/07/2017,,68.84,Other Contracted Services,"391400 - Works - Construction, Repair & Maintenance"
Solihull MBC,Managed Growth and Communities,Highways & Transport Services,Balfour Beatty Living Places Ltd,21/07/2017,,103.26,Other Contracted Services,"391400 - Works - Construction, Repair & Maintenance"
Solihull MBC,Managed Growth and Communities,Highways & Transport Services,Balfour Beatty Living Places Ltd,21/07/2017,,98.68,Other Contracted Services,"391400 - Works - Construction, Repair & Maintenance"
Solihull MBC,Managed Growth and Communities,Highways & Transport Services,Balfour Beatty Living Places Ltd,21/07/2017,,77.81,Other Contracted Services,"391400 - Works - Construction, Repair & Maintenance"
Solihull MBC,Managed Growth and Communities,Highways & Transport Services,Balfour Beatty Living Places Ltd,21/07/2017,,2.44,Other Contracted Services,"391400 - Works - Construction, Repair & Maintenance"
Solihull MBC,Managed Growth and Communities,Highways & Transport Services,Balfour Beatty Living Places Ltd,21/07/2017,,26.46,Other Contracted Services,"391400 - Works - Construction, Repair & Maintenance"
Solihull MBC,Managed Growth and Communities,Highways & Transport Services,Balfour Beatty Living Places Ltd,21/07/2017,,29.17,Other Contracted Services,"391400 - Works - Construction, Repair & Maintenance"
Solihull MBC,Managed Growth and Communities,Highways & Transport Services,Balfour Beatty Living Places Ltd,21/07/2017,,46.60,Other Contracted Services,"391400 - Works - Construction, Repair & Maintenance"
Solihull MBC,Managed Growth and Communities,Highways & Transport Services,Balfour Beatty Living Places Ltd,21/07/2017,,40.90,Other Contracted Services,"391400 - Works - Construction, Repair & Maintenance"
Solihull MBC,Managed Growth and Communities,Highways & Transport Services,Balfour Beatty Living Places Ltd,21/07/2017,,50.94,Other Contracted Services,"391400 - Works - Construction, Repair & Maintenance"
Solihull MBC,Managed Growth and Communities,Highways & Transport Services,Balfour Beatty Living Places Ltd,21/07/2017,,12.29,Other Contracted Services,"391400 - Works - Construction, Repair & Maintenance"
Solihull MBC,Managed Growth and Communities,Highways & Transport Services,Balfour Beatty Living Places Ltd,21/07/2017,,69.90,Other Contracted Services,"391400 - Works - Construction, Repair & Maintenance"
Solihull MBC,Managed Growth and Communities,Highways & Transport Services,Balfour Beatty Living Places Ltd,21/07/2017,,46.60,Other Contracted Services,"391400 - Works - Construction, Repair & Maintenance"
Solihull MBC,Managed Growth and Communities,Highways & Transport Services,Balfour Beatty Living Places Ltd,21/07/2017,,46.60,Other Contracted Services,"391400 - Works - Construction, Repair & Maintenance"
Solihull MBC,Managed Growth and Communities,Highways & Transport Services,Balfour Beatty Living Places Ltd,21/07/2017,,107.02,Other Contracted Services,"391400 - Works - Construction, Repair & Maintenance"
Solihull MBC,Managed Growth and Communities,Highways & Transport Services,Balfour Beatty Living Places Ltd,21/07/2017,,35.16,Other Contracted Services,"391400 - Works - Construction, Repair & Maintenance"
Solihull MBC,Managed Growth and Communities,Highways & Transport Services,Balfour Beatty Living Places Ltd,21/07/2017,,345.90,Other Contracted Services,"391400 - Works - Construction, Repair & Maintenance"
Solihull MBC,Managed Growth and Communities,Highways & Transport Services,Balfour Beatty Living Places Ltd,21/07/2017,,156.35,Other Contracted Services,"391400 - Works - Construction, Repair & Maintenance"
Solihull MBC,Managed Growth and Communities,Highways & Transport Services,Balfour Beatty Living Places Ltd,21/07/2017,,90.53,Other Contracted Services,"391400 - Works - Construction, Repair & Maintenance"
Solihull MBC,Managed Growth and Communities,Highways & Transport Services,Balfour Beatty Living Places Ltd,21/07/2017,,64.58,Other Contracted Services,"391400 - Works - Construction, Repair & Maintenance"
Solihull MBC,Managed Growth and Communities,Highways & Transport Services,Balfour Beatty Living Places Ltd,21/07/2017,,71.89,Other Contracted Services,"391400 - Works - Construction, Repair & Maintenance"
Solihull MBC,Managed Growth and Communities,Highways & Transport Services,Balfour Beatty Living Places Ltd,21/07/2017,,143.78,Other Contracted Services,"391400 - Works - Construction, Repair & Maintenance"
Solihull MBC,Managed Growth and Communities,Highways & Transport Services,Balfour Beatty Living Places Ltd,21/07/2017,,59.78,Other Contracted Services,"391400 - Works - Construction, Repair & Maintenance"
Solihull MBC,Managed Growth and Communities,Highways & Transport Services,Balfour Beatty Living Places Ltd,21/07/2017,,143.78,Other Contracted Services,"391400 - Works - Construction, Repair & Maintenance"
Solihull MBC,Managed Growth and Communities,Highways & Transport Services,Balfour Beatty Living Places Ltd,21/07/2017,,24.58,Other Contracted Services,"391400 - Works - Construction, Repair & Maintenance"
Solihull MBC,Managed Growth and Communities,Highways & Transport Services,Balfour Beatty Living Places Ltd,21/07/2017,,23.30,Other Contracted Services,"391400 - Works - Construction, Repair & Maintenance"
Solihull MBC,Managed Growth and Communities,Highways & Transport Services,Balfour Beatty Living Places Ltd,21/07/2017,,71.89,Other Contracted Services,"391400 - Works - Construction, Repair & Maintenance"
Solihull MBC,Managed Growth and Communities,Highways & Transport Services,Balfour Beatty Living Places Ltd,21/07/2017,,225.36,Other Contracted Services,"391400 - Works - Construction, Repair & Maintenance"
Solihull MBC,Managed Growth and Communities,Highways & Transport Services,Balfour Beatty Living Places Ltd,21/07/2017,,23.30,Other Contracted Services,"391400 - Works - Construction, Repair & Maintenance"
Solihull MBC,Managed Growth and Communities,Highways & Transport Services,Balfour Beatty Living Places Ltd,21/07/2017,,46.60,Other Contracted Services,"391400 - Works - Construction, Repair & Maintenance"
Solihull MBC,Managed Growth and Communities,Highways & Transport Services,Balfour Beatty Living Places Ltd,21/07/2017,,118.49,Other Contracted Services,"391400 - Works - Construction, Repair & Maintenance"
Solihull MBC,Managed Growth and Communities,Highways & Transport Services,Balfour Beatty Living Places Ltd,21/07/2017,,71.89,Other Contracted Services,"391400 - Works - Construction, Repair & Maintenance"
Solihull MBC,Managed Growth and Communities,Highways & Transport Services,Balfour Beatty Living Places Ltd,21/07/2017,,143.78,Other Contracted Services,"391400 - Works - Construction, Repair & Maintenance"
Solihull MBC,Managed Growth and Communities,Highways & Transport Services,Balfour Beatty Living Places Ltd,21/07/2017,,165.09,Other Contracted Services,"391400 - Works - Construction, Repair & Maintenance"
Solihull MBC,Managed Growth and Communities,Highways & Transport Services,Balfour Beatty Living Places Ltd,21/07/2017,,103.20,Other Contracted Services,"391400 - Works - Construction, Repair & Maintenance"
Solihull MBC,Managed Growth and Communities,Highways & Transport Services,Balfour Beatty Living Places Ltd,21/07/2017,,51.60,Other Contracted Services,"391400 - Works - Construction, Repair & Maintenance"
Solihull MBC,Managed Growth and Communities,Highways & Transport Services,Balfour Beatty Living Places Ltd,21/07/2017,,23.30,Other Contracted Services,"391400 - Works - Construction, Repair & Maintenance"
Solihull MBC,Managed Growth and Communities,Highways & Transport Services,Balfour Beatty Living Places Ltd,21/07/2017,,143.78,Other Contracted Services,"391400 - Works - Construction, Repair & Maintenance"
Solihull MBC,Managed Growth and Communities,Highways & Transport Services,Balfour Beatty Living Places Ltd,21/07/2017,,165.09,Other Contracted Services,"391400 - Works - Construction, Repair & Maintenance"
Solihull MBC,Managed Growth and Communities,Highways & Transport Services,Balfour Beatty Living Places Ltd,21/07/2017,,172.60,Other Contracted Services,"391400 - Works - Construction, Repair & Maintenance"
Solihull MBC,Managed Growth and Communities,Highways & Transport Services,Balfour Beatty Living Places Ltd,21/07/2017,,433.09,Other Contracted Services,"391400 - Works - Construction, Repair & Maintenance"
Solihull MBC,Managed Growth and Communities,Highways & Transport Services,Balfour Beatty Living Places Ltd,21/07/2017,,51.60,Other Contracted Services,"391400 - Works - Construction, Repair & Maintenance"
Solihull MBC,Managed Growth and Communities,Highways & Transport Services,Balfour Beatty Living Places Ltd,21/07/2017,,121.02,Other Contracted Services,"391400 - Works - Construction, Repair & Maintenance"
Solihull MBC,Managed Growth and Communities,Highways & Transport Services,Balfour Beatty Living Places Ltd,21/07/2017,,25.83,Other Contracted Services,"391400 - Works - Construction, Repair & Maintenance"
Solihull MBC,Managed Growth and Communities,Highways & Transport Services,Balfour Beatty Living Places Ltd,21/07/2017,,388.55,Other Contracted Services,"391400 - Works - Construction, Repair & Maintenance"
Solihull MBC,Managed Growth and Communities,Highways & Transport Services,Balfour Beatty Living Places Ltd,21/07/2017,,233.36,Other Contracted Services,"391400 - Works - Construction, Repair & Maintenance"
Solihull MBC,Managed Growth and Communities,Highways & Transport Services,Balfour Beatty Living Places Ltd,21/07/2017,,206.52,Other Contracted Services,"391400 - Works - Construction, Repair & Maintenance"
Solihull MBC,Managed Growth and Communities,Highways & Transport Services,Balfour Beatty Living Places Ltd,21/07/2017,,46.60,Other Contracted Services,"391400 - Works - Construction, Repair & Maintenance"
Solihull MBC,Managed Growth and Communities,Highways & Transport Services,Balfour Beatty Living Places Ltd,21/07/2017,,34.42,Other Contracted Services,"391400 - Works - Construction, Repair & Maintenance"
Solihull MBC,Managed Growth and Communities,Highways & Transport Services,Balfour Beatty Living Places Ltd,21/07/2017,,69.90,Other Contracted Services,"391400 - Works - Construction, Repair & Maintenance"
Solihull MBC,Managed Growth and Communities,Highways & Transport Services,Balfour Beatty Living Places Ltd,21/07/2017,,23.30,Other Contracted Services,"391400 - Works - Construction, Repair & Maintenance"
Solihull MBC,Managed Growth and Communities,Highways & Transport Services,Balfour Beatty Living Places Ltd,21/07/2017,,71.89,Other Contracted Services,"391400 - Works - Construction, Repair & Maintenance"
Solihull MBC,Managed Growth and Communities,Highways & Transport Services,Balfour Beatty Living Places Ltd,21/07/2017,,141.79,Other Contracted Services,"391400 - Works - Construction, Repair & Maintenance"
Solihull MBC,Managed Growth and Communities,Highways & Transport Services,Balfour Beatty Living Places Ltd,21/07/2017,,23.30,Other Contracted Services,"391400 - Works - Construction, Repair & Maintenance"
Solihull MBC,Managed Growth and Communities,Highways & Transport Services,Balfour Beatty Living Places Ltd,21/07/2017,,56.29,Other Contracted Services,"391400 - Works - Construction, Repair & Maintenance"
Solihull MBC,Managed Growth and Communities,Highways & Transport Services,Balfour Beatty Living Places Ltd,21/07/2017,,116.50,Other Contracted Services,"391400 - Works - Construction, Repair & Maintenance"
Solihull MBC,Managed Growth and Communities,Highways & Transport Services,Balfour Beatty Living Places Ltd,21/07/2017,,71.89,Other Contracted Services,"391400 - Works - Construction, Repair & Maintenance"
Solihull MBC,Managed Growth and Communities,Highways & Transport Services,Balfour Beatty Living Places Ltd,21/07/2017,,71.89,Other Contracted Services,"391400 - Works - Construction, Repair & Maintenance"
Solihull MBC,Managed Growth and Communities,Highways & Transport Services,Balfour Beatty Living Places Ltd,21/07/2017,,23.30,Other Contracted Services,"391400 - Works - Construction, Repair & Maintenance"
Solihull MBC,Managed Growth and Communities,Highways & Transport Services,Balfour Beatty Living Places Ltd,21/07/2017,,23.30,Other Contracted Services,"391400 - Works - Construction, Repair & Maintenance"
Solihull MBC,Managed Growth and Communities,Highways & Transport Services,Balfour Beatty Living Places Ltd,21/07/2017,,23.30,Other Contracted Services,"391400 - Works - Construction, Repair & Maintenance"
Solihull MBC,Managed Growth and Communities,Highways & Transport Services,Balfour Beatty Living Places Ltd,21/07/2017,,201.12,Other Contracted Services,"391400 - Works - Construction, Repair & Maintenance"
Solihull MBC,Managed Growth and Communities,Highways & Transport Services,Balfour Beatty Living Places Ltd,21/07/2017,,118.49,Other Contracted Services,"391400 - Works - Construction, Repair & Maintenance"
Solihull MBC,Managed Growth and Communities,Highways & Transport Services,Balfour Beatty Living Places Ltd,21/07/2017,,46.60,Other Contracted Services,"391400 - Works - Construction, Repair & Maintenance"
Solihull MBC,Managed Growth and Communities,Highways & Transport Services,Balfour Beatty Living Places Ltd,21/07/2017,,56.29,Other Contracted Services,"391400 - Works - Construction, Repair & Maintenance"
Solihull MBC,Managed Growth and Communities,Highways & Transport Services,Balfour Beatty Living Places Ltd,21/07/2017,,71.89,Other Contracted Services,"391400 - Works - Construction, Repair & Maintenance"
Solihull MBC,Managed Growth and Communities,Highways & Transport Services,Balfour Beatty Living Places Ltd,21/07/2017,,82.56,Other Contracted Services,"391400 - Works - Construction, Repair & Maintenance"
Solihull MBC,Managed Growth and Communities,Highways & Transport Services,Balfour Beatty Living Places Ltd,21/07/2017,,23.30,Other Contracted Services,"391400 - Works - Construction, Repair & Maintenance"
Solihull MBC,Managed Growth and Communities,Highways & Transport Services,Balfour Beatty Living Places Ltd,21/07/2017,,43.95,Other Contracted Services,"391400 - Works - Construction, Repair & Maintenance"
Solihull MBC,Managed Growth and Communities,Highways & Transport Services,Balfour Beatty Living Places Ltd,21/07/2017,,167.38,Other Contracted Services,"391400 - Works - Construction, Repair & Maintenance"
Solihull MBC,Managed Growth and Communities,Highways & Transport Services,Balfour Beatty Living Places Ltd,21/07/2017,,19.93,Other Contracted Services,"391400 - Works - Construction, Repair & Maintenance"
Solihull MBC,Managed Growth and Communities,Highways & Transport Services,Balfour Beatty Living Places Ltd,21/07/2017,,9.96,Other Contracted Services,"391400 - Works - Construction, Repair & Maintenance"
Solihull MBC,Managed Growth and Communities,Highways & Transport Services,Balfour Beatty Living Places Ltd,21/07/2017,,23.30,Other Contracted Services,"391400 - Works - Construction, Repair & Maintenance"
Solihull MBC,Managed Growth and Communities,Highways & Transport Services,Balfour Beatty Living Places Ltd,21/07/2017,,19.93,Other Contracted Services,"391400 - Works - Construction, Repair & Maintenance"
Solihull MBC,Managed Growth and Communities,Highways & Transport Services,Balfour Beatty Living Places Ltd,21/07/2017,,71.89,Other Contracted Services,"391400 - Works - Construction, Repair & Maintenance"
Solihull MBC,Managed Growth and Communities,Highways & Transport Services,Balfour Beatty Living Places Ltd,21/07/2017,,80.12,Other Contracted Services,"391400 - Works - Construction, Repair & Maintenance"
Solihull MBC,Managed Growth and Communities,Highways & Transport Services,Balfour Beatty Living Places Ltd,21/07/2017,,71.89,Other Contracted Services,"391400 - Works - Construction, Repair & Maintenance"
Solihull MBC,Managed Growth and Communities,Highways & Transport Services,Balfour Beatty Living Places Ltd,21/07/2017,,234.00,Other Contracted Services,"391400 - Works - Construction, Repair & Maintenance"
Solihull MBC,Managed Growth and Communities,Highways & Transport Services,Balfour Beatty Living Places Ltd,21/07/2017,,34.42,Other Contracted Services,"391400 - Works - Construction, Repair & Maintenance"
Solihull MBC,Managed Growth and Communities,Highways & Transport Services,Balfour Beatty Living Places Ltd,21/07/2017,,71.89,Other Contracted Services,"391400 - Works - Construction, Repair & Maintenance"
Solihull MBC,Managed Growth and Communities,Highways & Transport Services,Balfour Beatty Living Places Ltd,21/07/2017,,71.89,Other Contracted Services,"391400 - Works - Construction, Repair & Maintenance"
Solihull MBC,Managed Growth and Communities,Highways & Transport Services,Balfour Beatty Living Places Ltd,21/07/2017,,718.90,Other Contracted Services,"391400 - Works - Construction, Repair & Maintenance"
Solihull MBC,Managed Growth and Communities,Highways & Transport Services,Balfour Beatty Living Places Ltd,21/07/2017,,34.42,Other Contracted Services,"391400 - Works - Construction, Repair & Maintenance"
Solihull MBC,Managed Growth and Communities,Highways & Transport Services,Balfour Beatty Living Places Ltd,21/07/2017,,71.89,Other Contracted Services,"391400 - Works - Construction, Repair & Maintenance"
Solihull MBC,Managed Growth and Communities,Highways & Transport Services,Balfour Beatty Living Places Ltd,21/07/2017,,23.30,Other Contracted Services,"391400 - Works - Construction, Repair & Maintenance"
Solihull MBC,Managed Growth and Communities,Highways & Transport Services,Balfour Beatty Living Places Ltd,21/07/2017,,40.06,Other Contracted Services,"391400 - Works - Construction, Repair & Maintenance"
Solihull MBC,Managed Growth and Communities,Highways & Transport Services,Balfour Beatty Living Places Ltd,21/07/2017,,56.29,Other Contracted Services,"391400 - Works - Construction, Repair & Maintenance"
Solihull MBC,Managed Growth and Communities,Highways & Transport Services,Balfour Beatty Living Places Ltd,21/07/2017,,170.88,Other Contracted Services,"391400 - Works - Construction, Repair & Maintenance"
Solihull MBC,Managed Growth and Communities,Highways & Transport Services,Balfour Beatty Living Places Ltd,21/07/2017,,71.89,Other Contracted Services,"391400 - Works - Construction, Repair & Maintenance"
Solihull MBC,Managed Growth and Communities,Highways & Transport Services,Balfour Beatty Living Places Ltd,21/07/2017,,12.29,Other Contracted Services,"391400 - Works - Construction, Repair & Maintenance"
Solihull MBC,Managed Growth and Communities,Highways & Transport Services,Balfour Beatty Living Places Ltd,21/07/2017,,34.44,Other Contracted Services,"391400 - Works - Construction, Repair & Maintenance"
Solihull MBC,Managed Growth and Communities,Highways & Transport Services,Balfour Beatty Living Places Ltd,21/07/2017,,71.89,Other Contracted Services,"391400 - Works - Construction, Repair & Maintenance"
Solihull MBC,Managed Growth and Communities,Highways & Transport Services,Balfour Beatty Living Places Ltd,21/07/2017,,62.89,Other Contracted Services,"391400 - Works - Construction, Repair & Maintenance"
Solihull MBC,Managed Growth and Communities,Highways & Transport Services,Balfour Beatty Living Places Ltd,21/07/2017,,29.17,Other Contracted Services,"391400 - Works - Construction, Repair & Maintenance"
Solihull MBC,Managed Growth and Communities,Highways & Transport Services,Balfour Beatty Living Places Ltd,21/07/2017,,337.52,Other Contracted Services,"391400 - Works - Construction, Repair & Maintenance"
Solihull MBC,Managed Growth and Communities,Highways & Transport Services,Balfour Beatty Living Places Ltd,21/07/2017,,112.58,Other Contracted Services,"391400 - Works - Construction, Repair & Maintenance"
Solihull MBC,Managed Growth and Communities,Highways & Transport Services,Balfour Beatty Living Places Ltd,21/07/2017,,68.84,Other Contracted Services,"391400 - Works - Construction, Repair & Maintenance"
Solihull MBC,Managed Growth and Communities,Highways & Transport Services,Balfour Beatty Living Places Ltd,21/07/2017,,143.78,Other Contracted Services,"391400 - Works - Construction, Repair & Maintenance"
Solihull MBC,Managed Growth and Communities,Highways & Transport Services,Balfour Beatty Living Places Ltd,21/07/2017,,23.30,Other Contracted Services,"391400 - Works - Construction, Repair & Maintenance"
Solihull MBC,Managed Growth and Communities,Highways & Transport Services,Balfour Beatty Living Places Ltd,21/07/2017,,46.67,Other Contracted Services,"391400 - Works - Construction, Repair & Maintenance"
Solihull MBC,Resources,Central Services to the Public,Balvac Ltd,21/07/2017,,1525.00,Contractors,"390000 - Works - Construction, Repair & Maintenance"
Solihull MBC,Resources,Corporate & Democratic Core,Banner Group Ltd,31/07/2017,,496.93,General Office Expenses,Not Yet Classified
Solihull MBC,Managed Growth and Communities,Environmental and Regulatory Services,Bannocks Solihull,28/07/2017,,349.00,Materials,120000 - Cemetery & Crematorium 
Solihull MBC,Children's Services & Skills,Children & Education Services,Banya,04/07/2017,,1035.00,External Fostering,Not Yet Classified
Solihull MBC,Managed Growth and Communities,Highways & Transport Services,Barbour Logic Limited,26/07/2017,,4631.25,IT Equipment & Software,Not Yet Classified
Solihull MBC,Adult Social Care,Adult Social Care,Barchester Healthcare Homes Ltd,18/07/2017,,4400.00,ASC - Residential Care Permanent,321000 - Social Community Care Supplies & Services - Adult
Solihull MBC,Adult Social Care,Adult Social Care,Barchester Healthcare Homes Ltd,18/07/2017,,4157.56,ASC - Residential Care Permanent,321000 - Social Community Care Supplies & Services - Adult
Solihull MBC,Adult Social Care,Adult Social Care,Barchester Healthcare Homes Ltd,25/07/2017,,5753.88,ASC - Residential Care Permanent,321000 - Social Community Care Supplies & Services - Adult
Solihull MBC,Managed Growth and Communities,Environmental and Regulatory Services,Barclays,10/07/2017,,172.72,Other Fees,Not Yet Classified
Solihull MBC,Managed Growth and Communities,Environmental and Regulatory Services,Barclays,10/07/2017,,50.00,Other Fees,Not Yet Classified
Solihull MBC,Adult Social Care,Cultural & Related Services,Barclays,10/07/2017,,25.00,Other Fees,Not Yet Classified
Solihull MBC,Resources,Central Services to the Public,Barclays,10/07/2017,,5505.82,Other Fees,Not Yet Classified
Solihull MBC,Resources,Central Services to the Public,Barclays,10/07/2017,,14.32,Other Fees,Not Yet Classified
Solihull MBC,Adult Social Care,Cultural & Related Services,Barclays,10/07/2017,,325.79,Other Fees,Not Yet Classified
Solihull MBC,Adult Social Care,Cultural & Related Services,Barclays,10/07/2017,,133.56,Other Fees,Not Yet Classified
Solihull MBC,Adult Social Care,Cultural & Related Services,Barclays,10/07/2017,,280.42,Other Fees,Not Yet Classified
Solihull MBC,Adult Social Care,Cultural & Related Services,Barclays,10/07/2017,,0.85,Other Fees,Not Yet Classified
Solihull MBC,Adult Social Care,Cultural & Related Services,Barclays,10/07/2017,,30.00,Other Fees,Not Yet Classified
Solihull MBC,Adult Social Care,Cultural & Related Services,Barclays,10/07/2017,,199.31,Other Fees,Not Yet Classified
Solihull MBC,Adult Social Care,Cultural & Related Services,Barclays,10/07/2017,,50.00,Other Fees,Not Yet Classified
Solihull MBC,Resources,Cultural & Related Services,Barclays,10/07/2017,,34.41,IT Equipment & Software,Not Yet Classified
Solihull MBC,Resources,Cultural & Related Services,Barclays,10/07/2017,,25.00,IT Equipment & Software,Not Yet Classified
Solihull MBC,Children's Services & Skills,Children & Education Services,Barnardos,31/07/2017,,3697.07,External Fostering,Not Yet Classified
Solihull MBC,Children's Services & Skills,Children & Education Services,Barnardos Midlands,17/07/2017,,2713.28,External Fostering,321100 - Social Community Care Supplies & Services - Children
Solihull MBC,Children's Services & Skills,Children & Education Services,Barnardos Midlands,17/07/2017,,2867.57,External Fostering,321100 - Social Community Care Supplies & Services - Children
Solihull MBC,Children's Services & Skills,Children & Education Services,Barnardos Midlands,14/07/2017,,3188.57,External Fostering,321100 - Social Community Care Supplies & Services - Children
Solihull MBC,Adult Social Care,Adult Social Care,Beechcroft Residential Home,25/07/2017,,1561.04,ASC - Residential Care Permanent,321000 - Social Community Care Supplies & Services - Adult
Solihull MBC,Children's Services - DSG Central.,Children & Education Services,Beechwood Childcare,31/07/2017,,468.00,Grant & Subscription (SCITT),321100 - Social Community Care Supplies & Services - Children
Solihull MBC,Children's Services & Skills,Children & Education Services,Beechwood Childcare,13/07/2017,,1003.80,Clients Expenses,321100 - Social Community Care Supplies & Services - Children
Solihull MBC,Adult Social Care,Adult Social Care,Ben Motors And Allied Trades Ben Fund,25/07/2017,,3820.00,ASC - Nursing Care Permanent,Not Yet Classified
Solihull MBC,Adult Social Care,Adult Social Care,Bernadette Moylan,28/07/2017,,1441.16,ASC - Supported Living Care Costs,Not Yet Classified
Solihull MBC,Resources,Central Services to the Public,Beyond Systems Ltd,06/07/2017,,1800.00,Hardware,Not Yet Classified
Solihull MBC,Resources,Central Services to the Public,BHSF Ltd,04/07/2017,,277.00,Other Contracted Services,Not Yet Classified
Solihull MBC,Adult Social Care,Cultural & Related Services,Bibliotheca,27/07/2017,,410.56,Materials,Not Yet Classified
Solihull MBC,Children's Services - DSG Central.,Children & Education Services,Billy Bears Nursery,10/07/2017,,702.00,Grant & Subscription (SCITT),321100 - Social Community Care Supplies & Services - Children
Solihull MBC,Public Health & Commissioning,Adult Social Care,Birmingham And Solihull Mental Health Trust,24/07/2017,,12250.00,Other Contracted Services,Not Yet Classified
Solihull MBC,Public Health & Commissioning,Adult Social Care,Birmingham And Solihull Mental Health Trust,24/07/2017,,24813.75,Other Contracted Services,Not Yet Classified
Solihull MBC,Public Health & Commissioning,Adult Social Care,Birmingham And Solihull Mental Health Trust,24/07/2017,,569165.75,Other Contracted Services,Not Yet Classified
Solihull MBC,Managed Growth and Communities,Environmental and Regulatory Services,Birmingham And Solihull Midweek Conservation Group,10/07/2017,,520.00,Maintenance Of Grounds,"391111 - Works - Construction, Repair & Maintenance - Buildings - Repair & Maintenance"
Solihull MBC,Public Health & Commissioning,Children & Education Services,Birmingham And Solihull Women's Aid,19/07/2017,,45500.00,Other Contracted Services,321000 - Social Community Care Supplies & Services - Adult
Solihull MBC,Public Health & Commissioning,Children & Education Services,Birmingham And Solihull Women's Aid,19/07/2017,,45890.75,Other Contracted Services,321000 - Social Community Care Supplies & Services - Adult
Solihull MBC,Resources - Non Monitored,Central Services to the Public,Birmingham City Council,17/07/2017,,5010368.00,Parish Precepts,Not Yet Classified
Solihull MBC,Resources,Central Services to the Public,Birmingham City Council Shared Services,26/07/2017,,4023.56,Postage & Courier Services,Not Yet Classified
Solihull MBC,Adult Social Care,Adult Social Care,Birmingham Community Healthcare NHS,07/07/2017,,3335.25,Furniture & Equipment,Not Yet Classified
Solihull MBC,Adult Social Care,Adult Social Care,Birmingham Focus,04/07/2017,,2200.00,ASC - Day Care,321000 - Social Community Care Supplies & Services - Adult
Solihull MBC,Adult Social Care,Adult Social Care,Birmingham Focus,28/07/2017,,2200.00,ASC - Day Care,321000 - Social Community Care Supplies & Services - Adult
Solihull MBC,Adult Social Care,Adult Social Care,Birmingham Focus,04/07/2017,,2200.00,ASC - Day Care,321000 - Social Community Care Supplies & Services - Adult
Solihull MBC,Adult Social Care,Adult Social Care,Birmingham Focus,28/07/2017,,2200.00,ASC - Day Care,321000 - Social Community Care Supplies & Services - Adult
Solihull MBC,Adult Social Care,Adult Social Care,Bitteswell Employment Alliance Ltd,03/07/2017,,243.70,Furniture & Equipment,Not Yet Classified
Solihull MBC,Resources,Children & Education Services,Blue Arrow Limited,19/07/2017,,485.28,Agency Staff,Not Yet Classified
Solihull MBC,Resources,Children & Education Services,Blue Arrow Limited,19/07/2017,,-242.28,Agency Staff,Not Yet Classified
Solihull MBC,Resources,Children & Education Services,Blue Arrow Limited,19/07/2017,,255.74,Agency Staff,Not Yet Classified
Solihull MBC,Resources,Children & Education Services,Blue Arrow Limited,19/07/2017,,0.76,Agency Staff,Not Yet Classified
Solihull MBC,Resources,Children & Education Services,Blue Arrow Limited,14/07/2017,,217.30,Agency Staff,Not Yet Classified
Solihull MBC,Resources,Children & Education Services,Blue Arrow Limited,14/07/2017,,275.50,Agency Staff,Not Yet Classified
Solihull MBC,Resources,Cultural & Related Services,Blue Arrow Limited,14/07/2017,,569.25,Agency Staff,Not Yet Classified
Solihull MBC,Resources,Children & Education Services,Blue Arrow Limited,14/07/2017,,336.50,Agency Staff,Not Yet Classified
Solihull MBC,Resources,Children & Education Services,Blue Arrow Limited,14/07/2017,,336.50,Agency Staff,Not Yet Classified
Solihull MBC,Resources,Cultural & Related Services,Blue Arrow Limited,14/07/2017,,437.25,Agency Staff,Not Yet Classified
Solihull MBC,Resources,Children & Education Services,Blue Arrow Limited,21/07/2017,,336.50,Agency Staff,Not Yet Classified
Solihull MBC,Resources,Cultural & Related Services,Blue Arrow Limited,21/07/2017,,511.50,Agency Staff,Not Yet Classified
Solihull MBC,Resources,Children & Education Services,Blue Arrow Limited,21/07/2017,,269.20,Agency Staff,Not Yet Classified
Solihull MBC,Resources,Cultural & Related Services,Blue Arrow Limited,25/07/2017,,874.50,Agency Staff,Not Yet Classified
Solihull MBC,Resources,Children & Education Services,Blue Arrow Limited,25/07/2017,,242.44,Agency Staff,Not Yet Classified
Solihull MBC,Managed Growth and Communities,Planning & Development Services,Blue Orchid,12/07/2017,,29396.79,Professional Fees,150000 - Consultancy
Solihull MBC,Adult Social Care,Adult Social Care,Bluebird Care (Solihull),25/07/2017,,438.48,ASC - Home Care Support Services,Not Yet Classified
Solihull MBC,Adult Social Care,Adult Social Care,Bluebird Care (Solihull),27/07/2017,,438.48,ASC - Home Care Support Services,Not Yet Classified
Solihull MBC,Resources,Central Services to the Public,Bonds Worldwide Express Ltd,06/07/2017,,345.00,Postage & Courier Services,Not Yet Classified
Solihull MBC,Resources,Other Housing Services,Borshch Electric,17/07/2017,,270.83,Clients Expenses,110000 - Catering
Solihull MBC,Resources,Other Housing Services,Borshch Electric,07/07/2017,,433.33,Clients Expenses,110000 - Catering
Solihull MBC,Resources,Other Housing Services,Borshch Electric,10/07/2017,,270.83,Clients Expenses,110000 - Catering
Solihull MBC,Resources,Other Housing Services,Borshch Electric,07/07/2017,,291.66,Clients Expenses,110000 - Catering
Solihull MBC,Resources,Other Housing Services,Borshch Electric,17/07/2017,,291.66,Clients Expenses,110000 - Catering
Solihull MBC,Resources,Other Housing Services,Borshch Electric,21/07/2017,,291.66,Clients Expenses,110000 - Catering
Solihull MBC,Children's Services - DSG Central.,Children & Education Services,Bosworth Wood Neighbourhood Nursery-Lawnswood,10/07/2017,,702.00,Grant & Subscription (SCITT),321100 - Social Community Care Supplies & Services - Children
Solihull MBC,Resources,Central Services to the Public,Bournemouth University,27/07/2017,,510.00,Training,Not Yet Classified
Solihull MBC,Resources,Central Services to the Public,Bournemouth University,27/07/2017,,510.00,Training,Not Yet Classified
Solihull MBC,Resources,Central Services to the Public,Bournemouth University,27/07/2017,,510.00,Training,Not Yet Classified
Solihull MBC,Resources,Central Services to the Public,Bournemouth University,27/07/2017,,510.00,Training,Not Yet Classified
Solihull MBC,Resources,Central Services to the Public,Bournemouth University,27/07/2017,,510.00,Training,Not Yet Classified
Solihull MBC,Resources,Central Services to the Public,Bournemouth University,27/07/2017,,510.00,Training,Not Yet Classified
Solihull MBC,Resources,Central Services to the Public,Bournemouth University,27/07/2017,,510.00,Training,Not Yet Classified
Solihull MBC,Resources,Central Services to the Public,Bournemouth University,27/07/2017,,510.00,Training,Not Yet Classified
Solihull MBC,Resources,Central Services to the Public,Bournemouth University,27/07/2017,,510.00,Training,Not Yet Classified
Solihull MBC,Resources,Central Services to the Public,Bournemouth University,27/07/2017,,510.00,Training,Not Yet Classified
Solihull MBC,Adult Social Care,Adult Social Care,Bournville Village Trust,13/07/2017,,2594.16,ASC - Nursing Care Permanent,171011 - Education - School Services
Solihull MBC,Adult Social Care,Adult Social Care,Bournville Village Trust,27/07/2017,,2594.16,ASC - Nursing Care Permanent,171011 - Education - School Services
Solihull MBC,Adult Social Care,Adult Social Care,Bowood Care Homes Limited (Adept Group),25/07/2017,,1976.00,ASC - Residential Care Permanent,Not Yet Classified
Solihull MBC,Adult Social Care,Adult Social Care,Bowood Care Homes Limited (Adept Group),25/07/2017,,1730.92,ASC - Nursing Care Permanent,Not Yet Classified
Solihull MBC,Resources,Children & Education Services,Brake Bros Foodservice Ltd,07/07/2017,,329.64,Catering Provisions,110000 - Catering
Solihull MBC,Resources,Children & Education Services,Brake Bros Foodservice Ltd,07/07/2017,,154.78,Catering Provisions,110000 - Catering
Solihull MBC,Resources,Children & Education Services,Brake Bros Foodservice Ltd,07/07/2017,,214.75,Catering Provisions,110000 - Catering
Solihull MBC,Resources,Children & Education Services,Brake Bros Foodservice Ltd,07/07/2017,,179.00,Catering Provisions,110000 - Catering
Solihull MBC,Resources,Children & Education Services,Brake Bros Foodservice Ltd,07/07/2017,,18.54,Catering Provisions,110000 - Catering
Solihull MBC,Resources,Children & Education Services,Brake Bros Foodservice Ltd,07/07/2017,,61.29,Catering Provisions,110000 - Catering
Solihull MBC,Resources,Children & Education Services,Brake Bros Foodservice Ltd,07/07/2017,,150.69,Catering Provisions,110000 - Catering
Solihull MBC,Resources,Children & Education Services,Brake Bros Foodservice Ltd,07/07/2017,,109.25,Catering Provisions,110000 - Catering
Solihull MBC,Resources,Children & Education Services,Brake Bros Foodservice Ltd,07/07/2017,,106.78,Catering Provisions,110000 - Catering
Solihull MBC,Resources,Children & Education Services,Brake Bros Foodservice Ltd,07/07/2017,,243.22,Catering Provisions,110000 - Catering
Solihull MBC,Resources,Children & Education Services,Brake Bros Foodservice Ltd,07/07/2017,,251.63,Catering Provisions,110000 - Catering
Solihull MBC,Resources,Children & Education Services,Brake Bros Foodservice Ltd,07/07/2017,,175.85,Catering Provisions,110000 - Catering
Solihull MBC,Resources,Children & Education Services,Brake Bros Foodservice Ltd,07/07/2017,,416.48,Catering Provisions,110000 - Catering
Solihull MBC,Resources,Children & Education Services,Brake Bros Foodservice Ltd,07/07/2017,,117.95,Catering Provisions,110000 - Catering
Solihull MBC,Resources,Children & Education Services,Brake Bros Foodservice Ltd,07/07/2017,,137.14,Catering Provisions,110000 - Catering
Solihull MBC,Resources,Children & Education Services,Brake Bros Foodservice Ltd,07/07/2017,,160.18,Catering Provisions,110000 - Catering
Solihull MBC,Resources,Children & Education Services,Brake Bros Foodservice Ltd,07/07/2017,,148.47,Catering Provisions,110000 - Catering
Solihull MBC,Resources,Children & Education Services,Brake Bros Foodservice Ltd,07/07/2017,,239.73,Catering Provisions,110000 - Catering
Solihull MBC,Resources,Children & Education Services,Brake Bros Foodservice Ltd,07/07/2017,,342.29,Catering Provisions,110000 - Catering
Solihull MBC,Resources,Children & Education Services,Brake Bros Foodservice Ltd,07/07/2017,,347.94,Catering Provisions,110000 - Catering
Solihull MBC,Resources,Children & Education Services,Brake Bros Foodservice Ltd,07/07/2017,,450.27,Catering Provisions,110000 - Catering
Solihull MBC,Resources,Children & Education Services,Brake Bros Foodservice Ltd,07/07/2017,,300.10,Catering Provisions,110000 - Catering
Solihull MBC,Resources,Children & Education Services,Brake Bros Foodservice Ltd,07/07/2017,,149.87,Catering Provisions,110000 - Catering
Solihull MBC,Resources,Children & Education Services,Brake Bros Foodservice Ltd,07/07/2017,,163.46,Catering Provisions,110000 - Catering
Solihull MBC,Resources,Children & Education Services,Brake Bros Foodservice Ltd,07/07/2017,,61.64,Catering Provisions,110000 - Catering
Solihull MBC,Resources,Children & Education Services,Brake Bros Foodservice Ltd,07/07/2017,,228.67,Catering Provisions,110000 - Catering
Solihull MBC,Resources,Children & Education Services,Brake Bros Foodservice Ltd,07/07/2017,,468.67,Catering Provisions,110000 - Catering
Solihull MBC,Resources,Children & Education Services,Brake Bros Foodservice Ltd,07/07/2017,,280.40,Catering Provisions,110000 - Catering
Solihull MBC,Resources,Children & Education Services,Brake Bros Foodservice Ltd,07/07/2017,,454.38,Catering Provisions,110000 - Catering
Solihull MBC,Resources,Children & Education Services,Brake Bros Foodservice Ltd,07/07/2017,,292.52,Catering Provisions,110000 - Catering
Solihull MBC,Resources,Children & Education Services,Brake Bros Foodservice Ltd,07/07/2017,,235.74,Catering Provisions,110000 - Catering
Solihull MBC,Resources,Children & Education Services,Brake Bros Foodservice Ltd,07/07/2017,,164.07,Catering Provisions,110000 - Catering
Solihull MBC,Resources,Children & Education Services,Brake Bros Foodservice Ltd,07/07/2017,,356.31,Catering Provisions,110000 - Catering
Solihull MBC,Resources,Children & Education Services,Brake Bros Foodservice Ltd,07/07/2017,,231.70,Catering Provisions,110000 - Catering
Solihull MBC,Resources,Children & Education Services,Brake Bros Foodservice Ltd,07/07/2017,,176.25,Catering Provisions,110000 - Catering
Solihull MBC,Resources,Children & Education Services,Brake Bros Foodservice Ltd,07/07/2017,,142.50,Catering Provisions,110000 - Catering
Solihull MBC,Resources,Children & Education Services,Brake Bros Foodservice Ltd,07/07/2017,,204.46,Catering Provisions,110000 - Catering
Solihull MBC,Resources,Children & Education Services,Brake Bros Foodservice Ltd,07/07/2017,,101.61,Catering Provisions,110000 - Catering
Solihull MBC,Resources,Children & Education Services,Brake Bros Foodservice Ltd,07/07/2017,,143.96,Catering Provisions,110000 - Catering
Solihull MBC,Resources,Children & Education Services,Brake Bros Foodservice Ltd,07/07/2017,,204.05,Catering Provisions,110000 - Catering
Solihull MBC,Resources,Children & Education Services,Brake Bros Foodservice Ltd,07/07/2017,,268.37,Catering Provisions,110000 - Catering
Solihull MBC,Resources,Children & Education Services,Brake Bros Foodservice Ltd,07/07/2017,,239.94,Catering Provisions,110000 - Catering
Solihull MBC,Resources,Children & Education Services,Brake Bros Foodservice Ltd,07/07/2017,,268.30,Catering Provisions,110000 - Catering
Solihull MBC,Resources,Children & Education Services,Brake Bros Foodservice Ltd,07/07/2017,,329.62,Catering Provisions,110000 - Catering
Solihull MBC,Resources,Children & Education Services,Brake Bros Foodservice Ltd,07/07/2017,,30.66,Catering Provisions,110000 - Catering
Solihull MBC,Resources,Children & Education Services,Brake Bros Foodservice Ltd,07/07/2017,,236.88,Catering Provisions,110000 - Catering
Solihull MBC,Resources,Children & Education Services,Brake Bros Foodservice Ltd,07/07/2017,,244.11,Catering Provisions,110000 - Catering
Solihull MBC,Resources,Children & Education Services,Brake Bros Foodservice Ltd,07/07/2017,,233.34,Catering Provisions,110000 - Catering
Solihull MBC,Resources,Children & Education Services,Brake Bros Foodservice Ltd,07/07/2017,,176.48,Catering Provisions,110000 - Catering
Solihull MBC,Resources,Children & Education Services,Brake Bros Foodservice Ltd,07/07/2017,,595.40,Catering Provisions,110000 - Catering
Solihull MBC,Resources,Children & Education Services,Brake Bros Foodservice Ltd,07/07/2017,,322.05,Catering Provisions,110000 - Catering
Solihull MBC,Resources,Children & Education Services,Brake Bros Foodservice Ltd,07/07/2017,,285.41,Catering Provisions,110000 - Catering
Solihull MBC,Resources,Children & Education Services,Brake Bros Foodservice Ltd,07/07/2017,,341.15,Catering Provisions,110000 - Catering
Solihull MBC,Resources,Children & Education Services,Brake Bros Foodservice Ltd,07/07/2017,,145.72,Catering Provisions,110000 - Catering
Solihull MBC,Resources,Children & Education Services,Brake Bros Foodservice Ltd,07/07/2017,,342.59,Catering Provisions,110000 - Catering
Solihull MBC,Resources,Children & Education Services,Brake Bros Foodservice Ltd,07/07/2017,,526.28,Catering Provisions,110000 - Catering
Solihull MBC,Resources,Children & Education Services,Brake Bros Foodservice Ltd,07/07/2017,,140.66,Catering Provisions,110000 - Catering
Solihull MBC,Resources,Children & Education Services,Brake Bros Foodservice Ltd,07/07/2017,,459.67,Catering Provisions,110000 - Catering
Solihull MBC,Resources,Children & Education Services,Brake Bros Foodservice Ltd,07/07/2017,,186.52,Catering Provisions,110000 - Catering
Solihull MBC,Resources,Children & Education Services,Brake Bros Foodservice Ltd,07/07/2017,,625.82,Catering Provisions,110000 - Catering
Solihull MBC,Resources,Children & Education Services,Brake Bros Foodservice Ltd,07/07/2017,,208.52,Catering Provisions,110000 - Catering
Solihull MBC,Resources,Children & Education Services,Brake Bros Foodservice Ltd,07/07/2017,,170.34,Catering Provisions,110000 - Catering
Solihull MBC,Resources,Children & Education Services,Brake Bros Foodservice Ltd,07/07/2017,,564.67,Catering Provisions,110000 - Catering
Solihull MBC,Resources,Children & Education Services,Brake Bros Foodservice Ltd,07/07/2017,,207.23,Catering Provisions,110000 - Catering
Solihull MBC,Resources,Children & Education Services,Brake Bros Foodservice Ltd,07/07/2017,,194.14,Catering Provisions,110000 - Catering
Solihull MBC,Resources,Children & Education Services,Brake Bros Foodservice Ltd,07/07/2017,,313.74,Catering Provisions,110000 - Catering
Solihull MBC,Resources,Children & Education Services,Brake Bros Foodservice Ltd,07/07/2017,,51.57,Catering Provisions,110000 - Catering
Solihull MBC,Resources,Children & Education Services,Brake Bros Foodservice Ltd,07/07/2017,,279.59,Catering Provisions,110000 - Catering
Solihull MBC,Resources,Children & Education Services,Brake Bros Foodservice Ltd,07/07/2017,,321.30,Catering Provisions,110000 - Catering
Solihull MBC,Resources,Children & Education Services,Brake Bros Foodservice Ltd,07/07/2017,,313.74,Catering Provisions,110000 - Catering
Solihull MBC,Resources,Children & Education Services,Brake Bros Foodservice Ltd,07/07/2017,,265.90,Catering Provisions,110000 - Catering
Solihull MBC,Resources,Children & Education Services,Brake Bros Foodservice Ltd,07/07/2017,,168.29,Catering Provisions,110000 - Catering
Solihull MBC,Resources,Children & Education Services,Brake Bros Foodservice Ltd,07/07/2017,,219.62,Catering Provisions,110000 - Catering
Solihull MBC,Resources,Children & Education Services,Brake Bros Foodservice Ltd,07/07/2017,,133.94,Catering Provisions,110000 - Catering
Solihull MBC,Resources,Children & Education Services,Brake Bros Foodservice Ltd,07/07/2017,,231.86,Catering Provisions,110000 - Catering
Solihull MBC,Resources,Cultural & Related Services,Brake Bros Foodservice Ltd,07/07/2017,,26.88,Catering Provisions,110000 - Catering
Solihull MBC,Resources,Children & Education Services,Brake Bros Foodservice Ltd,07/07/2017,,278.07,Catering Provisions,110000 - Catering
Solihull MBC,Resources,Children & Education Services,Brake Bros Foodservice Ltd,07/07/2017,,328.81,Catering Provisions,110000 - Catering
Solihull MBC,Resources,Children & Education Services,Brake Bros Foodservice Ltd,07/07/2017,,188.89,Catering Provisions,110000 - Catering
Solihull MBC,Resources,Children & Education Services,Brake Bros Foodservice Ltd,07/07/2017,,204.82,Catering Provisions,110000 - Catering
Solihull MBC,Resources,Children & Education Services,Brake Bros Foodservice Ltd,07/07/2017,,246.86,Catering Provisions,110000 - Catering
Solihull MBC,Resources,Children & Education Services,Brake Bros Foodservice Ltd,07/07/2017,,171.00,Catering Provisions,110000 - Catering
Solihull MBC,Resources,Children & Education Services,Brake Bros Foodservice Ltd,07/07/2017,,473.66,Catering Provisions,110000 - Catering
Solihull MBC,Resources,Children & Education Services,Brake Bros Foodservice Ltd,07/07/2017,,204.56,Catering Provisions,110000 - Catering
Solihull MBC,Resources,Children & Education Services,Brake Bros Foodservice Ltd,07/07/2017,,448.18,Catering Provisions,110000 - Catering
Solihull MBC,Resources,Children & Education Services,Brake Bros Foodservice Ltd,07/07/2017,,822.48,Catering Provisions,110000 - Catering
Solihull MBC,Resources,Children & Education Services,Brake Bros Foodservice Ltd,07/07/2017,,311.07,Catering Provisions,110000 - Catering
Solihull MBC,Resources,Children & Education Services,Brake Bros Foodservice Ltd,07/07/2017,,537.94,Catering Provisions,110000 - Catering
Solihull MBC,Resources,Children & Education Services,Brake Bros Foodservice Ltd,07/07/2017,,337.32,Catering Provisions,110000 - Catering
Solihull MBC,Resources,Children & Education Services,Brake Bros Foodservice Ltd,07/07/2017,,102.12,Catering Provisions,110000 - Catering
Solihull MBC,Resources,Children & Education Services,Brake Bros Foodservice Ltd,07/07/2017,,424.67,Catering Provisions,110000 - Catering
Solihull MBC,Resources,Children & Education Services,Brake Bros Foodservice Ltd,07/07/2017,,269.61,Catering Provisions,110000 - Catering
Solihull MBC,Resources,Children & Education Services,Brake Bros Foodservice Ltd,07/07/2017,,451.33,Catering Provisions,110000 - Catering
Solihull MBC,Resources,Children & Education Services,Brake Bros Foodservice Ltd,07/07/2017,,250.82,Catering Provisions,110000 - Catering
Solihull MBC,Resources,Children & Education Services,Brake Bros Foodservice Ltd,07/07/2017,,397.61,Catering Provisions,110000 - Catering
Solihull MBC,Resources,Children & Education Services,Brake Bros Foodservice Ltd,07/07/2017,,248.50,Catering Provisions,110000 - Catering
Solihull MBC,Resources,Children & Education Services,Brake Bros Foodservice Ltd,07/07/2017,,313.31,Catering Provisions,110000 - Catering
Solihull MBC,Resources,Children & Education Services,Brake Bros Foodservice Ltd,07/07/2017,,176.33,Catering Provisions,110000 - Catering
Solihull MBC,Resources,Children & Education Services,Brake Bros Foodservice Ltd,07/07/2017,,164.50,Catering Provisions,110000 - Catering
Solihull MBC,Resources,Children & Education Services,Brake Bros Foodservice Ltd,07/07/2017,,190.43,Catering Provisions,110000 - Catering
Solihull MBC,Resources,Children & Education Services,Brake Bros Foodservice Ltd,07/07/2017,,358.63,Catering Provisions,110000 - Catering
Solihull MBC,Resources,Children & Education Services,Brake Bros Foodservice Ltd,07/07/2017,,140.48,Catering Provisions,110000 - Catering
Solihull MBC,Resources,Children & Education Services,Brake Bros Foodservice Ltd,07/07/2017,,483.47,Catering Provisions,110000 - Catering
Solihull MBC,Resources,Children & Education Services,Brake Bros Foodservice Ltd,07/07/2017,,417.94,Catering Provisions,110000 - Catering
Solihull MBC,Resources,Children & Education Services,Brake Bros Foodservice Ltd,07/07/2017,,53.02,Catering Provisions,110000 - Catering
Solihull MBC,Resources,Children & Education Services,Brake Bros Foodservice Ltd,07/07/2017,,413.47,Catering Provisions,110000 - Catering
Solihull MBC,Resources,Children & Education Services,Brake Bros Foodservice Ltd,07/07/2017,,211.74,Catering Provisions,110000 - Catering
Solihull MBC,Resources,Children & Education Services,Brake Bros Foodservice Ltd,07/07/2017,,246.92,Catering Provisions,110000 - Catering
Solihull MBC,Resources,Children & Education Services,Brake Bros Foodservice Ltd,07/07/2017,,471.49,Catering Provisions,110000 - Catering
Solihull MBC,Resources,Children & Education Services,Brake Bros Foodservice Ltd,07/07/2017,,232.49,Catering Provisions,110000 - Catering
Solihull MBC,Resources,Children & Education Services,Brake Bros Foodservice Ltd,07/07/2017,,377.13,Catering Provisions,110000 - Catering
Solihull MBC,Resources,Children & Education Services,Brake Bros Foodservice Ltd,07/07/2017,,332.80,Catering Provisions,110000 - Catering
Solihull MBC,Resources,Children & Education Services,Brake Bros Foodservice Ltd,07/07/2017,,14.55,Catering Provisions,110000 - Catering
Solihull MBC,Resources,Children & Education Services,Brake Bros Foodservice Ltd,07/07/2017,,267.15,Catering Provisions,110000 - Catering
Solihull MBC,Resources,Children & Education Services,Brake Bros Foodservice Ltd,07/07/2017,,230.32,Catering Provisions,110000 - Catering
Solihull MBC,Resources,Children & Education Services,Brake Bros Foodservice Ltd,07/07/2017,,130.47,Catering Provisions,110000 - Catering
Solihull MBC,Resources,Children & Education Services,Brake Bros Foodservice Ltd,07/07/2017,,274.24,Catering Provisions,110000 - Catering
Solihull MBC,Resources,Children & Education Services,Brake Bros Foodservice Ltd,07/07/2017,,181.76,Catering Provisions,110000 - Catering
Solihull MBC,Resources,Children & Education Services,Brake Bros Foodservice Ltd,07/07/2017,,572.53,Catering Provisions,110000 - Catering
Solihull MBC,Resources,Children & Education Services,Brake Bros Foodservice Ltd,07/07/2017,,220.67,Catering Provisions,110000 - Catering
Solihull MBC,Resources,Children & Education Services,Brake Bros Foodservice Ltd,07/07/2017,,158.75,Catering Provisions,110000 - Catering
Solihull MBC,Resources,Children & Education Services,Brake Bros Foodservice Ltd,07/07/2017,,263.73,Catering Provisions,110000 - Catering
Solihull MBC,Resources,Children & Education Services,Brake Bros Foodservice Ltd,07/07/2017,,73.96,Catering Provisions,110000 - Catering
Solihull MBC,Resources,Children & Education Services,Brake Bros Foodservice Ltd,07/07/2017,,391.49,Catering Provisions,110000 - Catering
Solihull MBC,Resources,Children & Education Services,Brake Bros Foodservice Ltd,07/07/2017,,145.04,Catering Provisions,110000 - Catering
Solihull MBC,Resources,Children & Education Services,Brake Bros Foodservice Ltd,13/07/2017,,334.48,Catering Provisions,110000 - Catering
Solihull MBC,Resources,Children & Education Services,Brake Bros Foodservice Ltd,13/07/2017,,152.02,Catering Provisions,110000 - Catering
Solihull MBC,Resources,Children & Education Services,Brake Bros Foodservice Ltd,13/07/2017,,438.48,Catering Provisions,110000 - Catering
Solihull MBC,Resources,Children & Education Services,Brake Bros Foodservice Ltd,13/07/2017,,214.34,Catering Provisions,110000 - Catering
Solihull MBC,Resources,Children & Education Services,Brake Bros Foodservice Ltd,13/07/2017,,58.91,Catering Provisions,110000 - Catering
Solihull MBC,Resources,Children & Education Services,Brake Bros Foodservice Ltd,13/07/2017,,337.14,Catering Provisions,110000 - Catering
Solihull MBC,Resources,Children & Education Services,Brake Bros Foodservice Ltd,13/07/2017,,281.93,Catering Provisions,110000 - Catering
Solihull MBC,Resources,Children & Education Services,Brake Bros Foodservice Ltd,13/07/2017,,110.46,Catering Provisions,110000 - Catering
Solihull MBC,Resources,Children & Education Services,Brake Bros Foodservice Ltd,13/07/2017,,145.46,Catering Provisions,110000 - Catering
Solihull MBC,Resources,Children & Education Services,Brake Bros Foodservice Ltd,13/07/2017,,133.90,Catering Provisions,110000 - Catering
Solihull MBC,Resources,Children & Education Services,Brake Bros Foodservice Ltd,13/07/2017,,65.83,Catering Provisions,110000 - Catering
Solihull MBC,Resources,Children & Education Services,Brake Bros Foodservice Ltd,13/07/2017,,325.85,Catering Provisions,110000 - Catering
Solihull MBC,Resources,Children & Education Services,Brake Bros Foodservice Ltd,13/07/2017,,177.82,Catering Provisions,110000 - Catering
Solihull MBC,Resources,Children & Education Services,Brake Bros Foodservice Ltd,13/07/2017,,2.50,Catering Provisions,110000 - Catering
Solihull MBC,Resources,Children & Education Services,Brake Bros Foodservice Ltd,13/07/2017,,162.45,Catering Provisions,110000 - Catering
Solihull MBC,Resources,Children & Education Services,Brake Bros Foodservice Ltd,13/07/2017,,198.03,Catering Provisions,110000 - Catering
Solihull MBC,Resources,Children & Education Services,Brake Bros Foodservice Ltd,13/07/2017,,95.16,Catering Provisions,110000 - Catering
Solihull MBC,Resources,Children & Education Services,Brake Bros Foodservice Ltd,13/07/2017,,265.70,Catering Provisions,110000 - Catering
Solihull MBC,Resources,Children & Education Services,Brake Bros Foodservice Ltd,13/07/2017,,238.91,Catering Provisions,110000 - Catering
Solihull MBC,Resources,Children & Education Services,Brake Bros Foodservice Ltd,13/07/2017,,379.92,Catering Provisions,110000 - Catering
Solihull MBC,Resources,Children & Education Services,Brake Bros Foodservice Ltd,13/07/2017,,315.21,Catering Provisions,110000 - Catering
Solihull MBC,Resources,Children & Education Services,Brake Bros Foodservice Ltd,13/07/2017,,160.13,Catering Provisions,110000 - Catering
Solihull MBC,Resources,Children & Education Services,Brake Bros Foodservice Ltd,13/07/2017,,149.37,Catering Provisions,110000 - Catering
Solihull MBC,Resources,Children & Education Services,Brake Bros Foodservice Ltd,13/07/2017,,224.39,Catering Provisions,110000 - Catering
Solihull MBC,Resources,Children & Education Services,Brake Bros Foodservice Ltd,13/07/2017,,507.56,Catering Provisions,110000 - Catering
Solihull MBC,Resources,Children & Education Services,Brake Bros Foodservice Ltd,13/07/2017,,322.51,Catering Provisions,110000 - Catering
Solihull MBC,Resources,Children & Education Services,Brake Bros Foodservice Ltd,13/07/2017,,401.35,Catering Provisions,110000 - Catering
Solihull MBC,Resources,Children & Education Services,Brake Bros Foodservice Ltd,13/07/2017,,182.19,Catering Provisions,110000 - Catering
Solihull MBC,Resources,Children & Education Services,Brake Bros Foodservice Ltd,13/07/2017,,286.82,Catering Provisions,110000 - Catering
Solihull MBC,Resources,Children & Education Services,Brake Bros Foodservice Ltd,13/07/2017,,125.43,Catering Provisions,110000 - Catering
Solihull MBC,Resources,Children & Education Services,Brake Bros Foodservice Ltd,13/07/2017,,141.17,Catering Provisions,110000 - Catering
Solihull MBC,Resources,Children & Education Services,Brake Bros Foodservice Ltd,13/07/2017,,107.65,Catering Provisions,110000 - Catering
Solihull MBC,Resources,Children & Education Services,Brake Bros Foodservice Ltd,13/07/2017,,143.62,Catering Provisions,110000 - Catering
Solihull MBC,Resources,Children & Education Services,Brake Bros Foodservice Ltd,13/07/2017,,187.06,Catering Provisions,110000 - Catering
Solihull MBC,Resources,Children & Education Services,Brake Bros Foodservice Ltd,13/07/2017,,203.19,Catering Provisions,110000 - Catering
Solihull MBC,Resources,Children & Education Services,Brake Bros Foodservice Ltd,13/07/2017,,263.76,Catering Provisions,110000 - Catering
Solihull MBC,Resources,Children & Education Services,Brake Bros Foodservice Ltd,13/07/2017,,322.24,Catering Provisions,110000 - Catering
Solihull MBC,Resources,Children & Education Services,Brake Bros Foodservice Ltd,13/07/2017,,254.28,Catering Provisions,110000 - Catering
Solihull MBC,Resources,Children & Education Services,Brake Bros Foodservice Ltd,13/07/2017,,307.94,Catering Provisions,110000 - Catering
Solihull MBC,Resources,Children & Education Services,Brake Bros Foodservice Ltd,13/07/2017,,181.14,Catering Provisions,110000 - Catering
Solihull MBC,Resources,Children & Education Services,Brake Bros Foodservice Ltd,13/07/2017,,386.12,Catering Provisions,110000 - Catering
Solihull MBC,Resources,Children & Education Services,Brake Bros Foodservice Ltd,13/07/2017,,23.78,Catering Provisions,110000 - Catering
Solihull MBC,Resources,Children & Education Services,Brake Bros Foodservice Ltd,13/07/2017,,581.11,Catering Provisions,110000 - Catering
Solihull MBC,Resources,Children & Education Services,Brake Bros Foodservice Ltd,13/07/2017,,171.96,Catering Provisions,110000 - Catering
Solihull MBC,Resources,Children & Education Services,Brake Bros Foodservice Ltd,13/07/2017,,381.66,Catering Provisions,110000 - Catering
Solihull MBC,Resources,Children & Education Services,Brake Bros Foodservice Ltd,13/07/2017,,176.52,Catering Provisions,110000 - Catering
Solihull MBC,Resources,Children & Education Services,Brake Bros Foodservice Ltd,13/07/2017,,215.93,Catering Provisions,110000 - Catering
Solihull MBC,Resources,Children & Education Services,Brake Bros Foodservice Ltd,13/07/2017,,342.35,Catering Provisions,110000 - Catering
Solihull MBC,Resources,Children & Education Services,Brake Bros Foodservice Ltd,13/07/2017,,183.22,Catering Provisions,110000 - Catering
Solihull MBC,Resources,Children & Education Services,Brake Bros Foodservice Ltd,13/07/2017,,355.86,Catering Provisions,110000 - Catering
Solihull MBC,Resources,Children & Education Services,Brake Bros Foodservice Ltd,13/07/2017,,402.94,Catering Provisions,110000 - Catering
Solihull MBC,Resources,Children & Education Services,Brake Bros Foodservice Ltd,13/07/2017,,225.23,Catering Provisions,110000 - Catering
Solihull MBC,Resources,Children & Education Services,Brake Bros Foodservice Ltd,13/07/2017,,424.54,Catering Provisions,110000 - Catering
Solihull MBC,Resources,Children & Education Services,Brake Bros Foodservice Ltd,13/07/2017,,295.14,Catering Provisions,110000 - Catering
Solihull MBC,Resources,Children & Education Services,Brake Bros Foodservice Ltd,13/07/2017,,75.43,Catering Provisions,110000 - Catering
Solihull MBC,Resources,Children & Education Services,Brake Bros Foodservice Ltd,13/07/2017,,768.50,Catering Provisions,110000 - Catering
Solihull MBC,Resources,Children & Education Services,Brake Bros Foodservice Ltd,13/07/2017,,169.59,Catering Provisions,110000 - Catering
Solihull MBC,Resources,Children & Education Services,Brake Bros Foodservice Ltd,13/07/2017,,360.37,Catering Provisions,110000 - Catering
Solihull MBC,Resources,Children & Education Services,Brake Bros Foodservice Ltd,13/07/2017,,282.39,Catering Provisions,110000 - Catering
Solihull MBC,Resources,Children & Education Services,Brake Bros Foodservice Ltd,13/07/2017,,283.75,Catering Provisions,110000 - Catering
Solihull MBC,Resources,Children & Education Services,Brake Bros Foodservice Ltd,13/07/2017,,433.35,Catering Provisions,110000 - Catering
Solihull MBC,Resources,Children & Education Services,Brake Bros Foodservice Ltd,13/07/2017,,359.59,Catering Provisions,110000 - Catering
Solihull MBC,Resources,Children & Education Services,Brake Bros Foodservice Ltd,13/07/2017,,159.82,Catering Provisions,110000 - Catering
Solihull MBC,Resources,Children & Education Services,Brake Bros Foodservice Ltd,13/07/2017,,85.45,Catering Provisions,110000 - Catering
Solihull MBC,Resources,Children & Education Services,Brake Bros Foodservice Ltd,13/07/2017,,293.59,Catering Provisions,110000 - Catering
Solihull MBC,Resources,Children & Education Services,Brake Bros Foodservice Ltd,13/07/2017,,43.67,Catering Provisions,110000 - Catering
Solihull MBC,Resources,Adult Social Care,Brake Bros Foodservice Ltd,13/07/2017,,147.04,Catering Provisions,110000 - Catering
Solihull MBC,Resources,Children & Education Services,Brake Bros Foodservice Ltd,13/07/2017,,250.78,Catering Provisions,110000 - Catering
Solihull MBC,Resources,Children & Education Services,Brake Bros Foodservice Ltd,13/07/2017,,271.09,Catering Provisions,110000 - Catering
Solihull MBC,Resources,Children & Education Services,Brake Bros Foodservice Ltd,13/07/2017,,217.39,Catering Provisions,110000 - Catering
Solihull MBC,Resources,Children & Education Services,Brake Bros Foodservice Ltd,13/07/2017,,233.65,Catering Provisions,110000 - Catering
Solihull MBC,Resources,Children & Education Services,Brake Bros Foodservice Ltd,13/07/2017,,384.14,Catering Provisions,110000 - Catering
Solihull MBC,Resources,Children & Education Services,Brake Bros Foodservice Ltd,13/07/2017,,256.62,Catering Provisions,110000 - Catering
Solihull MBC,Resources,Children & Education Services,Brake Bros Foodservice Ltd,13/07/2017,,83.15,Catering Provisions,110000 - Catering
Solihull MBC,Resources,Children & Education Services,Brake Bros Foodservice Ltd,13/07/2017,,184.82,Catering Provisions,110000 - Catering
Solihull MBC,Resources,Children & Education Services,Brake Bros Foodservice Ltd,13/07/2017,,45.88,Catering Provisions,110000 - Catering
Solihull MBC,Resources,Cultural & Related Services,Brake Bros Foodservice Ltd,13/07/2017,,51.86,Catering Provisions,110000 - Catering
Solihull MBC,Resources,Children & Education Services,Brake Bros Foodservice Ltd,13/07/2017,,419.60,Catering Provisions,110000 - Catering
Solihull MBC,Resources,Children & Education Services,Brake Bros Foodservice Ltd,13/07/2017,,377.04,Catering Provisions,110000 - Catering
Solihull MBC,Resources,Children & Education Services,Brake Bros Foodservice Ltd,13/07/2017,,174.31,Catering Provisions,110000 - Catering
Solihull MBC,Resources,Children & Education Services,Brake Bros Foodservice Ltd,13/07/2017,,393.44,Catering Provisions,110000 - Catering
Solihull MBC,Resources,Children & Education Services,Brake Bros Foodservice Ltd,13/07/2017,,245.60,Catering Provisions,110000 - Catering
Solihull MBC,Resources,Children & Education Services,Brake Bros Foodservice Ltd,13/07/2017,,261.11,Catering Provisions,110000 - Catering
Solihull MBC,Resources,Children & Education Services,Brake Bros Foodservice Ltd,13/07/2017,,471.50,Catering Provisions,110000 - Catering
Solihull MBC,Resources,Children & Education Services,Brake Bros Foodservice Ltd,13/07/2017,,307.90,Catering Provisions,110000 - Catering
Solihull MBC,Resources,Children & Education Services,Brake Bros Foodservice Ltd,13/07/2017,,441.60,Catering Provisions,110000 - Catering
Solihull MBC,Resources,Children & Education Services,Brake Bros Foodservice Ltd,13/07/2017,,630.81,Catering Provisions,110000 - Catering
Solihull MBC,Resources,Children & Education Services,Brake Bros Foodservice Ltd,13/07/2017,,449.99,Catering Provisions,110000 - Catering
Solihull MBC,Resources,Children & Education Services,Brake Bros Foodservice Ltd,13/07/2017,,571.37,Catering Provisions,110000 - Catering
Solihull MBC,Resources,Children & Education Services,Brake Bros Foodservice Ltd,13/07/2017,,350.03,Catering Provisions,110000 - Catering
Solihull MBC,Resources,Children & Education Services,Brake Bros Foodservice Ltd,13/07/2017,,560.22,Catering Provisions,110000 - Catering
Solihull MBC,Resources,Children & Education Services,Brake Bros Foodservice Ltd,13/07/2017,,424.97,Catering Provisions,110000 - Catering
Solihull MBC,Resources,Children & Education Services,Brake Bros Foodservice Ltd,13/07/2017,,37.92,Catering Provisions,110000 - Catering
Solihull MBC,Resources,Adult Social Care,Brake Bros Foodservice Ltd,13/07/2017,,155.53,Catering Provisions,110000 - Catering
Solihull MBC,Resources,Children & Education Services,Brake Bros Foodservice Ltd,13/07/2017,,18.26,Catering Provisions,110000 - Catering
Solihull MBC,Resources,Children & Education Services,Brake Bros Foodservice Ltd,13/07/2017,,127.61,Catering Provisions,110000 - Catering
Solihull MBC,Resources,Children & Education Services,Brake Bros Foodservice Ltd,13/07/2017,,326.06,Catering Provisions,110000 - Catering
Solihull MBC,Resources,Children & Education Services,Brake Bros Foodservice Ltd,13/07/2017,,351.15,Catering Provisions,110000 - Catering
Solihull MBC,Resources,Children & Education Services,Brake Bros Foodservice Ltd,13/07/2017,,369.01,Catering Provisions,110000 - Catering
Solihull MBC,Resources,Children & Education Services,Brake Bros Foodservice Ltd,13/07/2017,,166.06,Catering Provisions,110000 - Catering
Solihull MBC,Resources,Children & Education Services,Brake Bros Foodservice Ltd,13/07/2017,,492.31,Catering Provisions,110000 - Catering
Solihull MBC,Resources,Children & Education Services,Brake Bros Foodservice Ltd,13/07/2017,,268.31,Catering Provisions,110000 - Catering
Solihull MBC,Resources,Children & Education Services,Brake Bros Foodservice Ltd,13/07/2017,,201.13,Catering Provisions,110000 - Catering
Solihull MBC,Resources,Children & Education Services,Brake Bros Foodservice Ltd,13/07/2017,,359.30,Catering Provisions,110000 - Catering
Solihull MBC,Resources,Children & Education Services,Brake Bros Foodservice Ltd,13/07/2017,,349.88,Catering Provisions,110000 - Catering
Solihull MBC,Resources,Children & Education Services,Brake Bros Foodservice Ltd,13/07/2017,,298.44,Catering Provisions,110000 - Catering
Solihull MBC,Resources,Children & Education Services,Brake Bros Foodservice Ltd,13/07/2017,,530.14,Catering Provisions,110000 - Catering
Solihull MBC,Resources,Children & Education Services,Brake Bros Foodservice Ltd,13/07/2017,,370.45,Catering Provisions,110000 - Catering
Solihull MBC,Resources,Children & Education Services,Brake Bros Foodservice Ltd,13/07/2017,,201.89,Catering Provisions,110000 - Catering
Solihull MBC,Resources,Children & Education Services,Brake Bros Foodservice Ltd,13/07/2017,,280.13,Catering Provisions,110000 - Catering
Solihull MBC,Resources,Children & Education Services,Brake Bros Foodservice Ltd,13/07/2017,,342.60,Catering Provisions,110000 - Catering
Solihull MBC,Resources,Children & Education Services,Brake Bros Foodservice Ltd,13/07/2017,,289.91,Catering Provisions,110000 - Catering
Solihull MBC,Resources,Children & Education Services,Brake Bros Foodservice Ltd,13/07/2017,,278.98,Catering Provisions,110000 - Catering
Solihull MBC,Resources,Children & Education Services,Brake Bros Foodservice Ltd,13/07/2017,,353.01,Catering Provisions,110000 - Catering
Solihull MBC,Resources,Children & Education Services,Brake Bros Foodservice Ltd,13/07/2017,,672.87,Catering Provisions,110000 - Catering
Solihull MBC,Resources,Children & Education Services,Brake Bros Foodservice Ltd,13/07/2017,,153.01,Catering Provisions,110000 - Catering
Solihull MBC,Resources,Children & Education Services,Brake Bros Foodservice Ltd,13/07/2017,,246.45,Catering Provisions,110000 - Catering
Solihull MBC,Resources,Children & Education Services,Brake Bros Foodservice Ltd,13/07/2017,,90.78,Catering Provisions,110000 - Catering
Solihull MBC,Resources,Children & Education Services,Brake Bros Foodservice Ltd,13/07/2017,,3.31,Catering Provisions,110000 - Catering
Solihull MBC,Resources,Children & Education Services,Brake Bros Foodservice Ltd,13/07/2017,,363.92,Catering Provisions,110000 - Catering
Solihull MBC,Resources,Adult Social Care,Brake Bros Foodservice Ltd,13/07/2017,,104.88,Catering Provisions,110000 - Catering
Solihull MBC,Resources,Children & Education Services,Brake Bros Foodservice Ltd,13/07/2017,,193.77,Catering Provisions,110000 - Catering
Solihull MBC,Resources,Children & Education Services,Brake Bros Foodservice Ltd,13/07/2017,,578.38,Catering Provisions,110000 - Catering
Solihull MBC,Resources,Children & Education Services,Brake Bros Foodservice Ltd,13/07/2017,,332.21,Catering Provisions,110000 - Catering
Solihull MBC,Resources,Children & Education Services,Brake Bros Foodservice Ltd,13/07/2017,,271.10,Catering Provisions,110000 - Catering
Solihull MBC,Resources,Children & Education Services,Brake Bros Foodservice Ltd,13/07/2017,,369.75,Catering Provisions,110000 - Catering
Solihull MBC,Resources,Children & Education Services,Brake Bros Foodservice Ltd,13/07/2017,,103.56,Catering Provisions,110000 - Catering
Solihull MBC,Resources,Children & Education Services,Brake Bros Foodservice Ltd,13/07/2017,,548.89,Catering Provisions,110000 - Catering
Solihull MBC,Resources,Children & Education Services,Brake Bros Foodservice Ltd,13/07/2017,,349.88,Catering Provisions,110000 - Catering
Solihull MBC,Resources,Children & Education Services,Brake Bros Foodservice Ltd,13/07/2017,,-332.21,Catering Provisions,110000 - Catering
Solihull MBC,Resources,Children & Education Services,Brake Bros Foodservice Ltd,13/07/2017,,-349.88,Catering Provisions,110000 - Catering
Solihull MBC,Resources,Children & Education Services,Brake Bros Foodservice Ltd,13/07/2017,,-567.85,Catering Provisions,110000 - Catering
Solihull MBC,Resources,Children & Education Services,Brake Bros Foodservice Ltd,19/07/2017,,359.94,Catering Provisions,110000 - Catering
Solihull MBC,Resources,Children & Education Services,Brake Bros Foodservice Ltd,19/07/2017,,219.00,Catering Provisions,110000 - Catering
Solihull MBC,Resources,Children & Education Services,Brake Bros Foodservice Ltd,19/07/2017,,460.76,Catering Provisions,110000 - Catering
Solihull MBC,Resources,Children & Education Services,Brake Bros Foodservice Ltd,19/07/2017,,181.82,Catering Provisions,110000 - Catering
Solihull MBC,Resources,Children & Education Services,Brake Bros Foodservice Ltd,19/07/2017,,68.24,Catering Provisions,110000 - Catering
Solihull MBC,Resources,Children & Education Services,Brake Bros Foodservice Ltd,19/07/2017,,71.67,Catering Provisions,110000 - Catering
Solihull MBC,Resources,Children & Education Services,Brake Bros Foodservice Ltd,19/07/2017,,288.34,Catering Provisions,110000 - Catering
Solihull MBC,Resources,Children & Education Services,Brake Bros Foodservice Ltd,19/07/2017,,293.86,Catering Provisions,110000 - Catering
Solihull MBC,Resources,Children & Education Services,Brake Bros Foodservice Ltd,19/07/2017,,290.33,Catering Provisions,110000 - Catering
Solihull MBC,Resources,Children & Education Services,Brake Bros Foodservice Ltd,19/07/2017,,116.16,Catering Provisions,110000 - Catering
Solihull MBC,Resources,Children & Education Services,Brake Bros Foodservice Ltd,19/07/2017,,135.82,Catering Provisions,110000 - Catering
Solihull MBC,Resources,Children & Education Services,Brake Bros Foodservice Ltd,19/07/2017,,392.80,Catering Provisions,110000 - Catering
Solihull MBC,Resources,Children & Education Services,Brake Bros Foodservice Ltd,19/07/2017,,135.42,Catering Provisions,110000 - Catering
Solihull MBC,Resources,Cultural & Related Services,Brake Bros Foodservice Ltd,19/07/2017,,26.88,Catering Provisions,110000 - Catering
Solihull MBC,Resources,Children & Education Services,Brake Bros Foodservice Ltd,19/07/2017,,578.38,Catering Provisions,110000 - Catering
Solihull MBC,Resources,Children & Education Services,Brake Bros Foodservice Ltd,19/07/2017,,332.21,Catering Provisions,110000 - Catering
Solihull MBC,Resources,Children & Education Services,Brake Bros Foodservice Ltd,19/07/2017,,260.17,Catering Provisions,110000 - Catering
Solihull MBC,Resources,Children & Education Services,Brake Bros Foodservice Ltd,19/07/2017,,180.07,Catering Provisions,110000 - Catering
Solihull MBC,Resources,Children & Education Services,Brake Bros Foodservice Ltd,19/07/2017,,290.97,Catering Provisions,110000 - Catering
Solihull MBC,Resources,Children & Education Services,Brake Bros Foodservice Ltd,19/07/2017,,255.02,Catering Provisions,110000 - Catering
Solihull MBC,Resources,Children & Education Services,Brake Bros Foodservice Ltd,19/07/2017,,270.90,Catering Provisions,110000 - Catering
Solihull MBC,Resources,Children & Education Services,Brake Bros Foodservice Ltd,19/07/2017,,206.69,Catering Provisions,110000 - Catering
Solihull MBC,Resources,Children & Education Services,Brake Bros Foodservice Ltd,19/07/2017,,307.79,Catering Provisions,110000 - Catering
Solihull MBC,Resources,Children & Education Services,Brake Bros Foodservice Ltd,19/07/2017,,154.01,Catering Provisions,110000 - Catering
Solihull MBC,Resources,Children & Education Services,Brake Bros Foodservice Ltd,19/07/2017,,306.72,Catering Provisions,110000 - Catering
Solihull MBC,Resources,Children & Education Services,Brake Bros Foodservice Ltd,19/07/2017,,53.95,Catering Provisions,110000 - Catering
Solihull MBC,Resources,Children & Education Services,Brake Bros Foodservice Ltd,19/07/2017,,79.95,Catering Provisions,110000 - Catering
Solihull MBC,Resources,Children & Education Services,Brake Bros Foodservice Ltd,19/07/2017,,122.50,Catering Provisions,110000 - Catering
Solihull MBC,Resources,Children & Education Services,Brake Bros Foodservice Ltd,19/07/2017,,279.23,Catering Provisions,110000 - Catering
Solihull MBC,Resources,Children & Education Services,Brake Bros Foodservice Ltd,19/07/2017,,165.24,Catering Provisions,110000 - Catering
Solihull MBC,Resources,Children & Education Services,Brake Bros Foodservice Ltd,19/07/2017,,355.40,Catering Provisions,110000 - Catering
Solihull MBC,Resources,Children & Education Services,Brake Bros Foodservice Ltd,19/07/2017,,359.12,Catering Provisions,110000 - Catering
Solihull MBC,Resources,Children & Education Services,Brake Bros Foodservice Ltd,19/07/2017,,424.40,Catering Provisions,110000 - Catering
Solihull MBC,Resources,Children & Education Services,Brake Bros Foodservice Ltd,19/07/2017,,209.30,Catering Provisions,110000 - Catering
Solihull MBC,Resources,Children & Education Services,Brake Bros Foodservice Ltd,19/07/2017,,274.82,Catering Provisions,110000 - Catering
Solihull MBC,Resources,Children & Education Services,Brake Bros Foodservice Ltd,19/07/2017,,10.16,Catering Provisions,110000 - Catering
Solihull MBC,Resources,Children & Education Services,Brake Bros Foodservice Ltd,19/07/2017,,178.45,Catering Provisions,110000 - Catering
Solihull MBC,Resources,Children & Education Services,Brake Bros Foodservice Ltd,19/07/2017,,29.80,Catering Provisions,110000 - Catering
Solihull MBC,Resources,Children & Education Services,Brake Bros Foodservice Ltd,19/07/2017,,224.26,Catering Provisions,110000 - Catering
Solihull MBC,Resources,Children & Education Services,Brake Bros Foodservice Ltd,19/07/2017,,171.78,Catering Provisions,110000 - Catering
Solihull MBC,Resources,Children & Education Services,Brake Bros Foodservice Ltd,19/07/2017,,85.84,Catering Provisions,110000 - Catering
Solihull MBC,Resources,Children & Education Services,Brake Bros Foodservice Ltd,19/07/2017,,92.51,Catering Provisions,110000 - Catering
Solihull MBC,Resources,Children & Education Services,Brake Bros Foodservice Ltd,19/07/2017,,295.57,Catering Provisions,110000 - Catering
Solihull MBC,Resources,Children & Education Services,Brake Bros Foodservice Ltd,19/07/2017,,334.99,Catering Provisions,110000 - Catering
Solihull MBC,Resources,Children & Education Services,Brake Bros Foodservice Ltd,19/07/2017,,90.07,Catering Provisions,110000 - Catering
Solihull MBC,Resources,Children & Education Services,Brake Bros Foodservice Ltd,19/07/2017,,338.99,Catering Provisions,110000 - Catering
Solihull MBC,Resources,Children & Education Services,Brake Bros Foodservice Ltd,19/07/2017,,229.69,Catering Provisions,110000 - Catering
Solihull MBC,Resources,Children & Education Services,Brake Bros Foodservice Ltd,19/07/2017,,276.12,Catering Provisions,110000 - Catering
Solihull MBC,Resources,Children & Education Services,Brake Bros Foodservice Ltd,19/07/2017,,423.22,Catering Provisions,110000 - Catering
Solihull MBC,Resources,Children & Education Services,Brake Bros Foodservice Ltd,19/07/2017,,294.62,Catering Provisions,110000 - Catering
Solihull MBC,Resources,Children & Education Services,Brake Bros Foodservice Ltd,19/07/2017,,292.57,Catering Provisions,110000 - Catering
Solihull MBC,Resources,Children & Education Services,Brake Bros Foodservice Ltd,19/07/2017,,307.77,Catering Provisions,110000 - Catering
Solihull MBC,Resources,Children & Education Services,Brake Bros Foodservice Ltd,19/07/2017,,239.57,Catering Provisions,110000 - Catering
Solihull MBC,Resources,Children & Education Services,Brake Bros Foodservice Ltd,19/07/2017,,297.30,Catering Provisions,110000 - Catering
Solihull MBC,Resources,Children & Education Services,Brake Bros Foodservice Ltd,19/07/2017,,377.36,Catering Provisions,110000 - Catering
Solihull MBC,Resources,Children & Education Services,Brake Bros Foodservice Ltd,19/07/2017,,445.49,Catering Provisions,110000 - Catering
Solihull MBC,Resources,Children & Education Services,Brake Bros Foodservice Ltd,19/07/2017,,607.55,Catering Provisions,110000 - Catering
Solihull MBC,Resources,Children & Education Services,Brake Bros Foodservice Ltd,19/07/2017,,574.71,Catering Provisions,110000 - Catering
Solihull MBC,Resources,Children & Education Services,Brake Bros Foodservice Ltd,19/07/2017,,280.54,Catering Provisions,110000 - Catering
Solihull MBC,Resources,Children & Education Services,Brake Bros Foodservice Ltd,19/07/2017,,470.35,Catering Provisions,110000 - Catering
Solihull MBC,Resources,Children & Education Services,Brake Bros Foodservice Ltd,19/07/2017,,539.26,Catering Provisions,110000 - Catering
Solihull MBC,Resources,Children & Education Services,Brake Bros Foodservice Ltd,19/07/2017,,403.70,Catering Provisions,110000 - Catering
Solihull MBC,Resources,Children & Education Services,Brake Bros Foodservice Ltd,19/07/2017,,228.33,Catering Provisions,110000 - Catering
Solihull MBC,Resources,Children & Education Services,Brake Bros Foodservice Ltd,19/07/2017,,283.44,Catering Provisions,110000 - Catering
Solihull MBC,Resources,Children & Education Services,Brake Bros Foodservice Ltd,19/07/2017,,333.73,Catering Provisions,110000 - Catering
Solihull MBC,Resources,Children & Education Services,Brake Bros Foodservice Ltd,19/07/2017,,222.61,Catering Provisions,110000 - Catering
Solihull MBC,Resources,Children & Education Services,Brake Bros Foodservice Ltd,19/07/2017,,250.75,Catering Provisions,110000 - Catering
Solihull MBC,Resources,Children & Education Services,Brake Bros Foodservice Ltd,19/07/2017,,152.68,Catering Provisions,110000 - Catering
Solihull MBC,Resources,Children & Education Services,Brake Bros Foodservice Ltd,19/07/2017,,74.60,Catering Provisions,110000 - Catering
Solihull MBC,Resources,Adult Social Care,Brake Bros Foodservice Ltd,19/07/2017,,112.61,Catering Provisions,110000 - Catering
Solihull MBC,Resources,Children & Education Services,Brake Bros Foodservice Ltd,19/07/2017,,444.98,Catering Provisions,110000 - Catering
Solihull MBC,Resources,Children & Education Services,Brake Bros Foodservice Ltd,19/07/2017,,171.94,Catering Provisions,110000 - Catering
Solihull MBC,Resources,Children & Education Services,Brake Bros Foodservice Ltd,19/07/2017,,216.35,Catering Provisions,110000 - Catering
Solihull MBC,Resources,Children & Education Services,Brake Bros Foodservice Ltd,19/07/2017,,280.24,Catering Provisions,110000 - Catering
Solihull MBC,Resources,Children & Education Services,Brake Bros Foodservice Ltd,19/07/2017,,20.45,Catering Provisions,110000 - Catering
Solihull MBC,Resources,Children & Education Services,Brake Bros Foodservice Ltd,19/07/2017,,437.58,Catering Provisions,110000 - Catering
Solihull MBC,Resources,Children & Education Services,Brake Bros Foodservice Ltd,19/07/2017,,257.43,Catering Provisions,110000 - Catering
Solihull MBC,Resources,Children & Education Services,Brake Bros Foodservice Ltd,19/07/2017,,280.13,Catering Provisions,110000 - Catering
Solihull MBC,Resources,Children & Education Services,Brake Bros Foodservice Ltd,19/07/2017,,277.91,Catering Provisions,110000 - Catering
Solihull MBC,Resources,Children & Education Services,Brake Bros Foodservice Ltd,19/07/2017,,600.01,Catering Provisions,110000 - Catering
Solihull MBC,Resources,Children & Education Services,Brake Bros Foodservice Ltd,19/07/2017,,361.29,Catering Provisions,110000 - Catering
Solihull MBC,Resources,Children & Education Services,Brake Bros Foodservice Ltd,19/07/2017,,34.10,Catering Provisions,110000 - Catering
Solihull MBC,Resources,Children & Education Services,Brake Bros Foodservice Ltd,19/07/2017,,191.09,Catering Provisions,110000 - Catering
Solihull MBC,Resources,Children & Education Services,Brake Bros Foodservice Ltd,19/07/2017,,224.14,Catering Provisions,110000 - Catering
Solihull MBC,Resources,Children & Education Services,Brake Bros Foodservice Ltd,19/07/2017,,343.20,Catering Provisions,110000 - Catering
Solihull MBC,Resources,Children & Education Services,Brake Bros Foodservice Ltd,19/07/2017,,105.53,Catering Provisions,110000 - Catering
Solihull MBC,Resources,Children & Education Services,Brake Bros Foodservice Ltd,19/07/2017,,220.97,Catering Provisions,110000 - Catering
Solihull MBC,Resources,Children & Education Services,Brake Bros Foodservice Ltd,19/07/2017,,191.77,Catering Provisions,110000 - Catering
Solihull MBC,Resources,Children & Education Services,Brake Bros Foodservice Ltd,19/07/2017,,162.55,Catering Provisions,110000 - Catering
Solihull MBC,Resources,Children & Education Services,Brake Bros Foodservice Ltd,19/07/2017,,21.06,Catering Provisions,110000 - Catering
Solihull MBC,Resources,Children & Education Services,Brake Bros Foodservice Ltd,19/07/2017,,341.40,Catering Provisions,110000 - Catering
Solihull MBC,Resources,Children & Education Services,Brake Bros Foodservice Ltd,19/07/2017,,245.11,Catering Provisions,110000 - Catering
Solihull MBC,Resources,Children & Education Services,Brake Bros Foodservice Ltd,19/07/2017,,155.56,Catering Provisions,110000 - Catering
Solihull MBC,Resources,Children & Education Services,Brake Bros Foodservice Ltd,19/07/2017,,319.23,Catering Provisions,110000 - Catering
Solihull MBC,Resources,Children & Education Services,Brake Bros Foodservice Ltd,19/07/2017,,206.55,Catering Provisions,110000 - Catering
Solihull MBC,Resources,Children & Education Services,Brake Bros Foodservice Ltd,19/07/2017,,432.22,Catering Provisions,110000 - Catering
Solihull MBC,Resources,Children & Education Services,Brake Bros Foodservice Ltd,19/07/2017,,465.77,Catering Provisions,110000 - Catering
Solihull MBC,Resources,Children & Education Services,Brake Bros Foodservice Ltd,19/07/2017,,409.37,Catering Provisions,110000 - Catering
Solihull MBC,Resources,Children & Education Services,Brake Bros Foodservice Ltd,19/07/2017,,141.76,Catering Provisions,110000 - Catering
Solihull MBC,Resources,Children & Education Services,Brake Bros Foodservice Ltd,19/07/2017,,343.29,Catering Provisions,110000 - Catering
Solihull MBC,Resources,Children & Education Services,Brake Bros Foodservice Ltd,19/07/2017,,330.35,Catering Provisions,110000 - Catering
Solihull MBC,Resources,Children & Education Services,Brake Bros Foodservice Ltd,19/07/2017,,67.95,Catering Provisions,110000 - Catering
Solihull MBC,Resources,Children & Education Services,Brake Bros Foodservice Ltd,19/07/2017,,74.02,Catering Provisions,110000 - Catering
Solihull MBC,Resources,Children & Education Services,Brake Bros Foodservice Ltd,19/07/2017,,391.55,Catering Provisions,110000 - Catering
Solihull MBC,Resources,Children & Education Services,Brake Bros Foodservice Ltd,19/07/2017,,312.05,Catering Provisions,110000 - Catering
Solihull MBC,Resources,Children & Education Services,Brake Bros Foodservice Ltd,19/07/2017,,298.70,Catering Provisions,110000 - Catering
Solihull MBC,Resources,Children & Education Services,Brake Bros Foodservice Ltd,19/07/2017,,171.89,Catering Provisions,110000 - Catering
Solihull MBC,Resources,Children & Education Services,Brake Bros Foodservice Ltd,19/07/2017,,403.35,Catering Provisions,110000 - Catering
Solihull MBC,Resources,Children & Education Services,Brake Bros Foodservice Ltd,19/07/2017,,256.18,Catering Provisions,110000 - Catering
Solihull MBC,Resources,Children & Education Services,Brake Bros Foodservice Ltd,19/07/2017,,179.51,Catering Provisions,110000 - Catering
Solihull MBC,Resources,Children & Education Services,Brake Bros Foodservice Ltd,19/07/2017,,335.21,Catering Provisions,110000 - Catering
Solihull MBC,Resources,Children & Education Services,Brake Bros Foodservice Ltd,19/07/2017,,188.42,Catering Provisions,110000 - Catering
Solihull MBC,Resources,Children & Education Services,Brake Bros Foodservice Ltd,19/07/2017,,238.75,Catering Provisions,110000 - Catering
Solihull MBC,Resources,Children & Education Services,Brake Bros Foodservice Ltd,19/07/2017,,22.08,Catering Provisions,110000 - Catering
Solihull MBC,Resources,Children & Education Services,Brake Bros Foodservice Ltd,19/07/2017,,622.94,Catering Provisions,110000 - Catering
Solihull MBC,Resources,Children & Education Services,Brake Bros Foodservice Ltd,19/07/2017,,274.44,Catering Provisions,110000 - Catering
Solihull MBC,Resources,Children & Education Services,Brake Bros Foodservice Ltd,19/07/2017,,480.51,Catering Provisions,110000 - Catering
Solihull MBC,Resources,Children & Education Services,Brake Bros Foodservice Ltd,19/07/2017,,152.35,Catering Provisions,110000 - Catering
Solihull MBC,Resources,Children & Education Services,Brake Bros Foodservice Ltd,19/07/2017,,196.25,Catering Provisions,110000 - Catering
Solihull MBC,Resources,Children & Education Services,Brake Bros Foodservice Ltd,19/07/2017,,164.05,Catering Provisions,110000 - Catering
Solihull MBC,Resources,Children & Education Services,Brake Bros Foodservice Ltd,19/07/2017,,201.79,Catering Provisions,110000 - Catering
Solihull MBC,Resources,Children & Education Services,Brake Bros Foodservice Ltd,19/07/2017,,284.29,Catering Provisions,110000 - Catering
Solihull MBC,Resources,Children & Education Services,Brake Bros Foodservice Ltd,19/07/2017,,162.20,Catering Provisions,110000 - Catering
Solihull MBC,Resources,Children & Education Services,Brake Bros Foodservice Ltd,19/07/2017,,560.17,Catering Provisions,110000 - Catering
Solihull MBC,Resources,Children & Education Services,Brake Bros Foodservice Ltd,19/07/2017,,172.07,Catering Provisions,110000 - Catering
Solihull MBC,Resources,Children & Education Services,Brake Bros Foodservice Ltd,19/07/2017,,20.56,Catering Provisions,110000 - Catering
Solihull MBC,Resources,Children & Education Services,Brake Bros Foodservice Ltd,19/07/2017,,196.06,Catering Provisions,110000 - Catering
Solihull MBC,Resources,Children & Education Services,Brake Bros Foodservice Ltd,19/07/2017,,69.12,Catering Provisions,110000 - Catering
Solihull MBC,Resources,Children & Education Services,Brake Bros Foodservice Ltd,19/07/2017,,324.54,Catering Provisions,110000 - Catering
Solihull MBC,Resources,Children & Education Services,Brake Bros Foodservice Ltd,19/07/2017,,223.24,Catering Provisions,110000 - Catering
Solihull MBC,Resources,Children & Education Services,Brake Bros Foodservice Ltd,19/07/2017,,82.39,Catering Provisions,110000 - Catering
Solihull MBC,Resources,Children & Education Services,Brake Bros Foodservice Ltd,19/07/2017,,24.84,Catering Provisions,110000 - Catering
Solihull MBC,Resources,Children & Education Services,Brake Bros Foodservice Ltd,19/07/2017,,407.03,Catering Provisions,110000 - Catering
Solihull MBC,Resources,Children & Education Services,Brake Bros Foodservice Ltd,19/07/2017,,247.28,Catering Provisions,110000 - Catering
Solihull MBC,Resources,Children & Education Services,Brake Bros Foodservice Ltd,19/07/2017,,24.51,Catering Provisions,110000 - Catering
Solihull MBC,Resources,Children & Education Services,Brake Bros Foodservice Ltd,19/07/2017,,95.61,Catering Provisions,110000 - Catering
Solihull MBC,Resources,Children & Education Services,Brake Bros Foodservice Ltd,26/07/2017,,323.00,Catering Provisions,110000 - Catering
Solihull MBC,Resources,Children & Education Services,Brake Bros Foodservice Ltd,26/07/2017,,233.01,Catering Provisions,110000 - Catering
Solihull MBC,Resources,Children & Education Services,Brake Bros Foodservice Ltd,26/07/2017,,240.69,Catering Provisions,110000 - Catering
Solihull MBC,Resources,Children & Education Services,Brake Bros Foodservice Ltd,26/07/2017,,387.08,Catering Provisions,110000 - Catering
Solihull MBC,Resources,Children & Education Services,Brake Bros Foodservice Ltd,26/07/2017,,147.70,Catering Provisions,110000 - Catering
Solihull MBC,Resources,Children & Education Services,Brake Bros Foodservice Ltd,26/07/2017,,93.59,Catering Provisions,110000 - Catering
Solihull MBC,Resources,Children & Education Services,Brake Bros Foodservice Ltd,26/07/2017,,61.60,Catering Provisions,110000 - Catering
Solihull MBC,Resources,Children & Education Services,Brake Bros Foodservice Ltd,26/07/2017,,289.00,Catering Provisions,110000 - Catering
Solihull MBC,Resources,Children & Education Services,Brake Bros Foodservice Ltd,26/07/2017,,182.45,Catering Provisions,110000 - Catering
Solihull MBC,Resources,Children & Education Services,Brake Bros Foodservice Ltd,26/07/2017,,224.77,Catering Provisions,110000 - Catering
Solihull MBC,Resources,Children & Education Services,Brake Bros Foodservice Ltd,26/07/2017,,247.78,Catering Provisions,110000 - Catering
Solihull MBC,Resources,Children & Education Services,Brake Bros Foodservice Ltd,26/07/2017,,212.98,Catering Provisions,110000 - Catering
Solihull MBC,Resources,Children & Education Services,Brake Bros Foodservice Ltd,26/07/2017,,47.16,Catering Provisions,110000 - Catering
Solihull MBC,Resources,Children & Education Services,Brake Bros Foodservice Ltd,26/07/2017,,239.36,Catering Provisions,110000 - Catering
Solihull MBC,Resources,Children & Education Services,Brake Bros Foodservice Ltd,26/07/2017,,350.26,Catering Provisions,110000 - Catering
Solihull MBC,Resources,Cultural & Related Services,Brake Bros Foodservice Ltd,26/07/2017,,57.47,Catering Provisions,110000 - Catering
Solihull MBC,Resources,Children & Education Services,Brake Bros Foodservice Ltd,26/07/2017,,178.68,Catering Provisions,110000 - Catering
Solihull MBC,Resources,Children & Education Services,Brake Bros Foodservice Ltd,26/07/2017,,206.52,Catering Provisions,110000 - Catering
Solihull MBC,Resources,Children & Education Services,Brake Bros Foodservice Ltd,26/07/2017,,237.53,Catering Provisions,110000 - Catering
Solihull MBC,Resources,Children & Education Services,Brake Bros Foodservice Ltd,26/07/2017,,283.36,Catering Provisions,110000 - Catering
Solihull MBC,Resources,Children & Education Services,Brake Bros Foodservice Ltd,26/07/2017,,338.75,Catering Provisions,110000 - Catering
Solihull MBC,Resources,Children & Education Services,Brake Bros Foodservice Ltd,26/07/2017,,432.97,Catering Provisions,110000 - Catering
Solihull MBC,Resources,Children & Education Services,Brake Bros Foodservice Ltd,26/07/2017,,331.81,Catering Provisions,110000 - Catering
Solihull MBC,Resources,Children & Education Services,Brake Bros Foodservice Ltd,26/07/2017,,154.48,Catering Provisions,110000 - Catering
Solihull MBC,Resources,Children & Education Services,Brake Bros Foodservice Ltd,26/07/2017,,236.89,Catering Provisions,110000 - Catering
Solihull MBC,Resources,Children & Education Services,Brake Bros Foodservice Ltd,26/07/2017,,508.56,Catering Provisions,110000 - Catering
Solihull MBC,Resources,Children & Education Services,Brake Bros Foodservice Ltd,26/07/2017,,521.15,Catering Provisions,110000 - Catering
Solihull MBC,Resources,Children & Education Services,Brake Bros Foodservice Ltd,26/07/2017,,220.10,Catering Provisions,110000 - Catering
Solihull MBC,Resources,Children & Education Services,Brake Bros Foodservice Ltd,26/07/2017,,352.57,Catering Provisions,110000 - Catering
Solihull MBC,Resources,Children & Education Services,Brake Bros Foodservice Ltd,26/07/2017,,244.63,Catering Provisions,110000 - Catering
Solihull MBC,Resources,Children & Education Services,Brake Bros Foodservice Ltd,26/07/2017,,340.17,Catering Provisions,110000 - Catering
Solihull MBC,Resources,Children & Education Services,Brake Bros Foodservice Ltd,26/07/2017,,224.70,Catering Provisions,110000 - Catering
Solihull MBC,Resources,Children & Education Services,Brake Bros Foodservice Ltd,26/07/2017,,139.28,Catering Provisions,110000 - Catering
Solihull MBC,Resources,Children & Education Services,Brake Bros Foodservice Ltd,26/07/2017,,45.06,Catering Provisions,110000 - Catering
Solihull MBC,Resources,Children & Education Services,Brake Bros Foodservice Ltd,26/07/2017,,223.70,Catering Provisions,110000 - Catering
Solihull MBC,Resources,Children & Education Services,Brake Bros Foodservice Ltd,26/07/2017,,160.79,Catering Provisions,110000 - Catering
Solihull MBC,Resources,Children & Education Services,Brake Bros Foodservice Ltd,26/07/2017,,119.87,Catering Provisions,110000 - Catering
Solihull MBC,Resources,Children & Education Services,Brake Bros Foodservice Ltd,26/07/2017,,339.21,Catering Provisions,110000 - Catering
Solihull MBC,Resources,Children & Education Services,Brake Bros Foodservice Ltd,26/07/2017,,317.80,Catering Provisions,110000 - Catering
Solihull MBC,Resources,Children & Education Services,Brake Bros Foodservice Ltd,26/07/2017,,189.66,Catering Provisions,110000 - Catering
Solihull MBC,Resources,Children & Education Services,Brake Bros Foodservice Ltd,26/07/2017,,245.93,Catering Provisions,110000 - Catering
Solihull MBC,Resources,Children & Education Services,Brake Bros Foodservice Ltd,26/07/2017,,356.28,Catering Provisions,110000 - Catering
Solihull MBC,Resources,Children & Education Services,Brake Bros Foodservice Ltd,26/07/2017,,532.60,Catering Provisions,110000 - Catering
Solihull MBC,Resources,Children & Education Services,Brake Bros Foodservice Ltd,26/07/2017,,342.37,Catering Provisions,110000 - Catering
Solihull MBC,Resources,Children & Education Services,Brake Bros Foodservice Ltd,26/07/2017,,80.27,Catering Provisions,110000 - Catering
Solihull MBC,Resources,Children & Education Services,Brake Bros Foodservice Ltd,26/07/2017,,256.57,Catering Provisions,110000 - Catering
Solihull MBC,Resources,Children & Education Services,Brake Bros Foodservice Ltd,26/07/2017,,319.88,Catering Provisions,110000 - Catering
Solihull MBC,Resources,Children & Education Services,Brake Bros Foodservice Ltd,26/07/2017,,303.56,Catering Provisions,110000 - Catering
Solihull MBC,Resources,Children & Education Services,Brake Bros Foodservice Ltd,26/07/2017,,105.55,Catering Provisions,110000 - Catering
Solihull MBC,Resources,Children & Education Services,Brake Bros Foodservice Ltd,26/07/2017,,408.88,Catering Provisions,110000 - Catering
Solihull MBC,Resources,Children & Education Services,Brake Bros Foodservice Ltd,26/07/2017,,341.15,Catering Provisions,110000 - Catering
Solihull MBC,Resources,Children & Education Services,Brake Bros Foodservice Ltd,26/07/2017,,322.52,Catering Provisions,110000 - Catering
Solihull MBC,Resources,Children & Education Services,Brake Bros Foodservice Ltd,26/07/2017,,401.86,Catering Provisions,110000 - Catering
Solihull MBC,Resources,Children & Education Services,Brake Bros Foodservice Ltd,26/07/2017,,316.80,Catering Provisions,110000 - Catering
Solihull MBC,Resources,Children & Education Services,Brake Bros Foodservice Ltd,26/07/2017,,566.13,Catering Provisions,110000 - Catering
Solihull MBC,Resources,Children & Education Services,Brake Bros Foodservice Ltd,26/07/2017,,206.18,Catering Provisions,110000 - Catering
Solihull MBC,Resources,Children & Education Services,Brake Bros Foodservice Ltd,26/07/2017,,287.87,Catering Provisions,110000 - Catering
Solihull MBC,Resources,Children & Education Services,Brake Bros Foodservice Ltd,26/07/2017,,306.87,Catering Provisions,110000 - Catering
Solihull MBC,Resources,Children & Education Services,Brake Bros Foodservice Ltd,26/07/2017,,571.73,Catering Provisions,110000 - Catering
Solihull MBC,Resources,Children & Education Services,Brake Bros Foodservice Ltd,26/07/2017,,263.01,Catering Provisions,110000 - Catering
Solihull MBC,Resources,Children & Education Services,Brake Bros Foodservice Ltd,26/07/2017,,106.72,Catering Provisions,110000 - Catering
Solihull MBC,Resources,Children & Education Services,Brake Bros Foodservice Ltd,26/07/2017,,11.92,Catering Provisions,110000 - Catering
Solihull MBC,Resources,Children & Education Services,Brake Bros Foodservice Ltd,26/07/2017,,178.65,Catering Provisions,110000 - Catering
Solihull MBC,Resources,Children & Education Services,Brake Bros Foodservice Ltd,26/07/2017,,227.39,Catering Provisions,110000 - Catering
Solihull MBC,Resources,Children & Education Services,Brake Bros Foodservice Ltd,26/07/2017,,234.33,Catering Provisions,110000 - Catering
Solihull MBC,Resources,Children & Education Services,Brake Bros Foodservice Ltd,26/07/2017,,237.08,Catering Provisions,110000 - Catering
Solihull MBC,Resources,Children & Education Services,Brake Bros Foodservice Ltd,26/07/2017,,333.76,Catering Provisions,110000 - Catering
Solihull MBC,Resources,Children & Education Services,Brake Bros Foodservice Ltd,26/07/2017,,118.60,Catering Provisions,110000 - Catering
Solihull MBC,Resources,Children & Education Services,Brake Bros Foodservice Ltd,26/07/2017,,105.71,Catering Provisions,110000 - Catering
Solihull MBC,Resources,Children & Education Services,Brake Bros Foodservice Ltd,26/07/2017,,223.82,Catering Provisions,110000 - Catering
Solihull MBC,Resources,Children & Education Services,Brake Bros Foodservice Ltd,26/07/2017,,408.86,Catering Provisions,110000 - Catering
Solihull MBC,Resources,Children & Education Services,Brake Bros Foodservice Ltd,26/07/2017,,486.33,Catering Provisions,110000 - Catering
Solihull MBC,Resources,Children & Education Services,Brake Bros Foodservice Ltd,26/07/2017,,147.79,Catering Provisions,110000 - Catering
Solihull MBC,Resources,Children & Education Services,Brake Bros Foodservice Ltd,26/07/2017,,211.74,Catering Provisions,110000 - Catering
Solihull MBC,Resources,Children & Education Services,Brake Bros Foodservice Ltd,26/07/2017,,401.07,Catering Provisions,110000 - Catering
Solihull MBC,Resources,Children & Education Services,Brake Bros Foodservice Ltd,26/07/2017,,50.78,Catering Provisions,110000 - Catering
Solihull MBC,Resources,Children & Education Services,Brake Bros Foodservice Ltd,26/07/2017,,207.32,Catering Provisions,110000 - Catering
Solihull MBC,Resources,Children & Education Services,Brake Bros Foodservice Ltd,26/07/2017,,22.48,Catering Provisions,110000 - Catering
Solihull MBC,Resources,Children & Education Services,Brake Bros Foodservice Ltd,26/07/2017,,5.97,Catering Provisions,110000 - Catering
Solihull MBC,Resources,Children & Education Services,Brake Bros Foodservice Ltd,26/07/2017,,335.09,Catering Provisions,110000 - Catering
Solihull MBC,Resources,Children & Education Services,Brake Bros Foodservice Ltd,26/07/2017,,491.28,Catering Provisions,110000 - Catering
Solihull MBC,Resources,Children & Education Services,Brake Bros Foodservice Ltd,26/07/2017,,598.20,Catering Provisions,110000 - Catering
Solihull MBC,Resources,Children & Education Services,Brake Bros Foodservice Ltd,26/07/2017,,389.55,Catering Provisions,110000 - Catering
Solihull MBC,Resources,Children & Education Services,Brake Bros Foodservice Ltd,26/07/2017,,83.02,Catering Provisions,110000 - Catering
Solihull MBC,Resources,Children & Education Services,Brake Bros Foodservice Ltd,26/07/2017,,218.41,Catering Provisions,110000 - Catering
Solihull MBC,Resources,Children & Education Services,Brake Bros Foodservice Ltd,26/07/2017,,124.60,Catering Provisions,110000 - Catering
Solihull MBC,Resources,Children & Education Services,Brake Bros Foodservice Ltd,26/07/2017,,548.75,Catering Provisions,110000 - Catering
Solihull MBC,Resources,Children & Education Services,Brake Bros Foodservice Ltd,26/07/2017,,381.25,Catering Provisions,110000 - Catering
Solihull MBC,Resources,Children & Education Services,Brake Bros Foodservice Ltd,26/07/2017,,471.91,Catering Provisions,110000 - Catering
Solihull MBC,Resources,Children & Education Services,Brake Bros Foodservice Ltd,26/07/2017,,217.24,Catering Provisions,110000 - Catering
Solihull MBC,Resources,Children & Education Services,Brake Bros Foodservice Ltd,26/07/2017,,402.31,Catering Provisions,110000 - Catering
Solihull MBC,Resources,Children & Education Services,Brake Bros Foodservice Ltd,26/07/2017,,146.19,Catering Provisions,110000 - Catering
Solihull MBC,Resources,Children & Education Services,Brake Bros Foodservice Ltd,26/07/2017,,169.97,Catering Provisions,110000 - Catering
Solihull MBC,Resources,Children & Education Services,Brake Bros Foodservice Ltd,26/07/2017,,187.29,Catering Provisions,110000 - Catering
Solihull MBC,Resources,Children & Education Services,Brake Bros Foodservice Ltd,26/07/2017,,278.13,Catering Provisions,110000 - Catering
Solihull MBC,Resources,Children & Education Services,Brake Bros Foodservice Ltd,26/07/2017,,28.73,Catering Provisions,110000 - Catering
Solihull MBC,Resources,Children & Education Services,Brake Bros Foodservice Ltd,26/07/2017,,330.98,Catering Provisions,110000 - Catering
Solihull MBC,Resources,Children & Education Services,Brake Bros Foodservice Ltd,26/07/2017,,361.96,Catering Provisions,110000 - Catering
Solihull MBC,Resources,Children & Education Services,Brake Bros Foodservice Ltd,26/07/2017,,103.33,Catering Provisions,110000 - Catering
Solihull MBC,Resources,Children & Education Services,Brake Bros Foodservice Ltd,26/07/2017,,94.14,Catering Provisions,110000 - Catering
Solihull MBC,Resources,Children & Education Services,Brake Bros Foodservice Ltd,26/07/2017,,425.98,Catering Provisions,110000 - Catering
Solihull MBC,Resources,Children & Education Services,Brake Bros Foodservice Ltd,26/07/2017,,228.63,Catering Provisions,110000 - Catering
Solihull MBC,Resources,Children & Education Services,Brake Bros Foodservice Ltd,26/07/2017,,101.37,Catering Provisions,110000 - Catering
Solihull MBC,Resources,Children & Education Services,Brake Bros Foodservice Ltd,26/07/2017,,213.39,Catering Provisions,110000 - Catering
Solihull MBC,Resources,Children & Education Services,Brake Bros Foodservice Ltd,26/07/2017,,33.79,Catering Provisions,110000 - Catering
Solihull MBC,Resources,Children & Education Services,Brake Bros Foodservice Ltd,26/07/2017,,548.40,Catering Provisions,110000 - Catering
Solihull MBC,Resources,Children & Education Services,Brake Bros Foodservice Ltd,26/07/2017,,246.25,Catering Provisions,110000 - Catering
Solihull MBC,Resources,Children & Education Services,Brake Bros Foodservice Ltd,26/07/2017,,247.73,Catering Provisions,110000 - Catering
Solihull MBC,Resources,Children & Education Services,Brake Bros Foodservice Ltd,26/07/2017,,428.72,Catering Provisions,110000 - Catering
Solihull MBC,Resources,Children & Education Services,Brake Bros Foodservice Ltd,26/07/2017,,123.39,Catering Provisions,110000 - Catering
Solihull MBC,Resources,Children & Education Services,Brake Bros Foodservice Ltd,06/07/2017,,129.00,Catering Provisions,110000 - Catering
Solihull MBC,Resources,Children & Education Services,Brake Bros Foodservice Ltd,06/07/2017,,178.25,Catering Provisions,110000 - Catering
Solihull MBC,Resources,Children & Education Services,Brake Bros Foodservice Ltd,06/07/2017,,418.53,Catering Provisions,110000 - Catering
Solihull MBC,Resources,Children & Education Services,Brake Bros Foodservice Ltd,06/07/2017,,294.80,Catering Provisions,110000 - Catering
Solihull MBC,Resources,Children & Education Services,Brake Bros Foodservice Ltd,06/07/2017,,19.96,Catering Provisions,110000 - Catering
Solihull MBC,Resources,Children & Education Services,Brake Bros Foodservice Ltd,06/07/2017,,234.97,Catering Provisions,110000 - Catering
Solihull MBC,Resources,Children & Education Services,Brake Bros Foodservice Ltd,06/07/2017,,228.24,Catering Provisions,110000 - Catering
Solihull MBC,Resources,Children & Education Services,Brake Bros Foodservice Ltd,06/07/2017,,108.69,Catering Provisions,110000 - Catering
Solihull MBC,Resources,Children & Education Services,Brake Bros Foodservice Ltd,06/07/2017,,2.27,Catering Provisions,110000 - Catering
Solihull MBC,Resources,Children & Education Services,Brake Bros Foodservice Ltd,06/07/2017,,122.78,Catering Provisions,110000 - Catering
Solihull MBC,Resources,Children & Education Services,Brake Bros Foodservice Ltd,06/07/2017,,372.53,Catering Provisions,110000 - Catering
